Workbook

Sheet Instructions
A1: Project Name: | C1: Reclaim Model - Overview of Program
B2: Hope Bay - Doris Madrid | C2: All users are urged to read the Reclaim Model User Manual - Scroll down for overview description of program.
C3: Important! Reclaim 7.0 works better with no other excel files open.
C4: If other excel files are open ignore run time error and proceed
A5: Reclaim Menu | C5: The default Excel menu bar has an additional tab labelled "Add-Ins" that provides options specific to the Reclaim Model.
B6: Clear | C6: This option deletes all input data, deletes any duplicated elements and blanks out the project name. It also allows for segregation into land costs vs water costs if required.
B7: Duplicate | C7: This option Duplicates components of the project. E.g. if there is more than one Open Pit, use duplicate to add a second Open Pit. Quantities for the new Open Pit are erased, but the Activities and Cost Codes are carried over from the original Open Pit. The new Open Pit subtotal is added to the Summary page.
B8: Unit Costs | C8: This option opens a window of unit costs to provide easy reference. NOTE: the unit cost table has a filter in the 'UNITS' column. You can select to only see a particular unit (eg km) or multiple units (km and m3) or all units.
B9: Print All | C9: This option prints the Summary Worksheet, Unit Cost Worksheet, and the individual component worksheets having non-zero balances. Individual worksheets can be printed directly using standard printing methods, such as Ctl - P.
B10: Quit | C10: Select Quit to exit the program
B11: Help | C11: Redirects user to Instructions worksheet.
A13: WorkSheets
B14: Summary | C14: This worksheet contains a cumulative summary of costs for each component of the project. Associated costs such as engineering and project management are added as a percentage of the component costs.
B15: Components | C15: Costs are derived for individual closure and reclamation activities by multiplying a "quantity" of activity by a "unit cost". An activity can be edited, added, or deleted from worksheet. However, care should be taken not to modify cells that are defined and used elsewhere in the program.
C16: Do not change the content or column width of the first column of each component worksheet.
B17: Unit Costs | C17: This worksheet contains a look up table with costs for typical work associated with each closure and reclamation activity
A19: Limitations | C19: The Reclaim Program will NOT work if the worksheets are changed such that the following requirements are not met. Please review the following prior to modifiying worksheets.
B20: WorkSheet Names | C20: The names of the worksheets must not be changed.
B21: Defined Names | C21: Certain cells have defined names, which must not be changed. Where the cell is named, the name will appear in the "Name Box" to the left of the formula bar.
B22: First line of data | C22: The first line of data for any component worksheet starts on line 4. Do not change the first line of a component worksheet, ie the component name.
B23: Cell A1 | C23: Cell A1 on the component sheet MUST always contain the count of that component for the duplicate function to operate. DO NOT CHANGE.
B24: Adding Lines | C24: You can add lines to components and the unit cost table, as long as they are not the last lines. The last line might fall outside the named ranges. You can check the size of the named range by selecting the name from the drop down box at the top left of the sheet. Usually this box has a cell reference, or a name.
B25: Printing | C25: A component will only be printed if its sub-total is greater than zero. In addition, a component and the summary sheet cannot be printed if there is an error. Printing has been set to print 1 page per component.
A27: Conditions of Use | C27: The Reclamation Cost Estimating Model was prepared to serve as a guide for Government Agencies, mining companies, and others to estimate the cost of mine reclamation. This model is not intended to replace reclamation planning or to be used to determine the activities required to reclaim a site or to dictate how much should be spent on reclamation.
C29: Reclaim was prepared by Brodie Consulting Ltd. on behalf of AANDC. AANDC and Brodie Consulting Ltd. are not responsible for the completeness or accuracy of any reclamation estimate made using this model. The user agrees to check and take responsibility for all aspects of any cost estimate made using this model.
A31: The following table provides guidance as to whether water management and treatment is considered short term or long term. Short term closure activities
A32: may be costed within a component (eg 'Open Pit' or 'Rock Pile') or 'Water Management'. Long term or post-closure water treatment is costed in 'Water Treatment'.
D33: Short Term/ Capital Ex. | E33: Long term/ NPV
A34: Open Pit | C34: flood pit - install/operate pumping system | D34: x
C35: construct diversion ditches | D35: x
C36: treat 1st filling | D36: x
C37: install pump/decant system | D37: x
C38: passive/biological treatment | D38: x
C39: overflow treatment | E39: x
A40: Rock Pile/Heap Leach Facility | C40: construct diversion ditches | D40: x
C41: install groundwater collection system | D41: x
C42: install toe seepage collection system | D42: x
C43: collect and treat groundwater | E43: x
C44: collect and treat seepage (ARD/ML) | E44: x
C45: install passive treatment system | D45: x
C46: operate and maintain passive treatment system | E46: x
C47: operate pump and detoxify heap leach pile (cyanide destruction) | D47: x
A48: Tailings Facility | C48: construct diversion ditches | D48: x
C49: pump supernatant (to pit, U/G) | D49: x
C50: treat supernatant | D50: x
C51: install toe seepage collection system | D51: x
C52: collect and treat seepage (ARD/ML) | E52: x
C53: install passive treatment system | D53: x
C54: operate and maintain passive treatment system | E54: x
A55: U/G Mine | C55: accelerate flooding | D55: x
C56: install seepage collection system | D56: x
C57: install dewatering/pumping system | D57: x
C58: operate seepage/dewatering system (ARD/ML) | E58: x
A59: Water Management | C59: refill lakes
C60: redirect creeks/streams | D60: x
C61: stabilize water management ponds | D61: x
C62: stabilize/close sediment ponds | D62: x
C63: fresh water supply - breach embankment | D63: x
C64: fresh water supply - remove piping system | D64: x
C65: construct water treatment plant | D65: x
C66: construct sludge pond | D66: x
C67: water control in reclamation quarry | D67: x
C68: operate/maintain water treatment plant | E68: x

Sheet Summary
B1: SUMMARY OF COSTS
A3: CAPITAL COSTS | B3: COMPONENT NAME | D3: COST | F3: LAND LIABILITY | H3: WATER LIABILITY
A4: OPEN PIT | B4: =IF(ISBLANK('Open Pit'!$C$1),"",'Open Pit'!$C$1) ->  | D4: =Pit1Total -> 0.0001 | F4: =Pit1LandTotal -> 0 | H4: =Pit1WaterTotal -> 0
A5: UNDERGROUND MINE | B5: =IF(ISBLANK('UG Mine'!$C$1),"",'UG Mine'!$C$1) -> Doris -Madrid | D5: =UG1Total -> 312867.6201 | F5: =UG1LandTotal -> 306350.5 | H5: =UG1WaterTotal -> 6517.12
A6: TAILINGS FACILITY | B6: =IF(ISBLANK(Tailings!$C$1),"",Tailings!$C$1) -> Doris-Madrid Mines | D6: =Tailings1Total -> 18850157.95 | F6: =Tailings1LandTotal -> 9548828.975 | H6: =Tailings1WaterTotal -> 9301328.975
A7: ROCK PILE | B7: =IF(ISBLANK('Rock Pile'!$C$1),"",'Rock Pile'!$C$1) -> Doris - Madrid | D7: =RP1Total -> 290125.5001 | F7: =RP1LandTotal -> 145062.75 | H7: =RP1WaterTotal -> 145062.75
A8: BUILDINGS AND EQUIPMENT | B8: =IF(ISBLANK('Bldgs & Equip'!$C$1),"",'Bldgs & Equip'!$C$1) -> Doris - Madrid | D8: =Bldg1Total -> 13677653.16 | F8: =Bldg1LandTotal -> 6760409.533 | H8: =Bldg1WaterTotal -> 6917243.625
A9: CHEMICALS AND CONTAMINATED SOIL MANAGEMENT | B9: =IF(ISBLANK(Chemicals!$C$1),"",Chemicals!$C$1) ->  | D9: =Chem1Total -> 3181811.142 | F9: =Chem1LandTotal -> 1513075.571 | H9: =Chem1WaterTotal -> 1668735.571
A10: SURFACE AND GROUNDWATER MANAGEMENT | B10: =IF(ISBLANK('Water Treatment'!$C$1),"",'Water Treatment'!$C$1) ->  | D10: =Water1Total -> 660058.5421 | F10: - | H10: =Water1Total -> 660058.5421
A11: INTERIM CARE AND MAINTENANCE | B11: =IF(ISBLANK(ICM!$C$1),"",ICM!$C$1) ->  | D11: =ICMTotal -> 7119300 | F11: - | H11: =ICMTotal -> 7119300
B12: SUBTOTAL: Capital Costs | D12: =SUM(D4:D11) -> 44091973.91 | F12: =SUM(F4:F11) -> 18273727.33 | H12: =SUM(H4:H11) -> 25818246.58
B13: PERCENT OF SUBTOTAL | F13: =IF(F12<0.01,0,F12/D12) -> 0.4144456623 | H13: =IF(H12<0.01,0,H12/D12) -> 0.5855543377
A15: INDIRECT COSTS | D15: COST | F15: LAND LIABILITY | H15: WATER LIABILITY
A16: MOBILIZATION/DEMOBILIZATION | B16: =IF(ISBLANK(Mobilization!$C$1),"",Mobilization!$C$1) ->  | D16: =MobTotal -> 9615305.714 | F16: =D16*$F$13 -> 3985021.745 | H16: =D16*$H$13 -> 5630283.97
A17: POST-CLOSURE MONITORING AND MAINTENANCE | B17: =IF(ISBLANK(PostClosure!$C$1),"",PostClosure!$C$1) ->  | D17: =PC1Total -> 4350876.502 | F17: =D17*$F$13 -> 1803201.893 | H17: =D17*$H$13 -> 2547674.609
A18: ENGINEERING | B18: 0.05 | D18: =B18*$D$12 -> 2204598.696 | F18: =+$F$13*D18 -> 913686.3664 | H18: =+$H$13*D18 -> 1290912.329
A19: PROJECT MANAGEMENT | B19: 0.05 | D19: 2204598.696 | F19: 913686.3664 | H19: 1290912.329
A20: HEALTH AND SAFETY PLANS/MONITORING & QA/QC | B20: 0 | D20: 0 | F20: 0 | H20: 0
A21: BONDING/INSURANCE | B21: 0 | D21: 0 | F21: 0 | H21: 0
A22: CONTINGENCY | B22: 0.2 | D22: 8818394.782 | F22: 3654745.466 | H22: 5163649.317
A23: MARKET PRICE FACTOR ADJUSTMENT | B23: 0 | D23: 0 | F23: 0 | H23: 0
B24: SUBTOTAL: Indirect Costs | D24: =SUM(D16:D23) -> 27193774.39 | F24: =SUM(F16:F23) -> 11270341.84 | H24: =SUM(H16:H23) -> 15923432.55
A26: TOTAL COSTS | D26: =D12+D24 -> 71285748.3 | F26: =F12+F24 -> 29544069.16 | H26: =H12+H24 -> 41741679.14
D29: 61174597
D30: =D26-D29 -> 10111151.3

Sheet UG Mine
A1: 1 | B1: Underground Mine Name | C1: Doris -Madrid | G1: UG Mine # | H1: 1
B3: ACTIVITY/MATERIAL | C3: Notes | D3: Unit | E3: Qty | F3: Cost Code | G3: Unit Cost | H3: Cost | I3: % Land | J3: Land Cost | K3: Water Cost
B4: CONTROL ACCESS
B5: Fence | D5: m | F5: =NA() ->  | G5: =IF(ISNA(F5),0,INDEX(IF(UPPER(RIGHT(F5,1))=Low,UnitCostLow, IF(UPPER(RIGHT(F5,1))=High,UnitCostHigh,UnitCostSpecified)),MATCH(UPPER(LEFT(F5,LEN(F5)-1)),CostCode,0))) -> 0 | H5: =G5*E5 -> 0 | J5: =H5*I5 -> 0 | K5: =H5*(1-I5) -> 0
B6: Signs | C6: Doris/Madrid South/Madrid North | D6: each | E6: 6 | F6: SH | G6: 37.08 | H6: 222.48 | I6: 1 | J6: =H6*I6 -> 222.48 | K6: =H6*(1-I6) -> 0
B7: Block roads | D7: m3 | F7: =NA() ->  | G7: 0 | H7: =G7*E7 -> 0 | J7: 0 | K7: 0
B8: Berm | D8: m3 | F8: =NA() ->  | G8: 0 | H8: 0 | J8: 0 | K8: 0
B9: Concrete wall in portals | D9: m3 | F9: =NA() ->  | G9: 0 | H9: 0 | J9: =H9*I9 -> 0 | K9: =H9*(1-I9) -> 0
B10: Backfill portal Doris | C10: DM-012 | D10: m3 | E10: 710 | F10: TMAC | G10: 24.53 | H10: 17416.3 | I10: 1 | J10: 17416.3 | K10: 0 | M10: rounded qty
B11: Backfill Portal Madrid North | C11: MN-012 | D11: m3 | E11: 710 | F11: TMAC | G11: 24.53 | H11: =G11*E11 -> 17416.3 | I11: 1 | J11: =H11*I11 -> 17416.3 | K11: =H11*(1-I11) -> 0 | M11: rounded qty
B12: Backfill Portal Madrid South | C12: MS-016 | D12: m3 | E12: 710 | F12: TMAC | G12: 24.53 | H12: 17416.3 | I12: 1 | J12: 17416.3 | K12: 0 | M12: rounded qty
B13: Cap Vent Raises | C13: DM-030, DM-033 & DM-034 | D13: each | E13: 3 | F13: TMAC | G13: 14300 | H13: 42900 | I13: 1 | J13: 42900 | K13: 0 | M13: rounded unit rate up
B14: Cap Vent Raises | C14: MN-018 | D14: each | E14: 3 | F14: TMAC | G14: 14300 | H14: =G14*E14 -> 42900 | I14: 1 | J14: =H14*I14 -> 42900 | K14: =H14*(1-I14) -> 0 | M14: rounded unit rate up
B15: Cap Vent Raises | C15: MS-015 | D15: each | E15: 2 | F15: TMAC | G15: 14300 | H15: 28600 | I15: 1 | J15: 28600 | K15: 0 | M15: rounded unit rate up
B16: Cap shaft #2 | D16: m3 | F16: =NA() ->  | G16: 0 | H16: 0 | J16: 0 | K16: 0
B17: Backfill adits | D17: m3 | F17: =NA() ->  | G17: 0 | H17: 0 | J17: =H17*I17 -> 0 | K17: =H17*(1-I17) -> 0
B18: Backfill open stope | D18: m3 | F18: sc3h | G18: 14.2 | H18: 0 | J18: 0 | K18: 0
B19: Concrete cap over open stope | D19: m3 | F19: =NA() ->  | G19: 0 | H19: 0 | J19: 0 | K19: 0
B20: Other - crown pillar study | D20: LS | F20: =NA() ->  | G20: 25000 | H20: 0 | J20: 0 | K20: 0
B21: REMOVE HAZARDOUS MATERIALS
B22: Remove hazardous materials, U/G labor | D22: mandays | F22: =NA() ->  | G22: 500 | H22: =G22*E22 -> 0 | J22: =H22*I22 -> 0 | K22: =H22*(1-I22) -> 0
B23: Remove/decontam. stationary & elect. equip | C23: DM-012, DM-030, DM-033 & DM-034 | D23: lm | E23: =100*4 -> 400 | F23: TMAC | G23: 119.02 | H23: =G23*E23 -> 47608 | I23: 1 | J23: =H23*I23 -> 47608 | K23: =H23*(1-I23) -> 0
C24: Doris remove equipment from underground Mech Shop | D24: each | E24: 3 | F24: TMAC | G24: 680 | H24: =G24*E24 -> 2040 | I24: 1 | J24: =H24*I24 -> 2040 | K24: =H24*(1-I24) -> 0
C25: MN-012 & MN-018 | D25: lm | E25: =100*4 -> 400 | F25: TMAC | G25: 119.02 | H25: =G25*E25 -> 47608 | I25: 1 | J25: =H25*I25 -> 47608 | K25: =H25*(1-I25) -> 0 | M25: no quantity given in latest estimate so kept earlier number
C26: MS-015 & MS-016 | D26: lm | E26: 300 | F26: TMAC | G26: 119.02 | H26: 35706 | I26: 1 | J26: 35706 | K26: 0 | M26: N/C
B27: Remove/decontam. mobile equipment | D27: each | F27: =NA() ->  | G27: =IF(ISNA(F27),0,INDEX(IF(UPPER(RIGHT(F27,1))=Low,UnitCostLow, IF(UPPER(RIGHT(F27,1))=High,UnitCostHigh,UnitCostSpecified)),MATCH(UPPER(LEFT(F27,LEN(F27)-1)),CostCode,0))) -> 0 | H27: =G27*E27 -> 0 | J27: =H27*I27 -> 0 | K27: =H27*(1-I27) -> 0
B28: Remove misc. haz. mat & explosives | C28: Remove explosives from AWR storage | D28: m3 | E28: 2176 | F28: TMAC | G28: 5.99 | H28: =G28*E28 -> 13034.24 | I28: 0.5 | J28: =H28*I28 -> 6517.12 | K28: =H28*(1-I28) -> 6517.12 | M28: changed rate to the waste haulage rate from RB to Quarry 3 to reflect minimal containerization required however need specialists to manage the explosives.
B29: Other | C29: Cargo dock controller removal | D29: each | E29: 0 | F29: TMAC | G29: 679.52 | H29: =G29*E29 -> 0 | I29: 0.5 | J29: =H29*I29 -> 0 | K29: =H29*(1-I29) -> 0 | M29: already accounted for in Chemicals tab.
C30: Relocate debris from Raise MN
C31: Relocate debris from Raise MS
B32: INSTALL BULKHEADS
B33: Bulkheads to control water flow | D33: each | F33: =NA() ->  | G33: =IF(ISNA(F33),0,INDEX(IF(UPPER(RIGHT(F33,1))=Low,UnitCostLow, IF(UPPER(RIGHT(F33,1))=High,UnitCostHigh,UnitCostSpecified)),MATCH(UPPER(LEFT(F33,LEN(F33)-1)),CostCode,0))) -> 0 | H33: =G33*E33 -> 0 | J33: =H33*I33 -> 0 | K33: =H33*(1-I33) -> 0
B34: Grout bulkhead | D34: m3 | F34: =NA() ->  | G34: =IF(ISNA(F34),0,INDEX(IF(UPPER(RIGHT(F34,1))=Low,UnitCostLow, IF(UPPER(RIGHT(F34,1))=High,UnitCostHigh,UnitCostSpecified)),MATCH(UPPER(LEFT(F34,LEN(F34)-1)),CostCode,0))) -> 0 | H34: =G34*E34 -> 0 | J34: =H34*I34 -> 0 | K34: =H34*(1-I34) -> 0
B35: FLOOD MINE
B36: Supply/install pump | D36: each | F36: =NA() ->  | G36: =IF(ISNA(F36),0,INDEX(IF(UPPER(RIGHT(F36,1))=Low,UnitCostLow, IF(UPPER(RIGHT(F36,1))=High,UnitCostHigh,UnitCostSpecified)),MATCH(UPPER(LEFT(F36,LEN(F36)-1)),CostCode,0))) -> 0 | H36: =G36*E36 -> 0 | J36: 0 | K36: 0
B37: Supply/install piping system | D37: each | F37: =NA() ->  | G37: =IF(ISNA(F37),0,INDEX(IF(UPPER(RIGHT(F37,1))=Low,UnitCostLow, IF(UPPER(RIGHT(F37,1))=High,UnitCostHigh,UnitCostSpecified)),MATCH(UPPER(LEFT(F37,LEN(F37)-1)),CostCode,0))) -> 0 | H37: =G37*E37 -> 0 | J37: =H37*I37 -> 0 | K37: =H37*(1-I37) -> 0
B38: Operate pumps to flood workings | D38: m3 | F38: =NA() ->  | G38: =IF(ISNA(F38),0,INDEX(IF(UPPER(RIGHT(F38,1))=Low,UnitCostLow, IF(UPPER(RIGHT(F38,1))=High,UnitCostHigh,UnitCostSpecified)),MATCH(UPPER(LEFT(F38,LEN(F38)-1)),CostCode,0))) -> 0 | H38: =G38*E38 -> 0 | J38: 0 | K38: 0
B39: Other | F39: =NA() ->  | G39: =IF(ISNA(F39),0,INDEX(IF(UPPER(RIGHT(F39,1))=Low,UnitCostLow, IF(UPPER(RIGHT(F39,1))=High,UnitCostHigh,UnitCostSpecified)),MATCH(UPPER(LEFT(F39,LEN(F39)-1)),CostCode,0))) -> 0 | H39: =G39*E39 -> 0 | J39: 0 | K39: 0
B40: INSTALL GROUNDWATER COLLECTION SYSTEM
B41: Excavate/install sumps | D41: m2 | F41: =NA() ->  | G41: =IF(ISNA(F41),0,INDEX(IF(UPPER(RIGHT(F41,1))=Low,UnitCostLow, IF(UPPER(RIGHT(F41,1))=High,UnitCostHigh,UnitCostSpecified)),MATCH(UPPER(LEFT(F41,LEN(F41)-1)),CostCode,0))) -> 0 | H41: =G41*E41 -> 0 | J41: =H41*I41 -> 0 | K41: =+H41*(1-I41) -> 0
B42: Install pumping wells | D42: m3 | F42: =NA() ->  | G42: =IF(ISNA(F42),0,INDEX(IF(UPPER(RIGHT(F42,1))=Low,UnitCostLow, IF(UPPER(RIGHT(F42,1))=High,UnitCostHigh,UnitCostSpecified)),MATCH(UPPER(LEFT(F42,LEN(F42)-1)),CostCode,0))) -> 0 | H42: =G42*E42 -> 0 | J42: =H42*I42 -> 0 | K42: =+H42*(1-I42) -> 0
B43: Install pumps/pipelines/power supply | D43: LS | F43: =NA() ->  | G43: =IF(ISNA(F43),0,INDEX(IF(UPPER(RIGHT(F43,1))=Low,UnitCostLow, IF(UPPER(RIGHT(F43,1))=High,UnitCostHigh,UnitCostSpecified)),MATCH(UPPER(LEFT(F43,LEN(F43)-1)),CostCode,0))) -> 0 | H43: =G43*E43 -> 0 | J43: =H43*I43 -> 0 | K43: =+H43*(1-I43) -> 0
B44: SPECIALIZED ITEMS
B45: Install water quality monitoring pipes | D45: each | F45: =NA() ->  | G45: =IF(ISNA(F45),0,INDEX(IF(UPPER(RIGHT(F45,1))=Low,UnitCostLow, IF(UPPER(RIGHT(F45,1))=High,UnitCostHigh,UnitCostSpecified)),MATCH(UPPER(LEFT(F45,LEN(F45)-1)),CostCode,0))) -> 0 | H45: =G45*E45 -> 0 | J45: =H45*I45 -> 0 | K45: 0
B46: Install permanent pumping system | D46: each | F46: =NA() ->  | G46: =IF(ISNA(F46),0,INDEX(IF(UPPER(RIGHT(F46,1))=Low,UnitCostLow, IF(UPPER(RIGHT(F46,1))=High,UnitCostHigh,UnitCostSpecified)),MATCH(UPPER(LEFT(F46,LEN(F46)-1)),CostCode,0))) -> 0 | H46: =G46*E46 -> 0 | J46: =H46*I46 -> 0 | K46: 0
B47: Other | F47: =NA() ->  | G47: =IF(ISNA(F47),0,INDEX(IF(UPPER(RIGHT(F47,1))=Low,UnitCostLow, IF(UPPER(RIGHT(F47,1))=High,UnitCostHigh,UnitCostSpecified)),MATCH(UPPER(LEFT(F47,LEN(F47)-1)),CostCode,0))) -> 0 | H47: =G47*E47 -> 0 | J47: =H47*I47 -> 0 | K47: 0
G48: Total | H48: =SUM(H5:H47)+0.0001 -> 312867.6201 | J48: =SUM(J5:J47) -> 306350.5 | K48: =SUM(K5:K47) -> 6517.12
G49: % of Total | J49: =J48/H48 -> 0.9791697201 | K49: =K48/H48 -> 0.02083027959

Sheet Tailings
A1: 1 | B1: Tailings Impoundment Name: | C1: Doris-Madrid Mines | G1: Pond # | H1: 1
B3: ACTIVITY/MATERIAL | C3: Notes | D3: Units | E3: Quantity | F3: Cost Code | G3: Unit Cost | H3: Cost | I3: % Land | J3: Land Cost | K3: Water Cost
B4: CONTROL ACCESS
B5: Fence | D5: m | F5: =NA() ->  | G5: =IF(ISNA(F5),0,INDEX(IF(UPPER(RIGHT(F5,1))=Low,UnitCostLow, IF(UPPER(RIGHT(F5,1))=High,UnitCostHigh,UnitCostSpecified)),MATCH(UPPER(LEFT(F5,LEN(F5)-1)),CostCode,0))) -> 0 | H5: =G5*E5 -> 0 | J5: =H5*I5 -> 0 | K5: =+H5*(1-I5) -> 0
B6: Signs | D6: each | F6: =NA() ->  | G6: =IF(ISNA(F6),0,INDEX(IF(UPPER(RIGHT(F6,1))=Low,UnitCostLow, IF(UPPER(RIGHT(F6,1))=High,UnitCostHigh,UnitCostSpecified)),MATCH(UPPER(LEFT(F6,LEN(F6)-1)),CostCode,0))) -> 0 | H6: =G6*E6 -> 0 | J6: =H6*I6 -> 0 | K6: =+H6*(1-I6) -> 0
B7: Berm | D7: m3 | F7: =NA() ->  | G7: =IF(ISNA(F7),0,INDEX(IF(UPPER(RIGHT(F7,1))=Low,UnitCostLow, IF(UPPER(RIGHT(F7,1))=High,UnitCostHigh,UnitCostSpecified)),MATCH(UPPER(LEFT(F7,LEN(F7)-1)),CostCode,0))) -> 0 | H7: =G7*E7 -> 0 | J7: 0 | K7: 0
B8: Block roads | D8: m3 | F8: =NA() ->  | G8: =IF(ISNA(F8),0,INDEX(IF(UPPER(RIGHT(F8,1))=Low,UnitCostLow, IF(UPPER(RIGHT(F8,1))=High,UnitCostHigh,UnitCostSpecified)),MATCH(UPPER(LEFT(F8,LEN(F8)-1)),CostCode,0))) -> 0 | H8: =G8*E8 -> 0 | J8: 0 | K8: 0
B9: Other | F9: =NA() ->  | G9: =IF(ISNA(F9),0,INDEX(IF(UPPER(RIGHT(F9,1))=Low,UnitCostLow, IF(UPPER(RIGHT(F9,1))=High,UnitCostHigh,UnitCostSpecified)),MATCH(UPPER(LEFT(F9,LEN(F9)-1)),CostCode,0))) -> 0 | H9: =G9*E9 -> 0 | J9: 0 | K9: 0
B10: STABILIZE EMBANKMENT(S)
B11: Toe buttress, drainage layer | D11: m3 | F11: =NA() ->  | G11: =IF(ISNA(F11),0,INDEX(IF(UPPER(RIGHT(F11,1))=Low,UnitCostLow, IF(UPPER(RIGHT(F11,1))=High,UnitCostHigh,UnitCostSpecified)),MATCH(UPPER(LEFT(F11,LEN(F11)-1)),CostCode,0))) -> 0 | H11: =G11*E11 -> 0 | J11: 0 | K11: 0
B12: Toe buttress, bulk fill | D12: m3 | F12: =NA() ->  | G12: =IF(ISNA(F12),0,INDEX(IF(UPPER(RIGHT(F12,1))=Low,UnitCostLow, IF(UPPER(RIGHT(F12,1))=High,UnitCostHigh,UnitCostSpecified)),MATCH(UPPER(LEFT(F12,LEN(F12)-1)),CostCode,0))) -> 0 | H12: 0 | J12: 0 | K12: 0
B13: Rip rap | D13: m3 | F13: RB2 | G13: =Unit_Costs!G27 -> 17.8 | H13: 0 | J13: 0 | K13: 0
B14: Vegetate | D14: ha | F14: =NA() ->  | G14: =IF(ISNA(F14),0,INDEX(IF(UPPER(RIGHT(F14,1))=Low,UnitCostLow, IF(UPPER(RIGHT(F14,1))=High,UnitCostHigh,UnitCostSpecified)),MATCH(UPPER(LEFT(F14,LEN(F14)-1)),CostCode,0))) -> 0 | H14: 0 | J14: 0 | K14: 0
B15: Raise crest | D15: m3 | F15: =NA() ->  | G15: =IF(ISNA(F15),0,INDEX(IF(UPPER(RIGHT(F15,1))=Low,UnitCostLow, IF(UPPER(RIGHT(F15,1))=High,UnitCostHigh,UnitCostSpecified)),MATCH(UPPER(LEFT(F15,LEN(F15)-1)),CostCode,0))) -> 0 | H15: 0 | J15: 0 | K15: 0
B16: Flatten slopes | D16: m3 | F16: =NA() ->  | G16: =IF(ISNA(F16),0,INDEX(IF(UPPER(RIGHT(F16,1))=Low,UnitCostLow, IF(UPPER(RIGHT(F16,1))=High,UnitCostHigh,UnitCostSpecified)),MATCH(UPPER(LEFT(F16,LEN(F16)-1)),CostCode,0))) -> 0 | H16: 0 | J16: 0 | K16: 0
B17: Other | F17: =NA() ->  | G17: =IF(ISNA(F17),0,INDEX(IF(UPPER(RIGHT(F17,1))=Low,UnitCostLow, IF(UPPER(RIGHT(F17,1))=High,UnitCostHigh,UnitCostSpecified)),MATCH(UPPER(LEFT(F17,LEN(F17)-1)),CostCode,0))) -> 0 | H17: 0 | J17: 0 | K17: 0
B18: COVER TAILINGS
B19: Grade/shape tailings surface | C19: Windy Development Area Layout work for regrading | D19: day | E19: 1 | F19: TMAC | G19: 7190 | H19: =G19*E19 -> 7190 | I19: 0.5 | J19: =H19*I19 -> 3595 | K19: =+H19*(1-I19) -> 3595
B20: Liner bedding | D20: m3 | F20: =NA() ->  | G20: =IF(ISNA(F20),0,INDEX(IF(UPPER(RIGHT(F20,1))=Low,UnitCostLow, IF(UPPER(RIGHT(F20,1))=High,UnitCostHigh,UnitCostSpecified)),MATCH(UPPER(LEFT(F20,LEN(F20)-1)),CostCode,0))) -> 0 | H20: =G20*E20 -> 0 | J20: =H20*I20 -> 0 | K20: =+H20*(1-I20) -> 0
B21: Subgrade preparation - compact | D21: m2 | F21: =NA() ->  | G21: =IF(ISNA(F21),0,INDEX(IF(UPPER(RIGHT(F21,1))=Low,UnitCostLow, IF(UPPER(RIGHT(F21,1))=High,UnitCostHigh,UnitCostSpecified)),MATCH(UPPER(LEFT(F21,LEN(F21)-1)),CostCode,0))) -> 0 | H21: =G21*E21 -> 0 | J21: =H21*I21 -> 0 | K21: =+H21*(1-I21) -> 0
B22: Supply geotextile/geosynthetic | D22: m2 | F22: =NA() ->  | G22: =IF(ISNA(F22),0,INDEX(IF(UPPER(RIGHT(F22,1))=Low,UnitCostLow, IF(UPPER(RIGHT(F22,1))=High,UnitCostHigh,UnitCostSpecified)),MATCH(UPPER(LEFT(F22,LEN(F22)-1)),CostCode,0))) -> 0 | H22: 0 | J22: 0 | K22: 0
B23: Supply & Install geotextile/geosynthetic | C23: TIA-005 placement of NWG for erosion prevention | D23: m2 | E23: 54340 | F23: TMAC | G23: 30.02 | H23: =G23*E23 -> 1631286.8 | I23: 0.5 | J23: =H23*I23 -> 815643.4 | K23: =+H23*(1-I23) -> 815643.4
B24: Soil cover | D24: m3 | F24: SC4L | G24: =IF(ISNA(F24),0,INDEX(IF(UPPER(RIGHT(F24,1))=Low,UnitCostLow, IF(UPPER(RIGHT(F24,1))=High,UnitCostHigh,UnitCostSpecified)),MATCH(UPPER(LEFT(F24,LEN(F24)-1)),CostCode,0))) -> 9.3 | H24: 0 | J24: 0 | K24: 0
B25: Rock cover | C25: Prepare rock cover aggregate (drill and blast) TIA-001 | D25: m3 | E25: 510000 | F25: TMAC | G25: 23.16 | H25: =G25*E25 -> 11811600 | I25: 0.5 | J25: =H25*I25 -> 5905800 | K25: =+H25*(1-I25) -> 5905800
C26: Place 300 mm cover for TIA-001 | D26: m3 | E26: 510000 | F26: TMAC | G26: 8.94 | H26: 4559400 | I26: 0.5 | J26: 2279700 | K26: 2279700
C27: Install nonwoven geotextile at TIA-005 | D27: m2 | E27: 0 | F27: TMAC | G27: 30.02 | H27: 0 | I27: 0.5 | J27: 0 | K27: 0 | M27: had double counted this item in earlier estimate.
C28: Place Rip Rap over NWG at TIA-005 | D28: m3 | E28: 24700 | F28: TMAC | G28: 8.82 | H28: 217854 | I28: 0.5 | J28: 108927 | K28: 108927
C29: Produce and Place Rip Rap in channel | D29: m3 | E29: 18150 | F29: TMAC | G29: =8.94+23.16 -> 32.1 | H29: 582615 | I29: 0.5 | J29: 291307.5 | K29: 291307.5
C30: Windy Development Area cover | D30: m3 | E30: 665 | F30: TMAC | G30: 12.69 | H30: 8438.85 | I30: 0.5 | J30: 4219.425 | K30: 4219.425
B31: Vegetate | D31: ha | F31: VHF | G31: 4000 | H31: 0 | J31: 0 | K31: 0
B32: Other | D32: m3 | F32: TMAC | G32: 24.71 | H32: =G32*E32 -> 0 | I32: 0.5 | J32: =H32*I32 -> 0 | K32: =+H32*(1-I32) -> 0
B33: BURY PAG ROCK
B34: Relocate PAG rock | D34: m3 | F34: =NA() ->  | G34: =IF(ISNA(F34),0,INDEX(IF(UPPER(RIGHT(F34,1))=Low,UnitCostLow, IF(UPPER(RIGHT(F34,1))=High,UnitCostHigh,UnitCostSpecified)),MATCH(UPPER(LEFT(F34,LEN(F34)-1)),CostCode,0))) -> 0 | H34: =G34*E34 -> 0 | J34: 0 | K34: 0
B35: Place cover over PAG rock | D35: m3 | F35: =NA() ->  | G35: =IF(ISNA(F35),0,INDEX(IF(UPPER(RIGHT(F35,1))=Low,UnitCostLow, IF(UPPER(RIGHT(F35,1))=High,UnitCostHigh,UnitCostSpecified)),MATCH(UPPER(LEFT(F35,LEN(F35)-1)),CostCode,0))) -> 0 | H35: =G35*E35 -> 0 | J35: 0 | K35: 0
B36: Raise crest of dam | D36: m3 | F36: =NA() ->  | G36: =IF(ISNA(F36),0,INDEX(IF(UPPER(RIGHT(F36,1))=Low,UnitCostLow, IF(UPPER(RIGHT(F36,1))=High,UnitCostHigh,UnitCostSpecified)),MATCH(UPPER(LEFT(F36,LEN(F36)-1)),CostCode,0))) -> 0 | H36: =G36*E36 -> 0 | J36: 0 | K36: 0
B37: Other | F37: =NA() ->  | G37: =IF(ISNA(F37),0,INDEX(IF(UPPER(RIGHT(F37,1))=Low,UnitCostLow, IF(UPPER(RIGHT(F37,1))=High,UnitCostHigh,UnitCostSpecified)),MATCH(UPPER(LEFT(F37,LEN(F37)-1)),CostCode,0))) -> 0 | H37: =G37*E37 -> 0 | J37: 0 | K37: 0
B38: STABILIZE DECANT SYSTEM
B39: Excavate and replace | D39: m3 | F39: =NA() ->  | G39: =IF(ISNA(F39),0,INDEX(IF(UPPER(RIGHT(F39,1))=Low,UnitCostLow, IF(UPPER(RIGHT(F39,1))=High,UnitCostHigh,UnitCostSpecified)),MATCH(UPPER(LEFT(F39,LEN(F39)-1)),CostCode,0))) -> 0 | H39: =G39*E39 -> 0 | J39: =H39*I39 -> 0 | K39: =+H39*(1-I39) -> 0
B40: Plug/backfill with concrete or clay | D40: m3 | F40: =NA() ->  | G40: =IF(ISNA(F40),0,INDEX(IF(UPPER(RIGHT(F40,1))=Low,UnitCostLow, IF(UPPER(RIGHT(F40,1))=High,UnitCostHigh,UnitCostSpecified)),MATCH(UPPER(LEFT(F40,LEN(F40)-1)),CostCode,0))) -> 0 | H40: =G40*E40 -> 0 | J40: =H40*I40 -> 0 | K40: =+H40*(1-I40) -> 0
B41: Other | F41: =NA() ->  | G41: =IF(ISNA(F41),0,INDEX(IF(UPPER(RIGHT(F41,1))=Low,UnitCostLow, IF(UPPER(RIGHT(F41,1))=High,UnitCostHigh,UnitCostSpecified)),MATCH(UPPER(LEFT(F41,LEN(F41)-1)),CostCode,0))) -> 0 | H41: =G41*E41 -> 0 | J41: =H41*I41 -> 0 | K41: =+H41*(1-I41) -> 0
B42: REMOVE TAILINGS DISCHARGE
B43: Cyclones | D43: m3 | F43: =NA() ->  | G43: =IF(ISNA(F43),0,INDEX(IF(UPPER(RIGHT(F43,1))=Low,UnitCostLow, IF(UPPER(RIGHT(F43,1))=High,UnitCostHigh,UnitCostSpecified)),MATCH(UPPER(LEFT(F43,LEN(F43)-1)),CostCode,0))) -> 0 | H43: =G43*E43 -> 0 | J43: =H43*I43 -> 0 | K43: =+H43*(1-I43) -> 0
B44: Pipe | C44: SR-002 tailings pipeline from Doris to TIA | D44: m | E44: 2170 | F44: TMAC | G44: =10.23+3.26 -> 13.49 | H44: =G44*E44 -> 29273.3 | I44: 0.5 | J44: =H44*I44 -> 14636.65 | K44: =+H44*(1-I44) -> 14636.65 | M44: Added unit rate for haulage to landfill
B45: Remove reclaim barge | D45: allow | F45: =NA() ->  | G45: =IF(ISNA(F45),0,INDEX(IF(UPPER(RIGHT(F45,1))=Low,UnitCostLow, IF(UPPER(RIGHT(F45,1))=High,UnitCostHigh,UnitCostSpecified)),MATCH(UPPER(LEFT(F45,LEN(F45)-1)),CostCode,0))) -> 0 | H45: =G45*E45 -> 0 | J45: =H45*I45 -> 0 | K45: =+H45*(1-I45) -> 0
B46: CONSTRUCT DIVERSION DITCHES
B47: Excavate ditches -soil | D47: m3 | F47: =NA() ->  | G47: =IF(ISNA(F47),0,INDEX(IF(UPPER(RIGHT(F47,1))=Low,UnitCostLow, IF(UPPER(RIGHT(F47,1))=High,UnitCostHigh,UnitCostSpecified)),MATCH(UPPER(LEFT(F47,LEN(F47)-1)),CostCode,0))) -> 0 | H47: =G47*E47 -> 0 | J47: =H47*I47 -> 0 | K47: =+H47*(1-I47) -> 0
B48: Excavate ditches -rock | D48: m3 | F48: =NA() ->  | G48: =IF(ISNA(F48),0,INDEX(IF(UPPER(RIGHT(F48,1))=Low,UnitCostLow, IF(UPPER(RIGHT(F48,1))=High,UnitCostHigh,UnitCostSpecified)),MATCH(UPPER(LEFT(F48,LEN(F48)-1)),CostCode,0))) -> 0 | H48: =G48*E48 -> 0 | J48: =H48*I48 -> 0 | K48: =+H48*(1-I48) -> 0
B49: Rip rap in channel base | D49: m3 | F49: =NA() ->  | G49: =IF(ISNA(F49),0,INDEX(IF(UPPER(RIGHT(F49,1))=Low,UnitCostLow, IF(UPPER(RIGHT(F49,1))=High,UnitCostHigh,UnitCostSpecified)),MATCH(UPPER(LEFT(F49,LEN(F49)-1)),CostCode,0))) -> 0 | H49: =G49*E49 -> 0 | J49: =H49*I49 -> 0 | K49: =+H49*(1-I49) -> 0
B50: FLOOD TAILINGS
B51: Doze tailings to final contour | D51: m3 | F51: =NA() ->  | G51: =IF(ISNA(F51),0,INDEX(IF(UPPER(RIGHT(F51,1))=Low,UnitCostLow, IF(UPPER(RIGHT(F51,1))=High,UnitCostHigh,UnitCostSpecified)),MATCH(UPPER(LEFT(F51,LEN(F51)-1)),CostCode,0))) -> 0 | H51: =G51*E51 -> 0 | J51: 0 | K51: 0
B52: Raise crest of dam | D52: m3 | F52: =NA() ->  | G52: =IF(ISNA(F52),0,INDEX(IF(UPPER(RIGHT(F52,1))=Low,UnitCostLow, IF(UPPER(RIGHT(F52,1))=High,UnitCostHigh,UnitCostSpecified)),MATCH(UPPER(LEFT(F52,LEN(F52)-1)),CostCode,0))) -> 0 | H52: =G52*E52 -> 0 | J52: 0 | K52: 0
B53: Other | F53: =NA() ->  | G53: =IF(ISNA(F53),0,INDEX(IF(UPPER(RIGHT(F53,1))=Low,UnitCostLow, IF(UPPER(RIGHT(F53,1))=High,UnitCostHigh,UnitCostSpecified)),MATCH(UPPER(LEFT(F53,LEN(F53)-1)),CostCode,0))) -> 0 | H53: =G53*E53 -> 0 | J53: 0 | K53: 0
B54: UPGRADE SPILLWAY
B55: Excavate channel, rock | D55: m3 | F55: =NA() ->  | G55: =IF(ISNA(F55),0,INDEX(IF(UPPER(RIGHT(F55,1))=Low,UnitCostLow, IF(UPPER(RIGHT(F55,1))=High,UnitCostHigh,UnitCostSpecified)),MATCH(UPPER(LEFT(F55,LEN(F55)-1)),CostCode,0))) -> 0 | H55: =G55*E55 -> 0 | J55: 0 | K55: 0
B56: Excavate channel, soil | D56: m3 | F56: SC3H | G56: =IF(ISNA(F56),0,INDEX(IF(UPPER(RIGHT(F56,1))=Low,UnitCostLow, IF(UPPER(RIGHT(F56,1))=High,UnitCostHigh,UnitCostSpecified)),MATCH(UPPER(LEFT(F56,LEN(F56)-1)),CostCode,0))) -> 14.2 | H56: =G56*E56 -> 0 | J56: 0 | K56: 0
B57: Concrete | D57: m3 | F57: =NA() ->  | G57: =IF(ISNA(F57),0,INDEX(IF(UPPER(RIGHT(F57,1))=Low,UnitCostLow, IF(UPPER(RIGHT(F57,1))=High,UnitCostHigh,UnitCostSpecified)),MATCH(UPPER(LEFT(F57,LEN(F57)-1)),CostCode,0))) -> 0 | H57: =G57*E57 -> 0 | J57: 0 | K57: 0
B58: Rip rap | D58: m3 | F58: RB4H | G58: =IF(ISNA(F58),0,INDEX(IF(UPPER(RIGHT(F58,1))=Low,UnitCostLow, IF(UPPER(RIGHT(F58,1))=High,UnitCostHigh,UnitCostSpecified)),MATCH(UPPER(LEFT(F58,LEN(F58)-1)),CostCode,0))) -> 30.75 | H58: =G58*E58 -> 0 | J58: 0 | K58: 0
B59: Geotextile | D59: m2 | F59: GSTL | G59: =IF(ISNA(F59),0,INDEX(IF(UPPER(RIGHT(F59,1))=Low,UnitCostLow, IF(UPPER(RIGHT(F59,1))=High,UnitCostHigh,UnitCostSpecified)),MATCH(UPPER(LEFT(F59,LEN(F59)-1)),CostCode,0))) -> 3.44 | H59: =G59*E59 -> 0 | J59: 0 | K59: 0
B60: CONSTRUCT SEEPAGE COLLECTION POND
B61: Excavate seepage collection pond | D61: m3 | F61: =NA() ->  | G61: =IF(ISNA(F61),0,INDEX(IF(UPPER(RIGHT(F61,1))=Low,UnitCostLow, IF(UPPER(RIGHT(F61,1))=High,UnitCostHigh,UnitCostSpecified)),MATCH(UPPER(LEFT(F61,LEN(F61)-1)),CostCode,0))) -> 0 | H61: =G61*E61 -> 0 | J61: =H61*I61 -> 0 | K61: =+H61*(1-I61) -> 0
B62: Doze & spread excavated material | D62: m3 | F62: =NA() ->  | G62: 0 | H62: 0 | J62: 0 | K62: 0
B63: Vegetate spread material | D63: ha | F63: =NA() ->  | G63: 0 | H63: 0 | J63: 0 | K63: 0
B64: Bedding layer | D64: m3 | F64: =NA() ->  | G64: 0 | H64: 0 | J64: 0 | K64: 0
B65: Supply geomembrane | D65: m2 | F65: =NA() ->  | G65: 0 | H65: 0 | J65: 0 | K65: 0
B66: Install geomembrane | D66: m2 | F66: =NA() ->  | G66: 0 | H66: 0 | J66: 0 | K66: 0
B67: Install Silt Fencing | C67: Patch Lake Devleopment Area | D67: LS | E67: 1 | F67: TMAC | G67: 2500 | H67: =G67*E67 -> 2500 | I67: 50 | J67: =H67*I67 -> 125000 | K67: =+H67*(1-I67) -> -122500
B68: Erosion protection layer | D68: m3 | F68: =NA() ->  | G68: 0 | H68: 0 | J68: 0 | K68: 0
B69: INSTALL GROUNDWATER COLLECTION SYSTEM
B70: Excavate/install sumps | D70: m3 | F70: =NA() ->  | G70: =IF(ISNA(F70),0,INDEX(IF(UPPER(RIGHT(F70,1))=Low,UnitCostLow, IF(UPPER(RIGHT(F70,1))=High,UnitCostHigh,UnitCostSpecified)),MATCH(UPPER(LEFT(F70,LEN(F70)-1)),CostCode,0))) -> 0 | H70: =G70*E70 -> 0 | J70: =H70*I70 -> 0 | K70: =+H70*(1-I70) -> 0
B71: Install pumping wells | D71: m3 | F71: =NA() ->  | G71: =IF(ISNA(F71),0,INDEX(IF(UPPER(RIGHT(F71,1))=Low,UnitCostLow, IF(UPPER(RIGHT(F71,1))=High,UnitCostHigh,UnitCostSpecified)),MATCH(UPPER(LEFT(F71,LEN(F71)-1)),CostCode,0))) -> 0 | H71: =G71*E71 -> 0 | J71: =H71*I71 -> 0 | K71: =+H71*(1-I71) -> 0
B72: Install pumps/pipelines/power supply | D72: LS | F72: =NA() ->  | G72: =IF(ISNA(F72),0,INDEX(IF(UPPER(RIGHT(F72,1))=Low,UnitCostLow, IF(UPPER(RIGHT(F72,1))=High,UnitCostHigh,UnitCostSpecified)),MATCH(UPPER(LEFT(F72,LEN(F72)-1)),CostCode,0))) -> 0 | H72: =G72*E72 -> 0 | J72: =H72*I72 -> 0 | K72: =+H72*(1-I72) -> 0
B73: SPECIALIZED ITEMS
B74: Install permanent instrumentation, supply & technican | D74: each | F74: =NA() ->  | G74: 30000 | H74: =G74*E74 -> 0 | J74: =H74*I74 -> 0 | K74: =+H74*(1-I74) -> 0
B75: Install permanent instrumentation, drilling | D75: each | F75: =NA() ->  | G75: 30000 | H75: =G75*E75 -> 0 | K75: =+H75*(1-I75) -> 0
B76: TREAT SEEPAGE - see "Water Management" and "Water Treatment"
B77: TREAT SUPERNATANT
B78: Pump water (to pit, U/G) | D78: m3 | F78: =NA() ->  | G78: =IF(ISNA(F78),0,INDEX(IF(UPPER(RIGHT(F78,1))=Low,UnitCostLow, IF(UPPER(RIGHT(F78,1))=High,UnitCostHigh,UnitCostSpecified)),MATCH(UPPER(LEFT(F78,LEN(F78)-1)),CostCode,0))) -> 0 | H78: =G78*E78 -> 0 | J78: =H78*I78 -> 0 | K78: =+H78*(1-I78) -> 0
B79: Equipment maintenance and parts | D79: allow | F79: =NA() ->  | G79: 100000 | H79: =G79*E79 -> 0 | J79: =H79*I79 -> 0 | K79: =+H79*(1-I79) -> 0
B80: Supply reagents | D80: tonne | F80: =NA() ->  | G80: =IF(ISNA(F80),0,INDEX(IF(UPPER(RIGHT(F80,1))=Low,UnitCostLow, IF(UPPER(RIGHT(F80,1))=High,UnitCostHigh,UnitCostSpecified)),MATCH(UPPER(LEFT(F80,LEN(F80)-1)),CostCode,0))) -> 0 | H80: =G80*E80 -> 0 | J80: =H80*I80 -> 0 | K80: =+H80*(1-I80) -> 0
G81: Annual treatment costs | H81: =SUM(H78:H80)+0.0001 -> 0.0001
B82: Number of years of treatment | D82: years
G83: Total treatment costs | H83: =H81*E82 -> 0 | K83: =H83 -> 0
G84: Total | H84: =SUM(H5:H75)+H83+0.0001 -> 18850157.95 | J84: =SUM(J5:J75)+J83 -> 9548828.975 | K84: =SUM(K5:K75)+K83 -> 9301328.975
G85: % of Total | J85: =J84/H84 -> 0.5065649317 | K85: =K84/H84 -> 0.4934350683
B86: * for construction of passive treatment system refer to "Water Management"

Sheet Rock Pile
A1: 1 | B1: Rock Pile Name: | C1: Doris - Madrid
B3: ACTIVITY/MATERIAL | C3: Notes | D3: Units | E3: Quantity | F3: Cost Code | G3: Unit Cost | H3: Cost | I3: % Land | J3: Land Cost | K3: Water Cost
B4: STABILIZE SLOPES
B5: Grade Waste Rock Pile | D5: m3 | F5: TMAC | G5: 1.23 | H5: =G5*E5 -> 0 | I5: 0.5 | J5: =H5*I5 -> 0 | K5: =+H5*(1-I5) -> 0
B6: Grade Overburden | C6: Roberts Bay Overburden Pile RB-007 | D6: m2 | E6: 14205 | F6: DSl | G6: =IF(ISNA(F6),0,INDEX(IF(UPPER(RIGHT(F6,1))=Low,UnitCostLow, IF(UPPER(RIGHT(F6,1))=High,UnitCostHigh,UnitCostSpecified)),MATCH(UPPER(LEFT(F6,LEN(F6)-1)),CostCode,0))) -> 0.95 | H6: 13494.75 | I6: 0.5 | J6: 6747.375 | K6: 6747.375
C7: Quarry 2 Overburden Pile Q2-002 (slopes to 3:1) | D7: m2 | E7: 8785 | F7: TMAC | G7: 3.27 | H7: =G7*E7 -> 28726.95 | I7: 0.5 | J7: =H7*I7 -> 14363.475 | K7: =+H7*(1-I7) -> 14363.475
C8: Quarry 2 Overburden Pile Q2-002 (top) | D8: m2 | E8: 18440 | F8: DSl | G8: =IF(ISNA(F8),0,INDEX(IF(UPPER(RIGHT(F8,1))=Low,UnitCostLow, IF(UPPER(RIGHT(F8,1))=High,UnitCostHigh,UnitCostSpecified)),MATCH(UPPER(LEFT(F8,LEN(F8)-1)),CostCode,0))) -> 0.95 | H8: =G8*E8 -> 17518 | I8: 0.5 | J8: =H8*I8 -> 8759 | K8: =+H8*(1-I8) -> 8759 | M8: Don’t agree with SRK rate of $0.01 | N8: assume a dozer being used.
C9: Patch Lake Tank Farm PLA-001 regrade (dozer) | D9: m2 | E9: 200 | F9: TMAC | G9: 1.23 | H9: 246 | I9: 0.5 | J9: 123 | K9: 123
C10: Patch Lake Tank Farm PLA-001 regrade (excavator) | D10: m2 | E10: 3630 | F10: TMAC | G10: 5.5 | H10: 19965 | I10: 0.5 | J10: 9982.5 | K10: 9982.5
C11: Doris Windy AWR Explosive facility regrade (DM-010) | D11: m2 | E11: 2805 | F11: DSl | G11: =IF(ISNA(F11),0,INDEX(IF(UPPER(RIGHT(F11,1))=Low,UnitCostLow, IF(UPPER(RIGHT(F11,1))=High,UnitCostHigh,UnitCostSpecified)),MATCH(UPPER(LEFT(F11,LEN(F11)-1)),CostCode,0))) -> 0.95 | H11: 2664.75 | I11: 0.5 | J11: 1332.375 | K11: 1332.375 | M11: Don’t agree with SRK rate of $0.01 | N11: assume a dozer being used.
C12: Windy camp Regrading Bldg foot prints (WC-002) | D12: m2 | E12: 1248 | F12: DSl | G12: 0.95 | H12: 1185.6 | I12: 0.5 | J12: 592.8 | K12: 592.8
B13: Grade Laydown Areas | C13: Roberts bay Laydown Area RB-006 | D13: m2 | E13: 63300 | F13: DSl | G13: 0.95 | H13: 60135 | I13: 0.5 | J13: 30067.5 | K13: 30067.5 | M13: Don’t agree with SRK rate of $0.01 | N13: assume a dozer being used.
C14: Reagent Pad - Equipment (RP-001) | D14: m2 | E14: 35244 | F14: DSl | G14: 0.95 | H14: 33481.8 | I14: 0.5 | J14: 16740.9 | K14: 16740.9 | M14: Don’t agree with SRK rate of $0.01 | N14: assume a dozer being used.
C15: Reagent Pad - Material (RP-002) | D15: m2 | E15: 25421 | F15: DSl | G15: 0.95 | H15: =G15*E15 -> 24149.95 | I15: 0.5 | J15: =H15*I15 -> 12074.975 | K15: =+H15*(1-I15) -> 12074.975 | M15: Don’t agree with SRK rate of $0.01 | N15: assume a dozer being used.
C16: Reagent Pad - ANFO Storage Area (RP-003) | D16: m2 | E16: 2481 | F16: DSl | G16: 0.95 | H16: 2356.95 | I16: 0.5 | J16: 1178.475 | K16: 1178.475 | M16: Don’t agree with SRK rate of $0.01 | N16: assume a dozer being used.
C17: Waste Management Landfarm (WM-001) | D17: m2 | E17: 4385 | F17: DSl | G17: 0.95 | H17: 4165.75 | I17: 0.5 | J17: 2082.875 | K17: 2082.875 | M17: Don’t agree with SRK rate of $0.01 | N17: assume a dozer being used.
C18: Waste Management Batch Plant Pad (WM-002) | D18: m2 | E18: 740 | F18: DSl | G18: 0.95 | H18: =G18*E18 -> 703 | I18: 0.5 | J18: =H18*I18 -> 351.5 | K18: =+H18*(1-I18) -> 351.5 | M18: Don’t agree with SRK rate of $0.01 | N18: assume a dozer being used.
C19: Waste Management Burn Pan Pad (WM-003) | D19: m2 | E19: 400 | F19: DSl | G19: 0.95 | H19: 380 | I19: 0.5 | J19: 190 | K19: 190 | M19: Don’t agree with SRK rate of $0.01 | N19: assume a dozer being used.
B20: Grade Old Camp Ore Pile | D20: m3 | F20: TMAC | G20: 1.23 | H20: 0 | I20: 0.5 | J20: 0 | K20: 0
B21: Grade Ore Stockpile | D21: m3 | F21: =NA() ->  | G21: =IF(ISNA(F21),0,INDEX(IF(UPPER(RIGHT(F21,1))=Low,UnitCostLow, IF(UPPER(RIGHT(F21,1))=High,UnitCostHigh,UnitCostSpecified)),MATCH(UPPER(LEFT(F21,LEN(F21)-1)),CostCode,0))) -> 0 | H21: 0 | J21: 0 | K21: 0
B22: Buttress | C22: Windy Tank Farm (WC-001) | D22: m3 | E22: 600 | F22: TMAC | G22: 12.27 | H22: 7362 | I22: 0.5 | J22: 3681 | K22: 3681
B23: Toe buttress, fill mat'l A | D23: m3 | F23: =NA() ->  | G23: =IF(ISNA(F23),0,INDEX(IF(UPPER(RIGHT(F23,1))=Low,UnitCostLow, IF(UPPER(RIGHT(F23,1))=High,UnitCostHigh,UnitCostSpecified)),MATCH(UPPER(LEFT(F23,LEN(F23)-1)),CostCode,0))) -> 0 | H23: 0 | J23: 0 | K23: 0
B24: Toe buttress, fill mat'l B | D24: m3 | F24: =NA() ->  | G24: =IF(ISNA(F24),0,INDEX(IF(UPPER(RIGHT(F24,1))=Low,UnitCostLow, IF(UPPER(RIGHT(F24,1))=High,UnitCostHigh,UnitCostSpecified)),MATCH(UPPER(LEFT(F24,LEN(F24)-1)),CostCode,0))) -> 0 | H24: 0 | J24: 0 | K24: 0
B25: Other | F25: =NA() ->  | G25: =IF(ISNA(F25),0,INDEX(IF(UPPER(RIGHT(F25,1))=Low,UnitCostLow, IF(UPPER(RIGHT(F25,1))=High,UnitCostHigh,UnitCostSpecified)),MATCH(UPPER(LEFT(F25,LEN(F25)-1)),CostCode,0))) -> 0 | H25: 0 | J25: 0 | K25: 0
B26: ROCK COVER
B27: Subgrade preparation - doze surface | D27: m3 | F27: =NA() ->  | G27: =IF(ISNA(F27),0,INDEX(IF(UPPER(RIGHT(F27,1))=Low,UnitCostLow, IF(UPPER(RIGHT(F27,1))=High,UnitCostHigh,UnitCostSpecified)),MATCH(UPPER(LEFT(F27,LEN(F27)-1)),CostCode,0))) -> 0 | H27: =G27*E27 -> 0 | J27: =H27*I27 -> 0 | K27: =+H27*(1-I27) -> 0
B28: Soil cover - excavate,haul,spread&compact | D28: m3 | F28: SB1L | G28: 4.3 | H28: 0 | J28: 0 | K28: 0
B29: Prepare debris for capping | D29: m3 | F29: TMAC | G29: 86.72 | H29: =G29*E29 -> 0 | J29: =H29*I29 -> 0 | K29: =+H29*(1-I29) -> 0
B30: Prepare aggregate | D30: m3 | F30: TMAC | G30: 24.71 | H30: =G30*E30 -> 0 | J30: =H30*I30 -> 0 | K30: =+H30*(1-I30) -> 0
B31: Rock cover - excavate,haul & spread | D31: m3 | F31: TMAC | G31: 16.35 | H31: 0 | J31: 0 | K31: 0
B32: Excavate downslope drainage channel & chute | D32: m3 | F32: =NA() ->  | G32: 0 | H32: 0 | J32: 0 | K32: 0
B33: Rip rap drainage channel and chute | D33: m3 | F33: =NA() ->  | G33: 0 | H33: 0 | J33: 0 | K33: 0
B34: Vegetate | D34: ha | F34: =NA() ->  | G34: 0 | H34: 0 | J34: 0 | K34: 0
B35: Other | C35: Patch Lake Tank Farm PLA-001 cover 1m | D35: m3 | E35: 3000 | F35: TMAC | G35: 24.53 | H35: 73590 | I35: 0.5 | J35: 36795 | K35: 36795
B36: VERY LOW PERMEABILITY COVER (in addition to above)
B37: Liner subgrade preparation - compact | D37: m2 | F37: =NA() ->  | G37: =IF(ISNA(F37),0,INDEX(IF(UPPER(RIGHT(F37,1))=Low,UnitCostLow, IF(UPPER(RIGHT(F37,1))=High,UnitCostHigh,UnitCostSpecified)),MATCH(UPPER(LEFT(F37,LEN(F37)-1)),CostCode,0))) -> 0 | H37: =G37*E37 -> 0 | J37: =H37*I37 -> 0 | K37: =+H37*(1-I37) -> 0
B38: Supply geomembrame | D38: m2 | F38: =NA() ->  | G38: =IF(ISNA(F38),0,INDEX(IF(UPPER(RIGHT(F38,1))=Low,UnitCostLow, IF(UPPER(RIGHT(F38,1))=High,UnitCostHigh,UnitCostSpecified)),MATCH(UPPER(LEFT(F38,LEN(F38)-1)),CostCode,0))) -> 0 | H38: =G38*E38 -> 0 | J38: 0 | K38: 0
B39: Install geomembrane | D39: m2 | F39: =NA() ->  | G39: =IF(ISNA(F39),0,INDEX(IF(UPPER(RIGHT(F39,1))=Low,UnitCostLow, IF(UPPER(RIGHT(F39,1))=High,UnitCostHigh,UnitCostSpecified)),MATCH(UPPER(LEFT(F39,LEN(F39)-1)),CostCode,0))) -> 0 | H39: =G39*E39 -> 0 | J39: 0 | K39: 0
B40: Protective cover - excavate,haul,spread&compact | D40: m3 | F40: =NA() ->  | G40: 0 | H40: 0 | J40: 0 | K40: 0
B41: Vegetate | D41: ha | F41: =NA() ->  | G41: 0 | H41: 0 | J41: 0 | K41: 0
B42: Install infiltration/seepage instrumentation | D42: allow | F42: =NA() ->  | G42: 0 | H42: 0 | J42: 0 | K42: 0
B43: CONSTRUCT DIVERSION DITCHES
B44: Excavate ditches -soil | D44: m3 | F44: =NA() ->  | G44: =IF(ISNA(F44),0,INDEX(IF(UPPER(RIGHT(F44,1))=Low,UnitCostLow, IF(UPPER(RIGHT(F44,1))=High,UnitCostHigh,UnitCostSpecified)),MATCH(UPPER(LEFT(F44,LEN(F44)-1)),CostCode,0))) -> 0 | H44: =G44*E44 -> 0 | J44: =H44*I44 -> 0 | K44: =+H44*(1-I44) -> 0
B45: Excavate ditches -rock | D45: m3 | F45: =NA() ->  | G45: =IF(ISNA(F45),0,INDEX(IF(UPPER(RIGHT(F45,1))=Low,UnitCostLow, IF(UPPER(RIGHT(F45,1))=High,UnitCostHigh,UnitCostSpecified)),MATCH(UPPER(LEFT(F45,LEN(F45)-1)),CostCode,0))) -> 0 | H45: =G45*E45 -> 0 | J45: =H45*I45 -> 0 | K45: =+H45*(1-I45) -> 0
B46: Rip rap in channel base
B48: CONSTRUCT SEEPAGE COLLECTION POND
B49: Excavate seepage collection pond | D49: m3 | F49: =NA() ->  | G49: 0 | H49: 0 | J49: =H49*I49 -> 0 | K49: =+H49*(1-I49) -> 0
B50: Doze & spread excavated material | D50: m3 | F50: =NA() ->  | G50: 0 | H50: 0 | J50: 0 | K50: 0
B51: Vegetate spread material | D51: ha | F51: =NA() ->  | G51: 0 | H51: 0 | J51: 0 | K51: 0
B52: Bedding layer | D52: m3 | F52: =NA() ->  | G52: 0 | H52: 0 | J52: 0 | K52: 0
B53: Supply geomembrane | D53: m2 | F53: =NA() ->  | G53: 0 | H53: 0 | J53: 0 | K53: 0
B54: Install geomembrane | D54: m2 | F54: =NA() ->  | G54: 0 | H54: 0 | J54: 0 | K54: 0
B55: Erosion protection layer | D55: m3 | F55: =NA() ->  | G55: 0 | H55: 0 | J55: 0 | K55: 0
B56: INSTALL GROUNDWATER COLLECTION SYSTEM
B57: Excavate/install sumps | D57: m3 | F57: =NA() ->  | G57: =IF(ISNA(F57),0,INDEX(IF(UPPER(RIGHT(F57,1))=Low,UnitCostLow, IF(UPPER(RIGHT(F57,1))=High,UnitCostHigh,UnitCostSpecified)),MATCH(UPPER(LEFT(F57,LEN(F57)-1)),CostCode,0))) -> 0 | H57: =G57*E57 -> 0 | J57: =H57*I57 -> 0 | K57: =+H57*(1-I57) -> 0
B58: Install pumping wells | D58: m3 | F58: =NA() ->  | G58: =IF(ISNA(F58),0,INDEX(IF(UPPER(RIGHT(F58,1))=Low,UnitCostLow, IF(UPPER(RIGHT(F58,1))=High,UnitCostHigh,UnitCostSpecified)),MATCH(UPPER(LEFT(F58,LEN(F58)-1)),CostCode,0))) -> 0 | H58: =G58*E58 -> 0 | J58: =H58*I58 -> 0 | K58: =+H58*(1-I58) -> 0
B59: Install pumps/pipelines/power supply | D59: allow | F59: =NA() ->  | G59: =IF(ISNA(F59),0,INDEX(IF(UPPER(RIGHT(F59,1))=Low,UnitCostLow, IF(UPPER(RIGHT(F59,1))=High,UnitCostHigh,UnitCostSpecified)),MATCH(UPPER(LEFT(F59,LEN(F59)-1)),CostCode,0))) -> 0 | H59: =G59*E59 -> 0 | J59: =H59*I59 -> 0 | K59: =+H59*(1-I59) -> 0
B60: RELOCATE DUMPS
B61: Load, haul, dump or doze | D61: m3 | F61: SC3L | G61: =IF(ISNA(F61),0,INDEX(IF(UPPER(RIGHT(F61,1))=Low,UnitCostLow, IF(UPPER(RIGHT(F61,1))=High,UnitCostHigh,UnitCostSpecified)),MATCH(UPPER(LEFT(F61,LEN(F61)-1)),CostCode,0))) -> 8.9 | H61: =G61*E61 -> 0 | J61: =H61*I61 -> 0 | K61: =+H61*(1-I61) -> 0
B62: Add lime | D62: tonne | F62: =NA() ->  | G62: =IF(ISNA(F62),0,INDEX(IF(UPPER(RIGHT(F62,1))=Low,UnitCostLow, IF(UPPER(RIGHT(F62,1))=High,UnitCostHigh,UnitCostSpecified)),MATCH(UPPER(LEFT(F62,LEN(F62)-1)),CostCode,0))) -> 0 | H62: =G62*E62 -> 0 | J62: =H62*I62 -> 0 | K62: =+H62*(1-I62) -> 0
B63: Contour reclaimed area | D63: ha | F63: =NA() ->  | G63: =IF(ISNA(F63),0,INDEX(IF(UPPER(RIGHT(F63,1))=Low,UnitCostLow, IF(UPPER(RIGHT(F63,1))=High,UnitCostHigh,UnitCostSpecified)),MATCH(UPPER(LEFT(F63,LEN(F63)-1)),CostCode,0))) -> 0 | H63: =G63*E63 -> 0 | J63: =H63*I63 -> 0 | K63: =+H63*(1-I63) -> 0
B64: Other | D64: allow | F64: =NA() ->  | G64: 20000 | H64: =G64*E64 -> 0 | J64: =H64*I64 -> 0 | K64: =+H64*(1-I64) -> 0
B65: SPECIALIZED ITEMS
B66: Install permanent instrumentation | D66: allow | F66: Ea | G66: 50000 | H66: =G66*E66 -> 0 | J66: =H66*I66 -> 0 | K66: =+H66*(1-I66) -> 0
B67: Install permanent instrumentation, drilling | D67: each | F67: =NA() ->  | G67: =IF(ISNA(F67),0,INDEX(IF(UPPER(RIGHT(F67,1))=Low,UnitCostLow, IF(UPPER(RIGHT(F67,1))=High,UnitCostHigh,UnitCostSpecified)),MATCH(UPPER(LEFT(F67,LEN(F67)-1)),CostCode,0))) -> 0 | H67: =G67*E67 -> 0 | J67: =H67*I67 -> 0 | K67: =+H67*(1-I67) -> 0
B68: TREAT ROCK PILE SEEPAGE - see "Water Management"
B69: HEAP LEACH SEEPAGE TREATMENT - Cyanide Detox
B70: Cyanide destruction water treatment pumping | D70: m3 | F70: =NA() ->  | G70: =IF(ISNA(F70),0,INDEX(IF(UPPER(RIGHT(F70,1))=Low,UnitCostLow, IF(UPPER(RIGHT(F70,1))=High,UnitCostHigh,UnitCostSpecified)),MATCH(UPPER(LEFT(F70,LEN(F70)-1)),CostCode,0))) -> 0 | H70: =G70*E70 -> 0 | J70: =H70*I70 -> 0 | K70: =+H70*(1-I70) -> 0
B71: Reagents | D71: tonnes | F71: =NA() ->  | G71: =IF(ISNA(F71),0,INDEX(IF(UPPER(RIGHT(F71,1))=Low,UnitCostLow, IF(UPPER(RIGHT(F71,1))=High,UnitCostHigh,UnitCostSpecified)),MATCH(UPPER(LEFT(F71,LEN(F71)-1)),CostCode,0))) -> 0 | H71: =G71*E71 -> 0 | J71: =H71*I71 -> 0 | K71: =+H71*(1-I71) -> 0
B72: Electrician/mechanic to maintain treatment plant | D72: allow | F72: =NA() ->  | G72: =IF(ISNA(F72),0,INDEX(IF(UPPER(RIGHT(F72,1))=Low,UnitCostLow, IF(UPPER(RIGHT(F72,1))=High,UnitCostHigh,UnitCostSpecified)),MATCH(UPPER(LEFT(F72,LEN(F72)-1)),CostCode,0))) -> 0 | H72: =G72*E72 -> 0 | J72: =H72*I72 -> 0 | K72: =+H72*(1-I72) -> 0
B73: Equipment maintenance and parts | D73: allow | F73: =NA() ->  | G73: =IF(ISNA(F73),0,INDEX(IF(UPPER(RIGHT(F73,1))=Low,UnitCostLow, IF(UPPER(RIGHT(F73,1))=High,UnitCostHigh,UnitCostSpecified)),MATCH(UPPER(LEFT(F73,LEN(F73)-1)),CostCode,0))) -> 0 | H73: =G73*E73 -> 0 | J73: =H73*I73 -> 0 | K73: =+H73*(1-I73) -> 0
G74: Annual treatment costs | H74: =SUM(H70:H73)+0.0001 -> 0.0001
B75: Number of years of treatment | D75: years
G76: Total treatment costs | H76: =H74*E75 -> 0 | K76: =H76 -> 0
B77: HEAP LEACH SEEPAGE TREATMENT - ARD/ML**
B78: Upgrade/modify pumping system - report to WTP | D78: allow | F78: =NA() ->  | G78: =IF(ISNA(F78),0,INDEX(IF(UPPER(RIGHT(F78,1))=Low,UnitCostLow, IF(UPPER(RIGHT(F78,1))=High,UnitCostHigh,UnitCostSpecified)),MATCH(UPPER(LEFT(F78,LEN(F78)-1)),CostCode,0))) -> 0 | H78: =G78*E78 -> 0 | K78: =H78 -> 0
G79: Total | H79: =SUM(H5:H67)+H76+H78+0.0001 -> 290125.5001 | J79: =SUM(J5:J67)+J76+J78 -> 145062.75 | K79: =SUM(K5:K67)+K76+K78 -> 145062.75
G80: % of Total | J80: =J79/H79 -> 0.4999999998 | K80: =K79/H79 -> 0.4999999998
B82: * For construction of passive treatment system refer to "Water Management". ARD/ML seepage treatment becomes post-closure water treatment cost
B83: **Heap leach ARD/ML seepage treatment becomes post-closure water treatment cost

Sheet Chemicals
A1: 1 | B1: Chemicals/Soil Area Name: Doris - Madrid
B3: Note: The procedures, equipment and packaging for clean up and removal of chemicals or contaminated soils are highly dependent on the nature of the chemicals and their existing state of containment. Government guidelines should be consulted on an individual chemical basis. Any estimate made here should be considered very rough unless specific evaluations have been conducted.
B4: ACTIVITY/MATERIAL | C4: Notes | D4: Units | E4: Quantity | F4: Cost Code | G4: Unit Cost | H4: Cost | I4: % Land | J4: Land Cost | K4: Water Cost
B5: HAZARDOUS MATERIALS AUDIT
B6: Hazardous materials audit | C6: Not required | D6: allow | F6: =NA() ->  | G6: 25000 | H6: =G6*E6 -> 0 | J6: =H6*I6 -> 0 | K6: =+H6*(1-I6) -> 0
B7: BUILDING DECONTAMINATION & CONSOLIDATION OF HAZARDOUS MATERIALS
B8: Environmental technician/coordinator | D8: mandays | F8: =NA() ->  | G8: =IF(ISNA(F8),0,INDEX(IF(UPPER(RIGHT(F8,1))=Low,UnitCostLow, IF(UPPER(RIGHT(F8,1))=High,UnitCostHigh,UnitCostSpecified)),MATCH(UPPER(LEFT(F8,LEN(F8)-1)),CostCode,0))) -> 0 | H8: =G8*E8 -> 0 | J8: =H8*I8 -> 0 | K8: =+H8*(1-I8) -> 0
B9: Drain residual fuel from tanks | C9: RB-013, RB-002, RB-003, & DM-020 | D9: each | E9: =2+4+1+5 -> 12 | F9: TMAC | G9: 265 | H9: 3180 | I9: 0.5 | J9: 1590 | K9: 1590
B10: Drain, clean and crush empty drums | C10: RB-003 | D10: each | E10: 150 | F10: TMAC | G10: =21.04+18.4 -> 39.44 | H10: =G10*E10 -> 5916 | I10: 0.5 | J10: =H10*I10 -> 2958 | K10: =+H10*(1-I10) -> 2958
B11: Removal of Doris fresh water pipeline | C11: DM-006 decommission | D11: each | E11: 4 | F11: TMAC | G11: 680 | H11: 2720 | I11: 0.5 | J11: 1360 | K11: 1360
C12: DM-006 dismantle | D12: lm | E12: 830 | F12: TMAC | G12: 11.08 | H12: 9196.4 | I12: 0.5 | J12: 4598.2 | K12: 4598.2
C13: DM-006 load, haul & tip debris to Q3 landfill | D13: m3 | E13: 28.2 | F13: TMAC | G13: =10.23+5.99 -> 16.22 | H13: 457.404 | I13: 0.5 | J13: 228.702 | K13: 228.702
B14: Removal of Secondary Road Tailings and Reclaim water pipeline | C14: SR-002 decommission | D14: each | E14: 4 | F14: TMAC | G14: 680 | H14: =G14*E14 -> 2720 | I14: 0.5 | J14: =H14*I14 -> 1360 | K14: =+H14*(1-I14) -> 1360
C15: SR-002 dismantle | D15: lm | E15: 8125 | F15: TMAC | G15: 11.08 | H15: 90025 | I15: 0.5 | J15: 45012.5 | K15: 45012.5
C16: SR-002 load, haul & tip debris to Q3 landfill | D16: m3 | E16: 255.3 | F16: TMAC | G16: =10.23+5.23 -> 15.46 | H16: 3946.938 | I16: 0.5 | J16: 1973.469 | K16: 1973.469
B17: Drain residual fuel from tank at vent raise | C17: DM-030 drain tank | D17: each | E17: 1 | F17: TMAC | G17: 265 | H17: =G17*E17 -> 265 | I17: 0.5 | J17: =H17*I17 -> 132.5 | K17: =+H17*(1-I17) -> 132.5
B18: Drain chemicals and reagent from containers | C18: Doris DM-021 | D18: m3 | E18: 8.3 | F18: TMAC | G18: 2700 | H18: =G18*E18 -> 22410 | I18: 0.5 | J18: =H18*I18 -> 11205 | K18: =+H18*(1-I18) -> 11205
C19: Madrid North Concentrator | D19: m3 | E19: 4.2 | F19: TMAC | G19: 2700 | H19: =G19*E19 -> 11340 | I19: 0.5 | J19: =H19*I19 -> 5670 | K19: =+H19*(1-I19) -> 5670
B20: Decontaminate sewage treatment plant | D20: LS | F20: TMAC | G20: 667.63 | H20: 0 | J20: 0 | K20: 0
B21: Decontaminate bulk fuel storage | C21: Roberts Bay and Doris Tank Farms RB-013, RB-002, RB-003, & DM-020 | D21: each | E21: =4+4+1+5 -> 14 | F21: TMAC | G21: =476.06+1186.71+32.8 -> 1695.57 | H21: 23737.98 | I21: 0.5 | J21: 11868.99 | K21: 11868.99 | M21: include a 1 m3 of sludge to manage in O/W separator
C22: Madrid North Fuel Storage Facility MN-011 | D22: each | E22: 3 | F22: TMAC | G22: =476.06+1186.71+32.8 -> 1695.57 | H22: =G22*E22 -> 5086.71 | I22: 0.5 | J22: =H22*I22 -> 2543.355 | K22: =+H22*(1-I22) -> 2543.355
C23: Madrid South Fuel Storage Facility MS-017 | D23: each | E23: 1 | F23: TMAC | G23: =476.06+1186.71+32.8 -> 1695.57 | H23: =G23*E23 -> 1695.57 | I23: 0.5 | J23: =H23*I23 -> 847.785 | K23: =+H23*(1-I23) -> 847.785
B24: CDR-004 Cargo Dock Access Road Fuel Transfer Lines | C24: Decommission Pipeline | D24: LS | E24: 1 | F24: TMAC | G24: 680 | H24: =G24*E24 -> 680 | I24: 0.5 | J24: =H24*I24 -> 340 | K24: =+H24*(1-I24) -> 340
C25: Dismantle pipeline | D25: lm | E25: 3250 | F25: TMAC | G25: 11.08 | H25: 36010 | I25: 0.5 | J25: 18005 | K25: 18005
C26: Remove electrical equipment | D26: LS | E26: 2 | F26: TMAC | G26: 680 | H26: 1360 | I26: 0.5 | J26: 680 | K26: 680
C27: Load, haul and tip debris at Q3 landfill | D27: m3 | E27: 159.5 | F27: TMAC | G27: =10.23+5.23 -> 15.46 | H27: =G27*E27 -> 2465.87 | I27: 0.5 | J27: =H27*I27 -> 1232.935 | K27: =+H27*(1-I27) -> 1232.935
B28: Drain Reclaim Pond | C28: CM-001 labour | D28: mandays | E28: 0 | F28: TMAC | G28: 1890 | H28: 0 | I28: 0.5 | J28: 0 | K28: 0 | M28: already accounted for under Water Treatment
C29: CM-001 equipment | D29: LS | E29: 0 | F29: TMAC | G29: 70000 | H29: 0 | I29: 0.5 | J29: 0 | K29: 0 | M29: already accounted for under Water Treatment
B30: Liner cleaning | C30: Doris (DM-020, RP-004& WM-001) | D30: m2 | E30: =5500+2485+4385 -> 12370 | F30: TMAC | G30: 0.41 | H30: =G30*E30 -> 5071.7 | I30: 0.5 | J30: =H30*I30 -> 2535.85 | K30: =+H30*(1-I30) -> 2535.85
C31: Roberts Bay Q1 Tank farm | D31: m2 | E31: 9933 | F31: TMAC | G31: 0.41 | H31: =G31*E31 -> 4072.53 | I31: 0.5 | J31: =H31*I31 -> 2036.265 | K31: =+H31*(1-I31) -> 2036.265
C32: Roberts Bay Tank Farm | D32: m2 | E32: =8600+13200 -> 21800 | F32: TMAC | G32: 0.41 | H32: =G32*E32 -> 8938 | I32: 0.5 | J32: =H32*I32 -> 4469 | K32: =+H32*(1-I32) -> 4469
C33: Madrid North liners (MN-011, -13, -14, & -15) | D33: m2 | E33: =20+145+20+25 -> 210 | F33: TMAC | G33: 0.41 | H33: 86.1 | I33: 0.5 | J33: 43.05 | K33: 43.05
C34: Madrid South liners (MS-017, -018 & -019) | D34: m2 | E34: =375+25+145 -> 545 | F34: TMAC | G34: 0.41 | H34: 223.45 | I34: 0.5 | J34: 111.725 | K34: 111.725
B35: Decontaminate offices/warehouse/accom | D35: m2 | F35: BDAL | G35: =IF(ISNA(F35),0,INDEX(IF(UPPER(RIGHT(F35,1))=Low,UnitCostLow, IF(UPPER(RIGHT(F35,1))=High,UnitCostHigh,UnitCostSpecified)),MATCH(UPPER(LEFT(F35,LEN(F35)-1)),CostCode,0))) -> 25.6 | H35: 0 | J35: 0 | K35: 0
B36: Removal of asbestos siding on buildings | D36: m2 | F36: BDAL | G36: 25.6 | H36: 0 | J36: 0 | K36: 0
B37: Removal of friable asbestos on equipment | D37: m2 | F37: =NA() ->  | G37: 0 | H37: 0 | J37: 0 | K37: 0
B38: Other | C38: Load and Transport drums from Doris Process Plant to Roberts Bay | D38: m3 | E38: 8.32 | F38: TMAC | G38: =10.23+2.3 -> 12.53 | H38: 104.2496 | I38: 0.5 | J38: 52.1248 | K38: 52.1248 | M38: added containerization cost of $10.23
C39: Madrid North drums from Concentrator to RB | D39: m3 | E39: 4 | F39: TMAC | G39: =10.23+5.02 -> 15.25 | H39: =G39*E39 -> 61 | I39: 0.5 | J39: =H39*I39 -> 30.5 | K39: =+H39*(1-I39) -> 30.5 | M39: added containerization cost of $10.23
B42: HAZARDOUS MATERIALS REMOVAL
B43: Waste oils | D43: litre | F43: orl | G43: =IF(ISNA(F43),0,INDEX(IF(UPPER(RIGHT(F43,1))=Low,UnitCostLow, IF(UPPER(RIGHT(F43,1))=High,UnitCostHigh,UnitCostSpecified)),MATCH(UPPER(LEFT(F43,LEN(F43)-1)),CostCode,0))) -> 0.43 | H43: =G43*E43 -> 0 | J43: =H43*I43 -> 0 | K43: =+H43*(1-I43) -> 0
B44: Waste fuel | C44: RB-002, RB-013&DM-020 | D44: litre | E44: =80000+160000+75000 -> 315000 | F44: orl | G44: =IF(ISNA(F44),0,INDEX(IF(UPPER(RIGHT(F44,1))=Low,UnitCostLow, IF(UPPER(RIGHT(F44,1))=High,UnitCostHigh,UnitCostSpecified)),MATCH(UPPER(LEFT(F44,LEN(F44)-1)),CostCode,0))) -> 0.43 | H44: 135450 | J44: 0 | K44: 135450 | M44: TMAC is now stating 75000 L only does not match earlier numbers
C45: Madrid South MS-017 | D45: litre | E45: 2000 | F45: orl | G45: =IF(ISNA(F45),0,INDEX(IF(UPPER(RIGHT(F45,1))=Low,UnitCostLow, IF(UPPER(RIGHT(F45,1))=High,UnitCostHigh,UnitCostSpecified)),MATCH(UPPER(LEFT(F45,LEN(F45)-1)),CostCode,0))) -> 0.43 | H45: =G45*E45 -> 860 | J45: =H45*I45 -> 0 | K45: =+H45*(1-I45) -> 860 | M45: Using a different rate.
C46: Madrid North MN-011 | D46: litre | E46: 45000 | F46: orl | G46: =IF(ISNA(F46),0,INDEX(IF(UPPER(RIGHT(F46,1))=Low,UnitCostLow, IF(UPPER(RIGHT(F46,1))=High,UnitCostHigh,UnitCostSpecified)),MATCH(UPPER(LEFT(F46,LEN(F46)-1)),CostCode,0))) -> 0.43 | H46: 19350 | J46: 0 | K46: 19350 | M46: No quanity provided in latest estimate does not match earlier email.
B47: Waste batteries | D47: allow | F47: AE | G47: 3000 | H47: 0 | J47: 0 | K47: 0
B48: Assay & environmental lab reagents | D48: kg | F48: =NA() ->  | G48: 25 | H48: 0 | J48: 0 | K48: 0
B49: Machine shop paints, solvents etc | D49: litre | F49: AE | G49: 10000 | H49: 0 | J49: 0 | K49: 0
B50: Glycol | D50: litre | F50: AE | G50: 20000 | H50: 0 | J50: 0 | K50: 0
B51: Process reagents | D51: kg | F51: =NA() ->  | G51: 2.5 | H51: =G51*E51 -> 0 | J51: 0 | K51: 0
B52: Nuclear sources | D52: allow | F52: =NA() ->  | G52: =IF(ISNA(F52),0,INDEX(IF(UPPER(RIGHT(F52,1))=Low,UnitCostLow, IF(UPPER(RIGHT(F52,1))=High,UnitCostHigh,UnitCostSpecified)),MATCH(UPPER(LEFT(F52,LEN(F52)-1)),CostCode,0))) -> 0 | H52: 0 | J52: 0 | K52: 0
B53: Other hazardous materials | D53: allow | F53: AE | G53: 20000 | H53: =G53*E53 -> 0 | J53: 0 | K53: 0
B54: HAZARDOUS MATERIALS
B55: Transportation to Roberts Bay | C55: Windy Development Area | D55: m3 | E55: 2.8 | F55: TMAC | G55: 6.9 | H55: =G55*E55 -> 19.32 | I55: 0.5 | J55: =H55*I55 -> 9.66 | K55: =+H55*(1-I55) -> 9.66
B56: Disposal fees | C56: Windy Development Area | D56: m3 | E56: 2.8 | F56: TMAC | G56: 11275 | H56: =G56*E56 -> 31570 | I56: 0.5 | J56: =H56*I56 -> 15785 | K56: =+H56*(1-I56) -> 15785
B57: Waste Ship Off-site | C57: Hazardous waste liquid and solid | D57: m3 | E57: =120+40 -> 160 | F57: TMAC | G57: 232.32 | H57: =G57*E57 -> 37171.2 | I57: 0.5 | J57: =H57*I57 -> 18585.6 | K57: =+H57*(1-I57) -> 18585.6
B58: Waste Disposal | C58: Hazardous Waste allowance | D58: allow | E58: 1 | F58: TMAC | G58: 50000 | H58: =G58*E58 -> 50000 | I58: 0.5 | J58: =H58*I58 -> 25000 | K58: =+H58*(1-I58) -> 25000
B59: Other | D59: allow | F59: ea | G59: 40000 | H59: =G59*E59 -> 0 | I59: 0.5 | J59: =H59*I59 -> 0 | K59: =+H59*(1-I59) -> 0
B60: CONTAMINATED SOILS
B61: Contam. soil investigation - Phase 1 | C61: a report for each site | D61: each | E61: 3 | F61: CS1L | G61: =IF(ISNA(F61),0,INDEX(IF(UPPER(RIGHT(F61,1))=Low,UnitCostLow, IF(UPPER(RIGHT(F61,1))=High,UnitCostHigh,UnitCostSpecified)),MATCH(UPPER(LEFT(F61,LEN(F61)-1)),CostCode,0))) -> 7500 | H61: =G61*E61 -> 22500 | I61: 0.5 | J61: =H61*I61 -> 11250 | K61: =+H61*(1-I61) -> 11250
B62: Contam. soil investigation - Phase 2 | C62: aggregate cost for Doris and Madrid sites | D62: allow | E62: 1 | F62: EA | G62: 175000 | H62: 175000 | I62: 0.5 | J62: 87500 | K62: 87500
B63: CONTAMINATED SOIL REMOVAL
B64: Excavate and transport Impacted Soil to Portal | C64: Doris RB-013, RB-002, RB-003, DM-020 & WM-001 (PHC) | D64: m3 | E64: 12389 | F64: TMAC | G64: =72.73+2.3 -> 75.03 | H64: =G64*E64 -> 929546.67 | I64: 0.5 | J64: =H64*I64 -> 464773.335 | K64: =+H64*(1-I64) -> 464773.335 | M64: updated the quantity and amended double count under buildings for the haulage of material to the underground | O64: =5157+3962+1490+1680+100 -> 12389
C65: Patch Lake Development Area | D65: m3 | E65: 245 | F65: TMAC | G65: =72.73+2.3 -> 75.03 | H65: =G65*E65 -> 18382.35 | I65: 0.5 | J65: =H65*I65 -> 9191.175 | K65: =+H65*(1-I65) -> 9191.175
C66: Windy Development Area | D66: m3 | E66: 720 | F66: TMAC | G66: 75.03 | H66: =G66*E66 -> 54021.6 | I66: 0.5 | J66: =H66*I66 -> 27010.8 | K66: =+H66*(1-I66) -> 27010.8
C67: Waste Management Area Landfarm | D67: m3 | E67: 100 | F67: TMAC | G67: 75.03 | H67: 7503 | I67: 0.5 | J67: 3751.5 | K67: 3751.5
C68: Madrid North MN-011 (PHC) | D68: m3 | E68: 1220 | F68: TMAC | G68: 75.03 | H68: =G68*E68 -> 91536.6 | I68: 0.5 | J68: =H68*I68 -> 45768.3 | K68: =+H68*(1-I68) -> 45768.3
C69: Madrid North Portal Pad | D69: m3 | E69: 7635 | F69: TMAC | G69: =72.73 -> 72.73 | H69: =G69*E69 -> 555293.55 | I69: 0.5 | J69: =H69*I69 -> 277646.775 | K69: =+H69*(1-I69) -> 277646.775
C70: Madrid North MN-014 & -015 Madrid South MS-018 & -019(brine) | D70: m3 | E70: =6+8+6+6 -> 26 | F70: TMAC | G70: 75.03 | H70: =G70*E70 -> 1950.78 | I70: 0.5 | J70: =H70*I70 -> 975.39 | K70: =+H70*(1-I70) -> 975.39
C71: Madrid South MS-017 (PHC) | D71: m3 | E71: 225 | F71: TMAC | G71: 75.03 | H71: 16881.75 | I71: 0.5 | J71: 8440.875 | K71: 8440.875
B72: Place hydrocarbon and other impacted soil underground | C72: Doris RB-013, RB-002, RB-003, DM-020 & WM-001 (PHC) | D72: m3 | E72: =5160+3960+1490+1680 -> 12290 | F72: TMAC | G72: 15.37 | H72: 188897.3 | I72: 0.5 | J72: 94448.65 | K72: 94448.65
C73: Patch Lake Development Area | D73: m3 | E73: 245 | F73: TMAC | G73: 15.37 | H73: 3765.65 | I73: 0.5 | J73: 1882.825 | K73: 1882.825
C74: Madrid North MN-011 & MN-013(PHC) | D74: m3 | E74: 1220 | F74: TMAC | G74: 15.37 | H74: =G74*E74 -> 18751.4 | I74: 0.5 | J74: =H74*I74 -> 9375.7 | K74: =+H74*(1-I74) -> 9375.7
C75: Madrid North MN-014 & -015 Madrid South MS-018 & -019(brine) | D75: m3 | E75: =6+8+6+6 -> 26 | F75: TMAC | G75: 15.37 | H75: =G75*E75 -> 399.62 | I75: 0.5 | J75: =H75*I75 -> 199.81 | K75: =+H75*(1-I75) -> 199.81
C76: Madrid North Portal Pad | D76: m3 | E76: 7635 | F76: TMAC | G76: 15.37 | H76: 117349.95 | I76: 0.5 | J76: 58674.975 | K76: 58674.975
C77: Waste Management Area Landfarm | D77: m3 | E77: 100 | F77: TMAC | G77: 15.37 | H77: 1537 | I77: 0.5 | J77: 768.5 | K77: 768.5
C78: Windy Development Area | D78: m3 | E78: 720 | F78: TMAC | G78: 15.37 | H78: 11066.4 | I78: 0.5 | J78: 5533.2 | K78: 5533.2
C79: Madrid South MS-017 (PHC) | D79: m3 | E79: 225 | F79: TMAC | G79: 15.37 | H79: 3458.25 | I79: 0.5 | J79: 1729.125 | K79: 1729.125
B80: Fuel/Reagent/Brine Containment areas remove soil cover from liner | C80: Doris RB-013, RB-002, RB-003 & DM-020 excavation of cover soil from liners | D80: m3 | E80: =10315+7925+2980+3360 -> 24580 | F80: TMAC | G80: 2.75 | H80: =G80*E80 -> 67595 | I80: 0.5 | J80: 33797.5 | K80: 33797.5
C81: Reagent Pad RP-003 | D81: m3 | E81: 1390 | F81: TMAC | G81: 2.75 | H81: =G81*E81 -> 3822.5 | I81: 0.5 | J81: =H81*I81 -> 1911.25 | K81: =+H81*(1-I81) -> 1911.25 | M81: volume corrected here and removed from Buildings
C82: Waste Management Area Landfarm | D82: m3 | E82: 2590 | F82: TMAC | G82: 2.75 | H82: =G82*E82 -> 7122.5 | I82: 0.5 | J82: =H82*I82 -> 3561.25 | K82: =+H82*(1-I82) -> 3561.25
C83: Madrid North MN-011 | D83: m3 | E83: 2435 | F83: TMAC | G83: 2.75 | H83: =G83*E83 -> 6696.25 | I83: 0.5 | J83: =H83*I83 -> 3348.125 | K83: =+H83*(1-I83) -> 3348.125
C84: Madrid North Water Storage Tank MN-013 | D84: m3 | E84: 260 | F84: TMAC | G84: 2.75 | H84: =G84*E84 -> 715 | I84: 0.5 | J84: =H84*I84 -> 357.5 | K84: =+H84*(1-I84) -> 357.5
C85: Madrid South MS-017 and -020 | D85: m3 | E85: =450+260 -> 710 | F85: TMAC | G85: 2.75 | H85: 1952.5 | I85: 0.5 | J85: 976.25 | K85: 976.25
B86: Waste haulage to Landfill | C86: Waste Management Area Landfarm | D86: m3 | E86: 120 | F86: TMAC | G86: 4.7 | H86: =G86*E86 -> 564 | I86: 0.5 | J86: =H86*I86 -> 282 | K86: =+H86*(1-I86) -> 282
B87: Remove Sumps | C87: MN-023, DM-018 | D87: each | E87: 3 | F87: TMAC | G87: 680 | H87: =G87*E87 -> 2040 | I87: 0.5 | J87: =H87*I87 -> 1020 | K87: =+H87*(1-I87) -> 1020 | M87: TMAC has in Water Mgmt
B88: Place Mega Bags into Containers (Transport) | C88: Windy Development Area | D88: m3 | E88: 720 | F88: TMAC | G88: 20.91 | H88: =G88*E88 -> 15055.2 | I88: 0.5 | J88: =H88*I88 -> 7527.6 | K88: =+H88*(1-I88) -> 7527.6
B89: Place soil in Mega Bags and Empty into Containers | C89: Windy Development Area | D89: m3 | E89: 60 | F89: TMAC | G89: =72.73+16.35+34.3 -> 123.38 | H89: =G89*E89 -> 7402.8 | I89: 0.5 | J89: =H89*I89 -> 3701.4 | K89: =+H89*(1-I89) -> 3701.4
B90: Disposal of PHC impacted soil to Madrid Portal from Demolition | C90: Windy Development Area | D90: m3 | E90: 4265 | F90: TMAC | G90: 2.77 | H90: =G90*E90 -> 11814.05 | I90: 0.5 | J90: =H90*I90 -> 5907.025 | K90: =+H90*(1-I90) -> 5907.025
B91: Disposal of PHC impacted soil to Madrid Portal from Demolition | C91: Patch Lake Development Area | D91: m3 | E91: 245 | F91: TMAC | G91: 2.77 | H91: =G91*E91 -> 678.65 | I91: 0.5 | J91: =H91*I91 -> 339.325 | K91: =+H91*(1-I91) -> 339.325
B92: Survey for Soil Remediation | C92: PHC and Metal Impacted Area | D92: LS | E92: 0 | F92: TMAC | G92: 25000 | H92: =G92*E92 -> 0 | I92: 0.5 | J92: =H92*I92 -> 0 | K92: =+H92*(1-I92) -> 0 | M92: This is a $50K allowance that could be covered under Engineering.
B93: In-situ Bio-remediation | C93: Patch Lake Development Area | D93: m3 | E93: 39 | F93: TMAC | G93: 260 | H93: 10140 | I93: 0.5 | J93: 5070 | K93: 5070
B94: Transport PHC impacted soil to offsite facility | C94: W-001 relates to soil that cannot go underground | D94: m3 | E94: 280 | F94: TMAC | G94: 1114.93 | H94: 312180.4 | I94: 0.5 | J94: 156090.2 | K94: 156090.2 | M94: Need to keep this allowance in the event not all the material goes undergrond.
B95: Contour decontaminated area | D95: m3 | F95: dsl | G95: =IF(ISNA(F95),0,INDEX(IF(UPPER(RIGHT(F95,1))=Low,UnitCostLow, IF(UPPER(RIGHT(F95,1))=High,UnitCostHigh,UnitCostSpecified)),MATCH(UPPER(LEFT(F95,LEN(F95)-1)),CostCode,0))) -> 0.95 | H95: 0 | I95: 0.5 | J95: =H95*I95 -> 0 | K95: =+H95*(1-I95) -> 0
B96: CONTAMINATED SOIL VERY LOW PERMEABILITY COVER
B97: Supply geomembrame, HDPE, ES3, GCL | D97: m2 | F97: =NA() ->  | G97: =IF(ISNA(F97),0,INDEX(IF(UPPER(RIGHT(F97,1))=Low,UnitCostLow, IF(UPPER(RIGHT(F97,1))=High,UnitCostHigh,UnitCostSpecified)),MATCH(UPPER(LEFT(F97,LEN(F97)-1)),CostCode,0))) -> 0 | H97: =G97*E97 -> 0 | J97: =H97*I97 -> 0 | K97: =+H97*(1-I97) -> 0
B98: Upper and lower bedding layers | D98: m3 | F98: =NA() ->  | G98: 0 | H98: 0 | J98: 0 | K98: 0
B99: Install geomembrane, HDPE, ES3, GCL | D99: m2 | F99: =NA() ->  | G99: 0 | H99: 0 | J99: 0 | K99: 0
B100: Erosion protection layer | D100: m3 | F100: =NA() ->  | G100: 0 | H100: 0 | J100: 0 | K100: 0
B101: Vegetate | D101: m2 | F101: =NA() ->  | G101: 0 | H101: 0 | J101: 0 | K101: 0
B102: Install infiltration/seepage instrumentation | D102: allow | F102: =NA() ->  | G102: 0 | H102: 0 | J102: 0 | K102: 0
B103: Other | F103: =NA() ->  | G103: 0 | H103: 0 | J103: 0 | K103: 0
B104: OTHER
F105: =NA() ->  | G105: =IF(ISNA(F105),0,INDEX(IF(UPPER(RIGHT(F105,1))=Low,UnitCostLow, IF(UPPER(RIGHT(F105,1))=High,UnitCostHigh,UnitCostSpecified)),MATCH(UPPER(LEFT(F105,LEN(F105)-1)),CostCode,0))) -> 0 | H105: =G105*E105 -> 0 | J105: =H105*I105 -> 0 | K105: =+H105*(1-I105) -> 0
G106: Total | H106: =SUM(H6:H105)+0.0001 -> 3181811.142 | J106: =SUM(J6:J105) -> 1513075.571 | K106: =SUM(K6:K105) -> 1668735.571
G107: % of Total | J107: =J106/H106 -> 0.4755390887 | K107: =K106/H106 -> 0.5244609112

Sheet Bldgs & Equip
A1: 1 | B1: Building / Equip Name: | C1: Doris - Madrid | G1: Bldg / Equip #: | H1: 1
B3: ACTIVITY/MATERIAL | C3: Notes | D3: Units | E3: Quantity | F3: Cost Code | G3: Unit Cost | H3: Cost | I3: % Land | J3: Land Cost | K3: Water Cost
B4: DISPOSE MOBILE EQUIPMENT
B5: Decontaminate and prepare for off-site | C5: Madrid North Concentrator | D5: allow | E5: 1 | F5: TMAC | G5: 50000 | H5: =G5*E5 -> 50000 | I5: 0.5 | J5: =H5*I5 -> 25000 | K5: =+H5*(1-I5) -> 25000
C6: Doris Water Intake Generator | D6: each | E6: 1 | F6: TMAC | G6: 1370 | H6: =G6*E6 -> 1370 | I6: 0.5 | J6: =H6*I6 -> 685 | K6: =+H6*(1-I6) -> 685
B7: Consolidate Electrical Equipment from Pipelines | C7: Madrid South, Madrid North, Doris freshwater and Tialings/Reclaim water pipelines | D7: m2 | E7: =2860+2680+1600+4065 -> 11205 | F7: TMAC | G7: 0.57 | H7: =G7*E7 -> 6386.85 | I7: 0.5 | J7: =H7*I7 -> 3193.425 | K7: =+H7*(1-I7) -> 3193.425 | M7: added cost to remove cabling as well ie C3.20 | N7: The added cost for the cabling was not necessarily appropriate. Waste debris clean up rate as used elsewhere has been applied.
B8: Relocate Containers to Quarry 3 Landfill | C8: current a large inventor of containers that will no longer go off site | D8: ea | E8: 250 | F8: TMAC | G8: 204.56 | H8: =G8*E8 -> 51140 | I8: 0.5 | J8: =H8*I8 -> 25570 | K8: =+H8*(1-I8) -> 25570 | M8: use units C1.08+C4.15 for the haulage and demolition of contianers at landfill | N8: Understand containers are not to remain as is with no breakdown.
B9: Relocate Trailers to Quarry 3 Landfill | D9: m3 | F9: TMAC | G9: 19.15 | H9: =G9*E9 -> 0 | I9: 0.5 | J9: =H9*I9 -> 0 | K9: =+H9*(1-I9) -> 0
B10: Relocate Camp | C10: Windy Accommodation Camp (relocate to Doris) | D10: m3 | E10: 32 | F10: TMAC | G10: =2.77+10.23 -> 13 | H10: =G10*E10 -> 416 | I10: 0.5 | J10: =H10*I10 -> 208 | K10: =+H10*(1-I10) -> 208 | M10: added cost to collapse and containerize
B11: Other | F11: =NA() ->  | G11: =IF(ISNA(F11),0,INDEX(IF(UPPER(RIGHT(F11,1))=Low,UnitCostLow, IF(UPPER(RIGHT(F11,1))=High,UnitCostHigh,UnitCostSpecified)),MATCH(UPPER(LEFT(F11,LEN(F11)-1)),CostCode,0))) -> 0 | H11: =G11*E11 -> 0 | J11: 0 | K11: =+H11*(1-I11) -> 0
B12: REMOVE BUILDINGS
B13: Accomodation Complex | C13: DM-001 Decommission | D13: each | E13: 103 | F13: TMAC | G13: 679.52 | H13: =G13*E13 -> 69990.56 | I13: 0.5 | J13: =H13*I13 -> 34995.28 | K13: =+H13*(1-I13) -> 34995.28
C14: DM-001 Demolition cabins/cribs/stairs/Arctic corridor etc. | D14: m3 | E14: =320+225+135 -> 680 | F14: TMAC | G14: 13.12 | H14: 8921.6 | I14: 0.5 | J14: 4460.8 | K14: 4460.8
C15: DM-001 Demolition Trailers | D15: m3 | E15: 11185 | F15: TMAC | G15: 13.32 | H15: =G15*E15 -> 148984.2 | I15: 0.5 | J15: =H15*I15 -> 74492.1 | K15: =+H15*(1-I15) -> 74492.1
C16: DM-001 Consolidate and laod waste | D16: m3 | E16: 7450 | F16: TMAC | G16: =10.23 -> 10.23 | H16: 76213.5 | I16: 0.5 | J16: 38106.75 | K16: 38106.75
C17: DM-001 Haul waste to landfill | D17: m3 | E17: 7450 | F17: TMAC | G17: 4.7 | H17: 35015 | I17: 0.5 | J17: 17507.5 | K17: 17507.5
B18: Windy Accommodation Camp | C18: Dismantle comm equipment | D18: LS | E18: 1 | F18: TMAC | G18: 375 | H18: =G18*E18 -> 375 | I18: 0.5 | J18: =H18*I18 -> 187.5 | K18: =+H18*(1-I18) -> 187.5
C19: Equipment decommissioning | D19: each | E19: 1 | F19: TMAC | G19: 679.52 | H19: 679.52 | I19: 0.5 | J19: 339.76 | K19: 339.76
C20: manual demolition | D20: m2 | E20: 890 | F20: TMAC | G20: 155 | H20: 137950 | I20: 0.5 | J20: 68975 | K20: 68975
C21: mechanical demolition | D21: m3 | E21: 3480 | F21: TMAC | G21: 11.23 | H21: 39080.4 | I21: 0.5 | J21: 19540.2 | K21: 19540.2
C22: laod and haul waste | D22: m3 | E22: 1895 | F22: TMAC | G22: =10.23+4.92 -> 15.15 | H22: 28709.25 | I22: 0.5 | J22: 14354.625 | K22: 14354.625
B23: Roberts Bay Mechanical Shop Complex | C23: decommissioing elec/mech/HVAC | D23: each | E23: 7 | F23: TMAC | G23: 679.52 | H23: =G23*E23 -> 4756.64 | I23: 0.5 | J23: =H23*I23 -> 2378.32 | K23: =+H23*(1-I23) -> 2378.32
C24: Demo of steel frame | D24: m3 | E24: 0 | F24: TMAC | G24: =13.12+10.23+5.99 -> 29.34 | H24: =G24*E24 -> 0 | I24: 0.5 | J24: =H24*I24 -> 0 | K24: 0 | N24: Double count with line 101 remove 2400
C25: Demoo of wood frame | D25: m3 | E25: 0 | F25: TMAC | G25: =13.12+10.23+5.99 -> 29.34 | H25: =G25*E25 -> 0 | I25: 0.5 | J25: =H25*I25 -> 0 | K25: =+H25*(1-I25) -> 0 | N25: Double count with line 101 remove 285
C26: demo of tent structure | D26: m3 | E26: 0 | F26: TMAC | G26: 29.34 | H26: 0 | I26: 0.5 | J26: 0 | K26: 0 | N26: Double count with line 101remove 460
B27: Process Facilities | C27: DM-021 dismantle & prep for off-site disposal | D27: LS | E27: 1 | F27: TMAC | G27: =250000+100000 -> 350000 | H27: =G27*E27 -> 350000 | I27: 0.5 | J27: 175000 | K27: =+H27*(1-I27) -> 175000
C28: DM-021 demolish Mill, crusher and process plant | D28: m3 | E28: 123540 | F28: TMAC | G28: 13.12 | H28: =G28*E28 -> 1620844.8 | I28: 0.5 | J28: =H28*I28 -> 810422.4 | K28: 810422.4
C29: DM-021 haul waste to landfill | D29: m3 | E29: =8522.2 -> 8522.2 | F29: TMAC | G29: =10.23+4.92 -> 15.15 | H29: =G29*E29 -> 129111.33 | I29: 0.5 | J29: =H29*I29 -> 64555.665 | K29: =+H29*(1-I29) -> 64555.665 | M29: added cost for haulage to landfill
C30: MN-008 Concentrator - disconnection | D30: ea | E30: 1 | F30: TMAC | G30: =200000+100000 -> 300000 | H30: =G30*E30 -> 300000 | I30: 0.5 | J30: =H30*I30 -> 150000 | K30: =+H30*(1-I30) -> 150000
C31: MN-008 Concentrator - demolition | D31: m3 | E31: 23075 | F31: TMAC | G31: 13.32 | H31: 307359 | I31: 0.5 | J31: 153679.5 | K31: 153679.5
C32: MN-008 Concentrator - consolidate and haul | D32: m3 | E32: 3695 | F32: TMAC | G32: =10.23+4.92 -> 15.15 | H32: 55979.25 | I32: 0.5 | J32: 27989.625 | K32: 27989.625
B33: Office & Dry Complex | C33: DM-009 MN-005 and MS-006 Decommission facilities | D33: each | E33: =3+3+3 -> 9 | F33: TMAC | G33: 679.52 | H33: =G33*E33 -> 6115.68 | I33: 0.5 | J33: =H33*I33 -> 3057.84 | K33: 3057.84
C34: DM-009 Disconnect assemblies for disposal | D34: each | E34: 17 | F34: TMAC | G34: 1370 | H34: 23290 | I34: 0.5 | J34: 11645 | K34: 11645
C35: DM-009 demolition | D35: m3 | E35: =219.5+45.9 -> 265.4 | F35: TMAC | G35: 13.12 | H35: 3482.048 | I35: 0.5 | J35: 1741.024 | K35: 1741.024
C36: DM-009 Haul assemblies for disposal | D36: m3 | E36: 145670.5 | F36: TMAC | G36: 4.7 | H36: 684651.35 | I36: 0.5 | J36: 342325.675 | K36: 342325.675
C37: DM-009 Consolidate and dispose of waste at landfill | D37: m3 | E37: =219.5+45.9 -> 265.4 | F37: TMAC | G37: =10.23+4.92 -> 15.15 | H37: 4020.81 | I37: 0.5 | J37: 2010.405 | K37: 2010.405
C38: Madrid North Office Trailer - haul and disposal of at landfill | D38: m3 | E38: 50 | F38: TMAC | G38: =10.23+4.92 -> 15.15 | H38: =G38*E38 -> 757.5 | I38: 0.5 | J38: =H38*I38 -> 378.75 | K38: =+H38*(1-I38) -> 378.75 | M38: TMAC estimate is inconsistent so volume of haulage used
C39: Madrid South Office Trailer - demolition | D39: m3 | E39: 75 | F39: TMAC | G39: 13.12 | H39: 984 | I39: 0.5 | J39: 492 | K39: 492
C40: Madrid South Office Trailer - haul and dispose of at landfill | D40: m3 | E40: 50 | F40: TMAC | G40: =10.23+3.26 -> 13.49 | H40: 674.5 | I40: 0.5 | J40: 337.25 | K40: 337.25 | M40: TMAC estimate is inconsistent so volume of haulage used
B41: Laydown Area | C41: RB-006 decommission vehicle plugs | D41: ea | E41: 8 | F41: TMAC | G41: =(680/8)+412 -> 497 | H41: =G41*E41 -> 3976 | I41: 0.5 | J41: =H41*I41 -> 1988 | K41: =+H41*(1-I41) -> 1988 | N41: rate changed to reflect correction in work effort (only one disconnect of system required
C42: MN-010 decom vehicle plugs | D42: ea | E42: 5 | F42: TMAC | G42: =411.17+680 -> 1091.17 | H42: =G42*E42 -> 5455.85 | I42: 0.5 | J42: =H42*I42 -> 2727.925 | K42: =+H42*(1-I42) -> 2727.925
C43: MS-009 decom vehicle plugs and posts | D43: ea | E43: 5 | F43: TMAC | G43: =411.17+680 -> 1091.17 | H43: =G43*E43 -> 5455.85 | I43: 0.5 | J43: =H43*I43 -> 2727.925 | K43: =+H43*(1-I43) -> 2727.925
C44: MN-010 consolidate and relocate waste to landfill | D44: m2 | E44: 1475 | F44: TMAC | G44: 0.57 | H44: 840.75 | I44: 0.5 | J44: 420.375 | K44: 420.375
C45: MS-009 consolidate and relocate waste to landfill | D45: m2 | E45: 5970 | F45: TMAC | G45: 0.57 | H45: =G45*E45 -> 3402.9 | I45: 0.5 | J45: =H45*I45 -> 1701.45 | K45: =+H45*(1-I45) -> 1701.45
C46: RB-006 consolidate and relocate waste to landfill | D46: m2 | E46: 63291.6 | F46: TMAC | G46: 0.57 | H46: 36076.212 | I46: 0.5 | J46: 18038.106 | K46: 18038.106
B47: Water StorageTank | C47: DM-005 dismantle and haul to Q3 landfill | D47: ea | E47: 1 | F47: TMAC | G47: 100000 | H47: 100000 | I47: 0.5 | J47: 50000 | K47: 50000
C48: Madrid North Water Storage Tank - cleanout & disconnect piping | D48: ea | E48: 1 | F48: TMAC | G48: =1190+475 -> 1665 | H48: =G48*E48 -> 1665 | I48: 0.5 | J48: =H48*I48 -> 832.5 | K48: =+H48*(1-I48) -> 832.5
C49: Madrid North Water Storage Tank - dismantle tank | D49: ea | E49: 1 | F49: TMAC | G49: 100000 | H49: 100000 | I49: 0.5 | J49: 50000 | K49: 50000
C50: Madrid North Water Storage Tank - prepare, containerize and haul tank pieces to landfill | D50: m3 | E50: 3 | F50: TMAC | G50: =10.23+10.23+4.92 -> 25.38 | H50: 76.14 | I50: 0.5 | J50: 38.07 | K50: 38.07
C51: Madrid South Water Storage Tank - cleanout & disconnect piping | D51: ea | E51: 1 | F51: TMAC | G51: =1190+475 -> 1665 | H51: =G51*E51 -> 1665 | I51: 0.5 | J51: =H51*I51 -> 832.5 | K51: =+H51*(1-I51) -> 832.5
C52: Madrid South Water Storage Tank - dismantle tank | D52: ea | E52: 1 | F52: TMAC | G52: 100000 | H52: 100000 | I52: 0.5 | J52: 50000 | K52: 50000
C53: Madrid South Water Storage Tank - prepare, containerize and haul tank pieces to landfill | D53: m3 | E53: 3 | F53: TMAC | G53: =10.23+10.23+3.26 -> 23.72 | H53: 71.16 | I53: 0.5 | J53: 35.58 | K53: 35.58
C54: MN-013 recover cover soil from containment | D54: m3 | E54: 0 | F54: TMAC | G54: 2.75 | H54: =G54*E54 -> 0 | I54: 0.5 | J54: 0 | K54: =+H54*(1-I54) -> 0 | N54: Clarification provided by SRK work under Chemicals (259.2 reduced to 0)
C55: MN-013 cut liner/load and transport to landfill | D55: m3 | E55: =2.4+1.3 -> 3.7 | F55: TMAC | G55: =10.23+14.08 -> 24.31 | H55: =G55*E55 -> 89.947 | I55: 0.5 | J55: 44.9735 | K55: 44.9735
B56: Compressor Building | C56: MN-008 dismantle and haul to Q3 landfill | D56: m3 | E56: 62.5 | F56: TMAC | G56: =13.12+4.92+10.23 -> 28.27 | H56: =G56*E56 -> 1766.875 | I56: 0.5 | J56: =H56*I56 -> 883.4375 | K56: 883.4375 | M56: added cost to containerize and haul to landfill
C57: MN-008 includes disconnection and off-site transfer of plant | D57: each | E57: 2 | F57: TMAC | G57: =680+785 -> 1465 | H57: =G57*E57 -> 2930 | I57: 0.5 | J57: =H57*I57 -> 1465 | K57: =+H57*(1-I57) -> 1465
C58: MN-008 haul units to Roberts Bay for off-site transfer | D58: m3 | E58: =40+6 -> 46 | F58: TMAC | G58: =5.02+10.23 -> 15.25 | H58: =G58*E58 -> 701.5 | I58: 0.5 | J58: =H58*I58 -> 350.75 | K58: 350.75 | M58: added cost to containerize the units for transfer
C59: MS-008 dismantle and haul to Q3 landfill | D59: m3 | E59: 62.5 | F59: TMAC | G59: =13.12+10.23 -> 23.35 | H59: =G59*E59 -> 1459.375 | I59: 0.5 | J59: =H59*I59 -> 729.6875 | K59: =+H59*(1-I59) -> 729.6875 | M59: added containizeation cost to cover laoding and haulage
C60: MS-008 includes disconnection and off-site transfer of plant | D60: each | E60: 2 | F60: TMAC | G60: =785+680 -> 1465 | H60: =G60*E60 -> 2930 | I60: 0.5 | J60: =H60*I60 -> 1465 | K60: 1465
C61: MS-008 haul units to Roberts Bay for off-site transfer | D61: m3 | E61: 40 | F61: TMAC | G61: =5.02+10.23 -> 15.25 | H61: 610 | I61: 0.5 | J61: 305 | K61: 305
B62: Power Plant/Generator | C62: DM-011 Decommission and dismantle | D62: each | E62: 8 | F62: TMAC | G62: =785+1370 -> 2155 | H62: 17240 | I62: 0.5 | J62: 8620 | K62: 8620
C63: DM-011 dismantle stacks and prep for off-site disposal | D63: m | E63: 40 | F63: TMAC | G63: =627.24+136.3 -> 763.54 | H63: =G63*E63 -> 30541.6 | I63: 0.5 | J63: =H63*I63 -> 15270.8 | K63: =+H63*(1-I63) -> 15270.8
C64: DM-011 Haulage to staging point for off-site shipping | D64: m3 | E64: =264.8+166 -> 430.8 | F64: TMAC | G64: 2.3 | H64: =G64*E64 -> 990.84 | I64: 0.5 | J64: =H64*I64 -> 495.42 | K64: =+H64*(1-I64) -> 495.42 | M64: 166 in chemical of TMAC
C65: DM-011 Load, haul and dispose of waste | D65: m3 | E65: 90 | F65: TMAC | G65: =10.23+4.92 -> 15.15 | H65: =G65*E65 -> 1363.5 | I65: 0.5 | J65: =H65*I65 -> 681.75 | K65: =+H65*(1-I65) -> 681.75
C66: Madrid North Power Plant MN-009 stack haulage to landfill | D66: m3 | E66: 166 | F66: TMAC | G66: 4.92 | H66: =G66*E66 -> 816.72 | I66: 0.5 | J66: =H66*I66 -> 408.36 | K66: =+H66*(1-I66) -> 408.36
C67: Madrid North Diesel Generator MN-009 disconnection | D67: each | E67: 1 | F67: TMAC | G67: =785+1370 -> 2155 | H67: 2155 | I67: 0.5 | J67: 1077.5 | K67: 1077.5
C68: Madrid North Diesel generator haulage to Roberts Bay | D68: m3 | E68: 50 | F68: TMAC | G68: =5.02+10.23 -> 15.25 | H68: 762.5 | I68: 0.5 | J68: 381.25 | K68: 381.25
C69: Madrid North Diesel generator tent demolition and haulage to landfill | D69: m3 | E69: 50 | F69: TMAC | G69: =13.12+10.23 -> 23.35 | H69: =G69*E69 -> 1167.5 | I69: 0.5 | J69: =H69*I69 -> 583.75 | K69: =+H69*(1-I69) -> 583.75 | M69: added containizeation cost to cover laoding and haulage
C70: Madrid North dismantle stacks and prep for offsite transfer | D70: m | E70: 40 | F70: TMAC | G70: =627.24+136.3 -> 763.54 | H70: 30541.6 | I70: 0.5 | J70: 15270.8 | K70: 15270.8
C71: Madrid North Power Plan disconnection | D71: each | E71: 4 | F71: TMAC | G71: 785 | H71: 3140 | I71: 0.5 | J71: 1570 | K71: 1570
C72: Madrid North Power Plant Demo | D72: m3 | E72: 2375 | F72: TMAC | G72: 13.32 | H72: =G72*E72 -> 31635 | I72: 0.5 | J72: =H72*I72 -> 15817.5 | K72: =+H72*(1-I72) -> 15817.5
C73: Madrid North Power Plant debris clean up | D73: m2 | E73: 950 | F73: TMAC | G73: 0.37 | H73: 351.5 | I73: 0.5 | J73: 175.75 | K73: 175.75
C74: Madrid North Power Plan waste debris load and haul to landfill | D74: m3 | E74: 740 | F74: TMAC | G74: =13.12+10.23 -> 23.35 | H74: 17279 | I74: 0.5 | J74: 8639.5 | K74: 8639.5 | M74: Added demolition cost to cover demo and haulage
C75: Madrid South Diesel Generator disconnection | D75: each | E75: 1 | F75: TMAC | G75: 785 | H75: =G75*E75 -> 785 | I75: 0.5 | J75: =H75*I75 -> 392.5 | K75: =+H75*(1-I75) -> 392.5
C76: Madrid South Demolition of tent and haulage to landfill | D76: m3 | E76: 50 | F76: TMAC | G76: =13.12+10.23 -> 23.35 | H76: 1167.5 | I76: 0.5 | J76: 583.75 | K76: 583.75 | M76: Added demolition cost to cover demo and haulage
B77: Sewage Treatment Plant | C77: DM-017 Decontaminate, decommission and dismantle | D77: each | E77: 9 | F77: TMAC | G77: =667.63+659.46+1344.8 -> 2671.89 | H77: 24047.01 | I77: 0.5 | J77: 12023.505 | K77: 12023.505 | M77: Not clear why TMAC dropped the costs for dismantling and system flushing removed. Still in the ACI estimate
C78: DM-017 Haulage to staging point for off-site shipping | D78: m3 | E78: 671.4 | F78: TMAC | G78: 2.3 | H78: 1544.22 | I78: 0.5 | J78: 772.11 | K78: 772.11
C79: DM-017 Load, haul and dispose of waste to landfill | D79: m3 | E79: 24 | F79: TMAC | G79: =10.23+4.92 -> 15.15 | H79: =G79*E79 -> 363.6 | I79: 0.5 | J79: =H79*I79 -> 181.8 | K79: =+H79*(1-I79) -> 181.8 | M79: added haulage to landfill
B80: Vent Raises | C80: DM-030, DM-033 & DM-034 Remove heating and ventilation system | D80: each | E80: =4+2+2 -> 8 | F80: TMAC | G80: 680 | H80: =G80*E80 -> 5440 | I80: 0.5 | J80: =H80*I80 -> 2720 | K80: =+H80*(1-I80) -> 2720
C81: DM-030, DM-033 & DM-034 Prepare heating and ventilation system for off-site disposal | D81: each | E81: 3 | F81: TMAC | G81: 1370 | H81: 4110 | I81: 0.5 | J81: 2055 | K81: 2055
C82: DM-030 Haul enviro-tank and HVAC equipmen tfor off-site disposal | D82: m3 | E82: =33.2*6 -> 199.2 | F82: TMAC | G82: 4.7 | H82: 936.24 | I82: 0.5 | J82: 468.12 | K82: 468.12
C83: DM-030, DM-033 & DM-034 Consolidate and dispose of waste at landfill | D83: m3 | E83: =11.1 -> 11.1 | F83: TMAC | G83: =10.23+4.7 -> 14.93 | H83: 165.723 | I83: 0.5 | J83: 82.8615 | K83: 82.8615
C84: Madrid North Vent Raise decommission and dismantle | D84: ea | E84: 4 | F84: TMAC | G84: 680 | H84: =G84*E84 -> 2720 | I84: 0.5 | J84: =H84*I84 -> 1360 | K84: =+H84*(1-I84) -> 1360
C85: Madrid North HVAC Unit preparation for shipping | D85: ea | E85: 1 | F85: TMAC | G85: 1370 | H85: 1370 | I85: 0.5 | J85: 685 | K85: 685 | N85: reduce 4 to 1 per SRK update
C86: Madrid North Haulage of HVAC units | D86: m3 | E86: 40 | F86: TMAC | G86: 5.02 | H86: 200.8 | I86: 0.5 | J86: 100.4 | K86: 100.4
C87: Madrid South Haulage of HVAC units | D87: m3 | E87: 80 | F87: TMAC | G87: 6.29 | H87: 503.2 | I87: 0.5 | J87: 251.6 | K87: 251.6
C88: Madrid South Heating Unit preparation for shipping | D88: ea | E88: 1 | F88: TMAC | G88: 1370 | H88: =G88*E88 -> 1370 | I88: 0.5 | J88: =H88*I88 -> 685 | K88: =+H88*(1-I88) -> 685 | N88: reduce 8 to 1 per SRK update
C89: Madrid South Vent Raise and Air Heating Facility Decom/Dismantle | D89: ea | E89: =4+4 -> 8 | F89: TMAC | G89: 680 | H89: =G89*E89 -> 5440 | I89: 0.5 | J89: =H89*I89 -> 2720 | K89: =+H89*(1-I89) -> 2720
B90: Mixing Facility & CaCl Laydown Area | C90: MN-014 & MN-015 dismantle and haul to Q3 landfill | D90: m3 | E90: 5 | F90: TMAC | G90: =13.12+10.23+4.92 -> 28.27 | H90: =G90*E90 -> 141.35 | I90: 0.5 | J90: =H90*I90 -> 70.675 | K90: 70.675
C91: MS-018 & MS-019 demolition and haul to landfill | D91: m3 | E91: 5 | F91: TMAC | G91: =13.12+10.23+3.26 -> 26.61 | H91: =G91*E91 -> 133.05 | I91: 0.5 | J91: =H91*I91 -> 66.525 | K91: =+H91*(1-I91) -> 66.525
B92: Doris Swick Shop | C92: DM-019 Demolition | D92: m3 | E92: 859.2 | F92: TMAC | G92: 13.12 | H92: =G92*E92 -> 11272.704 | I92: 0.5 | J92: =H92*I92 -> 5636.352 | K92: =+H92*(1-I92) -> 5636.352
C93: DM-019 Collect debris | D93: m2 | E93: 230 | F93: TMAC | G93: 0.37 | H93: 85.1 | I93: 0.5 | J93: 42.55 | K93: 42.55
C94: DM-019 Load and haul to landfill | D94: m3 | E94: 18.3 | F94: TMAC | G94: =10.23+4.92 -> 15.15 | H94: 277.245 | I94: 0.5 | J94: 138.6225 | K94: 138.6225
B95: Muster Station | C95: DM-008 Demolition | D95: m3 | E95: =227.3+27.3 -> 254.6 | F95: TMAC | G95: 13.01 | H95: 3312.346 | I95: 0.5 | J95: 1656.173 | K95: 1656.173
C96: DM-008 Load and haul to landfill | D96: m3 | E96: 48.2 | F96: TMAC | G96: =10.23+4.92 -> 15.15 | H96: =G96*E96 -> 730.23 | I96: 0.5 | J96: =H96*I96 -> 365.115 | K96: =+H96*(1-I96) -> 365.115 | M96: haulage rate added
B97: Doris Windy AWR Explosives Storage Facility | C97: DW-010 collect surface debris | D97: m2 | E97: 2805 | F97: TMAC | G97: 0.57 | H97: 1598.85 | I97: 0.5 | J97: 799.425 | K97: 799.425
C98: DW-010 demolition, load and haul to landfill | D98: m3 | E98: 5 | F98: TMAC | G98: =10.23+3.41 -> 13.64 | H98: 68.2 | I98: 0.5 | J98: =H98*I98 -> 34.1 | K98: 34.1
B99: Warehouse, Shops and Other | C99: RB-004 and DM-022 Remove heating and ventilation system | D99: each | E99: 3 | F99: TMAC | G99: 680 | H99: =G99*E99 -> 2040 | I99: 0.5 | J99: =H99*I99 -> 1020 | K99: =+H99*(1-I99) -> 1020 | N99: reduce 10 to 3 per SRK update
C100: RB-004 Prep HVAC for off-site disposal | D100: each | E100: 1 | F100: TMAC | G100: 1344.8 | H100: 1344.8 | I100: 0.5 | J100: 672.4 | K100: 672.4 | M100: Not clear why this work was removed from update
C101: RB-004 & DM-022 demolition | D101: m3 | E101: =2402.4+283.2+460.3+2281.6 -> 5427.5 | F101: TMAC | G101: 13.12 | H101: 71208.8 | I101: 0.5 | J101: 35604.4 | K101: 35604.4
C102: RB-004 Haul HVAC equipmentfor off-site disposal | D102: m3 | E102: =33.2*7 -> 232.4 | F102: TMAC | G102: 2.3 | H102: =G102*E102 -> 534.52 | I102: 0.5 | J102: =H102*I102 -> 267.26 | K102: =+H102*(1-I102) -> 267.26 | M102: Not clear why this work was removed from update
C103: RB-004 & DM-022 Consolidate and dispose of waste at landfill | D103: m3 | E103: =780+550 -> 1330 | F103: TMAC | G103: =10.23+4.92 -> 15.15 | H103: 20149.5 | I103: 0.5 | J103: 10074.75 | K103: 10074.75 | M103: add haulage rate.
C104: Madrid North MN-007 Mine Equipment Tent demo | D104: m3 | E104: 2250 | F104: TMAC | G104: =13.12 -> 13.12 | H104: =G104*E104 -> 29520 | I104: 0.5 | J104: =H104*I104 -> 14760 | K104: =+H104*(1-I104) -> 14760
C105: Madrid North MN-007 Mine Equipment Tent debris haul to landfill | D105: m3 | E105: 225 | F105: TMAC | G105: =10.23+4.92 -> 15.15 | H105: =G105*E105 -> 3408.75 | I105: 0.5 | J105: =H105*I105 -> 1704.375 | K105: =+H105*(1-I105) -> 1704.375 | M105: Not in the estimate but should have been
C106: Madrid North MN-007 equipment disconnection | D106: ea | E106: 2 | F106: TMAC | G106: 680 | H106: =G106*E106 -> 1360 | I106: 0.5 | J106: =H106*I106 -> 680 | K106: =+H106*(1-I106) -> 680
C107: Madrid North MN-007 Mine Equipment Shop demo | D107: m3 | E107: 0 | F107: TMAC | G107: =13.12 -> 13.12 | H107: 0 | I107: 0.5 | J107: 0 | K107: 0 | N107: volume is included in line 104 according to SRK reduce from 1125 to 0
C108: Madrid North MN-007 Mine Equipment Shop debris haul to landfill | D108: m3 | E108: 485 | F108: TMAC | G108: =10.23+4.92 -> 15.15 | H108: =G108*E108 -> 7347.75 | I108: 0.5 | J108: =H108*I108 -> 3673.875 | K108: =+H108*(1-I108) -> 3673.875
C109: Madrid South MS-004 Mine Equipment Tent demo | D109: m3 | E109: 2250 | F109: TMAC | G109: =13.12 -> 13.12 | H109: =G109*E109 -> 29520 | I109: 0.5 | J109: =H109*I109 -> 14760 | K109: =+H109*(1-I109) -> 14760 | M109: Not in the estimate but should have been
C110: Madrid South MS-004 Mine Equipment disconnections | D110: ea | E110: 4 | F110: TMAC | G110: 680 | H110: 2720 | I110: 0.5 | J110: 1360 | K110: 1360
C111: Madrid South MS-004 Mine Equipment Tent debris haul to landfil | D111: m3 | E111: 225 | F111: TMAC | G111: =10.23+3.26 -> 13.49 | H111: 3035.25 | I111: 0.5 | J111: 1517.625 | K111: 1517.625 | M111: Not in the estimate but should have been
B112: Core Shack/Warehouse | C112: DM-024 Demolition | D112: m3 | E112: 3610 | F112: TMAC | G112: 13.12 | H112: =G112*E112 -> 47363.2 | I112: 0.5 | J112: =H112*I112 -> 23681.6 | K112: =+H112*(1-I112) -> 23681.6
C113: DM-024 Load Debris | D113: m3 | E113: 350 | F113: TMAC | G113: =10.23 -> 10.23 | H113: 3580.5 | I113: 0.5 | J113: 1790.25 | K113: 1790.25
C114: Load and haul core boxes | D114: m3 | E114: 3300 | F114: TMAC | G114: =10.23+3.26 -> 13.49 | H114: =G114*E114 -> 44517 | I114: 0.5 | J114: =H114*I114 -> 22258.5 | K114: =+H114*(1-I114) -> 22258.5 | N114: increased from 1665 to 3300 per SRK Line 188 set to 0
C115: DM-024 haul debris and containers to landfill for disposal | D115: m3 | E115: 350 | F115: TMAC | G115: 4.92 | H115: 1722 | I115: 0.5 | J115: 861 | K115: 861
B116: Underground Wash Bay | C116: DM-023 Demolition of tent structure | D116: m3 | E116: 776.9 | F116: TMAC | G116: 13.12 | H116: 10192.928 | I116: 0.5 | J116: 5096.464 | K116: 5096.464
C117: DM-023 Load and haul to landfill | D117: m3 | E117: 13.5 | F117: TMAC | G117: =10.23+4.92 -> 15.15 | H117: 204.525 | I117: 0.5 | J117: 102.2625 | K117: 102.2625
B118: Fuel tanks | C118: Roberts Bay RB-013, RB-002, RB-003 & DM-020 decommissioning and dismantling | D118: ea | E118: 9 | F118: TMAC | G118: =100000 -> 100000 | H118: 900000 | I118: 0.5 | J118: 450000 | K118: 450000
C119: Roberts Bay Tank Farm - cutting tanks and haul to landfill | D119: m3 | E119: 0 | F119: TMAC | G119: =10.23+5.99 -> 16.22 | H119: =G119*E119 -> 0 | I119: 0.5 | J119: =H119*I119 -> 0 | K119: =+H119*(1-I119) -> 0 | N119: volume is included in line 120 reduce from 129 to 0
C120: Roberts Bay Tank Farm - Waste Consolidation and transfer to landfill | D120: m3 | E120: 435.5 | F120: TMAC | G120: =10.23+5.99 -> 16.22 | H120: =G120*E120 -> 7063.81 | I120: 0.5 | J120: =H120*I120 -> 3531.905 | K120: =+H120*(1-I120) -> 3531.905 | N120: Clarification from SRK that 435.5 includes 129 for cutting
C121: Doris Tank Farm DM-020 decommissioning and dismantling | D121: ea | E121: 5 | F121: TMAC | G121: 75000 | H121: =G121*E121 -> 375000 | I121: 0.5 | J121: =H121*I121 -> 187500 | K121: =+H121*(1-I121) -> 187500
C122: Doris Mine Tank Farm - cutting tanks and haul to landfill | D122: m3 | E122: 25 | F122: TMAC | G122: =10.23+4.7 -> 14.93 | H122: =G122*E122 -> 373.25 | I122: 0.5 | J122: 186.625 | K122: 186.625
C123: Doris Mine Tank Farm - Waste Consolidation and transfer to landfill | D123: m3 | E123: =85 -> 85 | F123: TMAC | G123: =10.23+4.7 -> 14.93 | H123: =G123*E123 -> 1269.05 | I123: 0.5 | J123: 634.525 | K123: 634.525
C124: Madrid North Tank Farm MN-011 decommissioning and dismantling | D124: ea | E124: 3 | F124: TMAC | G124: 75000 | H124: =G124*E124 -> 225000 | I124: 0.5 | J124: =H124*I124 -> 112500 | K124: =+H124*(1-I124) -> 112500
C125: Madrid North Tank Farm - cutting tanks and haul to landfill | D125: m3 | E125: 20 | F125: TMAC | G125: =10.23+4.92 -> 15.15 | H125: =G125*E125 -> 303 | I125: 0.5 | J125: 151.5 | K125: 151.5
C126: Madrid North Tank Farm - Waste Consolidation and transfer to landfill | D126: m3 | E126: 35 | F126: TMAC | G126: =10.23+4.92 -> 15.15 | H126: =G126*E126 -> 530.25 | I126: 0.5 | J126: 265.125 | K126: 265.125
C127: Madrid South Tank Farm MS-017 decommissioning and dismantling | D127: ea | E127: 1 | F127: TMAC | G127: 75000 | H127: =G127*E127 -> 75000 | I127: 0.5 | J127: 37500 | K127: 37500
C128: Madrid South Tank Farm - cutting tanks and haul to landfill | D128: m3 | E128: 1 | F128: TMAC | G128: =10.23+3.26 -> 13.49 | H128: =G128*E128 -> 13.49 | I128: 0.5 | J128: 6.745 | K128: 6.745
C129: Madrid South Tank Farm - Waste Consolidation and transfer to landfill | D129: m3 | E129: 4 | F129: TMAC | G129: =10.23+3.26 -> 13.49 | H129: =G129*E129 -> 53.96 | I129: 0.5 | J129: 26.98 | K129: 26.98
C130: Patch Lake tank farm - sump removal | D130: each | E130: 1 | F130: TMAC | G130: 7190 | H130: =G130*E130 -> 7190 | I130: 0.5 | J130: =H130*I130 -> 3595 | K130: =+H130*(1-I130) -> 3595
C131: Windy Tank Farm Haul reusable material to Doris and unload containers | D131: m3 | E131: 11 | F131: TMAC | G131: =2.77+34.08 -> 36.85 | H131: =G131*E131 -> 405.35 | I131: 0.5 | J131: =H131*I131 -> 202.675 | K131: =+H131*(1-I131) -> 202.675
C132: Windy Tank Farm load debris into seacans and transport to landfill | D132: m3 | E132: 12 | F132: TMAC | G132: =10.23+3.26 -> 13.49 | H132: 161.88 | I132: 0.5 | J132: 80.94 | K132: 80.94
B133: Fuel Containment areas | C133: RB-013, RB-002, RB-003 & DM-020 excavation of cover soil | D133: m3 | E133: 0 | F133: TMAC | G133: 2.75 | H133: =G133*E133 -> 0 | I133: 0.5 | J133: 0 | K133: 0 | N133: double counted already in Chemicals tab reduce from 17334 to 0
B134: Fuel tank piping and containment structure | C134: RB-013, RB-002, RB-003 & DM-020 includes load and transport to landfill | D134: m3 | E134: 0 | F134: TMAC | G134: =10.23+14.08 -> 24.31 | H134: =G134*E134 -> 0 | I134: 0.5 | J134: 0 | K134: 0 | N134: double count already in line 120 reduce from 435.5 to 0
B135: Backup Generator | C135: DM-002 Decommission | D135: each | E135: 4 | F135: TMAC | G135: 680 | H135: =G135*E135 -> 2720 | I135: 0.5 | J135: 1360 | K135: 1360 | N135: 0
C136: DM-002 disconnect generator and prep for off-site removal | D136: each | E136: 2 | F136: TMAC | G136: 785 | H136: 1570 | I136: 0.5 | J136: 785 | K136: 785
C137: DM-002 demolition | D137: m3 | E137: 1296.6 | F137: TMAC | G137: =13.12 -> 13.12 | H137: 17011.392 | I137: 0.5 | J137: =H137*I137 -> 8505.696 | K137: =+H137*(1-I137) -> 8505.696 | M137: added cost to containerize and haul to landfill | N137: Double count on load and haulage so rate reduced to demo only
C138: DM-002 Haulage to laydown or landfill | D138: m3 | E138: =0.1*E137 -> 129.66 | F138: TMAC | G138: 4.7 | H138: 609.402 | I138: 0.5 | J138: 304.701 | K138: 304.701 | N138: amended volume to 10% of demolition volume
C139: DM-002 Consolidate and dispose of waste at landfill | D139: m3 | E139: =0.05*E137 -> 64.83 | F139: TMAC | G139: =10.23+4.7 -> 14.93 | H139: 967.9119 | I139: 0.5 | J139: 483.95595 | K139: 483.95595 | M139: added haulage cost | N139: amended volume to 5% of demolition volume
B141: Fire Protection pumping station | D141: m | F141: brs1h | G141: =IF(ISNA(F141),0,INDEX(IF(UPPER(RIGHT(F141,1))=Low,UnitCostLow, IF(UPPER(RIGHT(F141,1))=High,UnitCostHigh,UnitCostSpecified)),MATCH(UPPER(LEFT(F141,LEN(F141)-1)),CostCode,0))) -> 65 | H141: 0 | I141: 0.5 | J141: 0 | K141: 0
B142: Fire Water Storage Tank | C142: Doris Fire Water Storage Tank pad regrade (DM-005) | D142: m2 | E142: 75 | F142: TMAC | G142: 4.7 | H142: 352.5 | I142: 0.5 | J142: 176.25 | K142: 176.25
C143: Doris Fire Water Storage Tank (DM-005) decom equipment elec/mech | D143: each | E143: 3 | F143: TMAC | G143: 1330 | H143: 3990 | I143: 0.5 | J143: =H143*I143 -> 1995 | K143: =+H143*(1-I143) -> 1995
C144: Remove insulation | D144: each | E144: 1 | F144: TMAC | G144: 750 | H144: =G144*E144 -> 750 | I144: 0.5 | J144: =H144*I144 -> 375 | K144: =+H144*(1-I144) -> 375
C145: Doris Fire Water Storage Tank (DM-005) disconnect pumps and pipe | D145: each | E145: 1 | F145: TMAC | G145: 1370 | H145: 1370 | I145: 0.5 | J145: 685 | K145: 685
C146: Doris Fire Water Storage Tank (DM-005) dismantle tank | D146: LS | E146: 0 | F146: TMAC | G146: =100000 -> 100000 | H146: =G146*E146 -> 0 | I146: 0.5 | J146: =H146*I146 -> 0 | K146: =+H146*(1-I146) -> 0 | N146: Double count reduce from 1 to 0
C147: Doris Fire Water Storage Tank demo | D147: m3 | E147: 2 | F147: TMAC | G147: =10.23 -> 10.23 | H147: 20.46 | I147: 0.5 | J147: 10.23 | K147: 10.23
C148: Doris Fire Water Storage Tank haul to landfill | D148: m3 | E148: 2 | F148: TMAC | G148: 4.92 | H148: 9.84 | I148: 0.5 | J148: 4.92 | K148: 4.92
B149: Freshwater intake | C149: DM-026 Remove water line | D149: lm | E149: 25 | F149: TMAC | G149: 11.08 | H149: 277 | I149: 0.5 | J149: 138.5 | K149: 138.5
C150: DM-026 Decommission Structure | D150: each | E150: 2 | F150: TMAC | G150: 1330 | H150: =G150*E150 -> 2660 | I150: 0.5 | J150: =H150*I150 -> 1330 | K150: =+H150*(1-I150) -> 1330
C151: DM-026 Disconnect equipment/clean and run O/W separator | D151: each | E151: 1 | F151: TMAC | G151: =94.44+24.05+31.89 -> 150.38 | H151: =G151*E151 -> 150.38 | I151: 0.5 | J151: =H151*I151 -> 75.19 | K151: =+H151*(1-I151) -> 75.19
C152: DM-026 Prep Equipment for off-site removal | D152: each | E152: 2 | F152: TMAC | G152: 1370 | H152: 2740 | I152: 0.5 | J152: 1370 | K152: 1370
C153: DM-026 haul containers and debris to landfill | D153: m3 | E153: =66.4+21.3 -> 87.7 | F153: TMAC | G153: 4.7 | H153: =G153*E153 -> 412.19 | I153: 0.5 | J153: =H153*I153 -> 206.095 | K153: =+H153*(1-I153) -> 206.095
C154: DM-026 Consolidate and load debris | D154: m3 | E154: =66.4+21.3 -> 87.7 | F154: TMAC | G154: =10.23 -> 10.23 | H154: 897.171 | I154: 0.5 | J154: 448.5855 | K154: 448.5855
C155: Windy Potable Water Supply Decommission and Dismantle | D155: each | E155: 1 | F155: TMAC | G155: =1330+535 -> 1865 | H155: =G155*E155 -> 1865 | I155: 0.5 | J155: =H155*I155 -> 932.5 | K155: =+H155*(1-I155) -> 932.5
C156: Windy Potable Water Supply unit prep | D156: m3 | E156: 4 | F156: TMAC | G156: 805 | H156: =G156*E156 -> 3220 | I156: 0.5 | J156: =H156*I156 -> 1610 | K156: =+H156*(1-I156) -> 1610
C157: Windy Potable Water Supply relocate | D157: m3 | E157: 35 | F157: TMAC | G157: =10.23+2.77 -> 13 | H157: =G157*E157 -> 455 | I157: 0.5 | J157: =H157*I157 -> 227.5 | K157: =+H157*(1-I157) -> 227.5 | M157: added containerization/loading cost
B158: Roberts Bay Waste Management Facility | C158: RB-005 Prep containers for off-site disposal | D158: each | E158: 11 | F158: TMAC | G158: 1370 | H158: 15070 | I158: 0.5 | J158: 7535 | K158: 7535
C159: RB-005 Dismantle facility | D159: each | E159: 2 | F159: TMAC | G159: 535 | H159: =G159*E159 -> 1070 | I159: 0.5 | J159: =H159*I159 -> 535 | K159: =+H159*(1-I159) -> 535
C160: RB-005 demolition | D160: m3 | E160: 321.6 | F160: TMAC | G160: 13.12 | H160: 4219.392 | I160: 0.5 | J160: 2109.696 | K160: 2109.696
C161: RB-005 Consolidate and dispose of waste at landfill | D161: m3 | E161: =189.8 -> 189.8 | F161: TMAC | G161: =10.23+5.23 -> 15.46 | H161: =G161*E161 -> 2934.308 | I161: 0.5 | J161: =H161*I161 -> 1467.154 | K161: =+H161*(1-I161) -> 1467.154
B162: Communications Towers | C162: RB-009 & DM-004 Decommission and dismantle | D162: each | E162: =1+2 -> 3 | F162: TMAC | G162: =679.52+15749.71 -> 16429.23 | H162: =G162*E162 -> 49287.69 | I162: 0.5 | J162: =H162*I162 -> 24643.845 | K162: =+H162*(1-I162) -> 24643.845 | M162: includes decon and dismantle
C163: RB-009 & DM-004 Remove equipment | D163: each | E163: =4+12 -> 16 | F163: TMAC | G163: 375 | H163: =G163*E163 -> 6000 | I163: 0.5 | J163: =H163*I163 -> 3000 | K163: =+H163*(1-I163) -> 3000 | M163: TMAC update does not include for 4 units at RB-009 so added back in
C164: DM-004 Relocate tower equipment for off-site transfer | D164: m3 | E164: 37.2 | F164: TMAC | G164: 2.3 | H164: =G164*E164 -> 85.56 | I164: 0.5 | J164: =H164*I164 -> 42.78 | K164: =+H164*(1-I164) -> 42.78
C165: DM-004 Remove equipment from Doris Mt. | D165: m3 | E165: 9 | F165: TMAC | G165: 2509.33 | H165: =G165*E165 -> 22583.97 | I165: 0.5 | J165: =H165*I165 -> 11291.985 | K165: =+H165*(1-I165) -> 11291.985
C166: DM-004 demolish housing shack | D166: m3 | E166: 24 | F166: TMAC | G166: 13.12 | H166: 314.88 | I166: 0.5 | J166: 157.44 | K166: 157.44
C167: DM-004 remove fibre optics and elec. | D167: m | E167: 12 | F167: TMAC | G167: 680 | H167: =G167*E167 -> 8160 | I167: 0.5 | J167: =H167*I167 -> 4080 | K167: =+H167*(1-I167) -> 4080
C168: RB-009 & DM-004 Load and haul for disposal | D168: m3 | E168: =23.9+9 -> 32.9 | F168: TMAC | G168: =10.23+4.7 -> 14.93 | H168: 491.197 | I168: 0.5 | J168: 245.5985 | K168: 245.5985
B169: Reagent Pad Exploration Drilling Support Shop & Laydown Pads | C169: RP-004 Prep containers for off-site disposal | D169: each | E169: 13 | F169: TMAC | G169: 1370 | H169: 17810 | I169: 0.5 | J169: 8905 | K169: 8905
C170: RP-004 Decommission facility | D170: each | E170: 2 | F170: TMAC | G170: 680 | H170: 1360 | I170: 0.5 | J170: 680 | K170: 680
C171: RP-004 demolition | D171: m3 | E171: 708.7 | F171: TMAC | G171: =13.12 -> 13.12 | H171: 9298.144 | I171: 0.5 | J171: 4649.072 | K171: 4649.072 | M171: Added cost for containerization and haulage to landfill | N171: Double count on load and haulage so rate reduced to demo only
C172: RP-004 load and haulage | D172: m3 | E172: =0.1*E171 -> 70.87 | F172: TMAC | G172: =10.23+5.23 -> 15.46 | H172: =G172*E172 -> 1095.6502 | I172: 0.5 | J172: =H172*I172 -> 547.8251 | K172: =+H172*(1-I172) -> 547.8251 | N172: Added task for loading and haulage = 10% of demo volume
C173: RP-002 Consolidate Debris | D173: m2 | E173: =35245+25420 -> 60665 | F173: TMAC | G173: 0.37 | H173: 22446.05 | I173: 0.5 | J173: =H173*I173 -> 11223.025 | K173: =+H173*(1-I173) -> 11223.025
C174: RP-003 Remove Liner Cover Soil | D174: m3 | E174: 0 | F174: TMAC | G174: 2.75 | H174: 0 | I174: 0.5 | J174: 0 | K174: 0 | N174: Double count included in Chemicals reduce from 1390 to 0
C175: RP-001, RP-002, RP-003 & RP-004 Load waste for disposal | D175: m3 | E175: =12.4+20+20+25.2 -> 77.6 | F175: TMAC | G175: 10.23 | H175: 793.848 | I175: 0.5 | J175: 396.924 | K175: 396.924
C176: RP-001, RP-002, RP-003 & RP-004 Haul and dispose of demo waste & containers to landfill | D176: m3 | E176: =12.4+483.7+25.2+20+20 -> 561.3 | F176: TMAC | G176: 5.23 | H176: 2935.599 | I176: 0.5 | J176: 1467.7995 | K176: 1467.7995
B177: Waste Management Area Landfarm, Batch Plant, and Burn Pan Area | C177: WM-001 Treat Contaminated Water | D177: LS | E177: 1 | F177: TMAC | G177: 5000 | H177: 5000 | J177: 0 | K177: 5000
C178: WM-001 Remove Cover Soil from Containment | D178: m3 | E178: 0 | F178: TMAC | G178: 2.75 | H178: 0 | I178: 0.5 | J178: 0 | K178: 0 | N178: Double count included in Chemicals reduce from 2591 to 0
C179: WM-001 & WM-002 load and haul debris to landfill | D179: m3 | E179: =118.4+55.9 -> 174.3 | F179: TMAC | G179: =10.23+4.7 -> 14.93 | H179: =G179*E179 -> 2602.299 | I179: 0.5 | J179: =H179*I179 -> 1301.1495 | K179: =+H179*(1-I179) -> 1301.1495
C180: WM-002 Demolish Structure & collect debris | D180: m3 | E180: 3700 | F180: TMAC | G180: 13.12 | H180: 48544 | I180: 0.5 | J180: 24272 | K180: 24272
C181: WM-003 Consolidate ash from burn pan | D181: m3 | E181: 0.1 | F181: TMAC | G181: 765 | H181: =G181*E181 -> 76.5 | I181: 0.5 | J181: =H181*I181 -> 38.25 | K181: =+H181*(1-I181) -> 38.25
C182: WM-003 Dismantle Burn Pan | D182: each | E182: 1 | F182: TMAC | G182: 535 | H182: 535 | I182: 0.5 | J182: 267.5 | K182: 267.5
C183: WM-003 load and haul waste | D183: m3 | E183: 1 | F183: TMAC | G183: =10.23+4.7 -> 14.93 | H183: 14.93 | I183: 0.5 | J183: 7.465 | K183: 7.465
C184: Windy Waste Incinerator dismantling | D184: each | E184: 1 | F184: TMAC | G184: 535 | H184: 535 | I184: 0.5 | J184: 267.5 | K184: 267.5
C185: Windy Waste Incinerator load into containers | D185: m3 | E185: 7 | F185: TMAC | G185: =805+2.77 -> 807.77 | H185: 5654.39 | I185: 0.5 | J185: 2827.195 | K185: 2827.195
C186: Windy Waste incinerator - decommissioning mechanical | D186: each | E186: 1 | F186: TMAC | G186: 1325 | H186: =G186*E186 -> 1325 | I186: 0.5 | J186: =H186*I186 -> 662.5 | K186: =+H186*(1-I186) -> 662.5
C187: Windy Waste Incinerator consolidate waste and transfer to landfill | D187: m3 | E187: 1 | F187: TMAC | G187: =763.55+3.26 -> 766.81 | H187: =G187*E187 -> 766.81 | I187: 0.5 | J187: =H187*I187 -> 383.405 | K187: =+H187*(1-I187) -> 383.405
B188: Doris/Windy AWR and Waste Management Core Storage Areas | C188: DW-008 Load and haul core boxes/containers to Q3 landfill | D188: m3 | E188: 0 | F188: TMAC | G188: =10.23+3.26 -> 13.49 | H188: =G188*E188 -> 0 | I188: 0.5 | J188: =H188*I188 -> 0 | K188: =+H188*(1-I188) -> 0 | N188: Reduce from 3300 to 0 as already in Line 114
C189: Relocate crusher and hopper | D189: each | E189: 2 | F189: TMAC | G189: 3300 | H189: =G189*E189 -> 6600 | I189: 0.5 | J189: =H189*I189 -> 3300 | K189: =+H189*(1-I189) -> 3300
C190: Load and haul equipment to Roberts Bay | D190: m3 | E190: 35 | F190: TMAC | G190: =10.23+4.04 -> 14.27 | H190: 499.45 | I190: 0.5 | J190: 249.725 | K190: 249.725 | M190: added a high unit rate for haulage and loading cost
C191: DW-008 Collect Debris | D191: m2 | E191: =10000+10000 -> 20000 | F191: TMAC | G191: 0.18 | H191: 3600 | I191: 0.5 | J191: 1800 | K191: 1800
C192: DW-008 laod and haul waste to Boston Landfill | D192: m3 | E192: =6+6 -> 12 | F192: TMAC | G192: =10.23+3.26 -> 13.49 | H192: 161.88 | I192: 0.5 | J192: 80.94 | K192: 80.94
B193: Madrid Boston & Doris Windry AWR Turbine Pad | C193: Waste removal from Pads 1 to 6 and ship to landfill | D193: m3 | E193: =580*6 -> 3480 | F193: TMAC | G193: 3.21 | H193: 11170.8 | I193: 0.5 | J193: 5585.4 | K193: 5585.4
C194: Collect debris from Pads 1 to 6 | D194: m2 | E194: =5080*6 -> 30480 | F194: TMAC | G194: 0.57 | H194: =G194*E194 -> 17373.6 | I194: 0.5 | J194: =H194*I194 -> 8686.8 | K194: =+H194*(1-I194) -> 8686.8
C195: Load and haul debris from Pads 1 to 6 to landfill | D195: m3 | E195: =580*6 -> 3480 | F195: TMAC | G195: =10.23+3.26 -> 13.49 | H195: 46945.2 | I195: 0.5 | J195: 23472.6 | K195: 23472.6 | M195: added unit rate for haulage to landfill
C196: Doris Windy AWR turbines dismantling | D196: each | E196: 6 | F196: TMAC | G196: 500000 | H196: 3000000 | I196: 0.5 | J196: 1500000 | K196: 1500000
C197: Doris Windy AWR turbines transport parts to Roberts Bay | D197: each | E197: 6 | F197: TMAC | G197: 15000 | H197: 90000 | I197: 0.5 | J197: 45000 | K197: 45000 | M197: average the cost between the six turbines
C198: Doris Windy demolition and containerization of sheds demo debris | D198: m3 | E198: =290*6 -> 1740 | F198: TMAC | G198: =13.12 -> 13.12 | H198: =G198*E198 -> 22828.8 | I198: 0.5 | J198: =H198*I198 -> 11414.4 | K198: =+H198*(1-I198) -> 11414.4 | M198: added cost for containerization to demo cost | N198: According to SRK no containerization will be required so rate reduces from $23.35 to 13.12
C199: Doris Windy AWR turbine wiring removal (fibre optic and elec) | D199: lm | E199: =11950+11950+3385+1695+405+4260 -> 33645 | F199: TMAC | G199: 14.04 | H199: =G199*E199 -> 472375.8 | I199: 0.5 | J199: =H199*I199 -> 236187.9 | K199: =+H199*(1-I199) -> 236187.9
B200: Roberts Bay Jetty | C200: RB-001 Remove mooring points | D200: LS | E200: 1 | F200: TMAC | G200: 1200 | H200: 1200 | I200: 0.5 | J200: 600 | K200: 600
C201: RB-01 Remove rock fill and grade | D201: m3 | E201: 1220 | F201: TMAC | G201: 2.75 | H201: 3355 | I201: 0.5 | J201: 1677.5 | K201: 1677.5
C202: RB-001 Remove mooring buoy | D202: LS | E202: 1 | F202: TMAC | G202: 2500 | H202: 2500 | I202: 0.5 | J202: 1250 | K202: 1250
... 142 more rows

Sheet Water Management
A1: 1 | B1: Capital Expenditures and Short Term Water Treatment identified in 'Instructions' worksheet
B3: ACTIVITY/MATERIAL | C3: Notes | D3: Units | E3: Quantity | F3: Cost Code | G3: Unit Cost | H3: Cost
B4: BREACH WATER PONDS & CONTAINMENT BERMS
B5: Remove/Level Berms (excavation) | C5: MN-022, RB-013, RB-002, RB-003, RP-003, WM-001,DM-013, DM-014, DM-020 | D5: m3 | E5: =45+154+77.8+90+90+76+453.6+28.8+76 -> 1091.2 | F5: TMAC | G5: 2.75 | H5: =G5*E5 -> 3000.8
B6: Remove/Level Berms (grading) | C6: DM-015, DM-035, MN-003, MS-003 & MS-012 | D6: m3 | E6: =3130+1008+1008+1008+1008 -> 7162 | F6: TMAC | G6: 1.23 | H6: =G6*E6 -> 8809.26
B7: Contour water intake area | D7: m3 | F7: =NA() ->  | G7: =IF(ISNA(F7),0,INDEX(IF(UPPER(RIGHT(F7,1))=Low,UnitCostLow, IF(UPPER(RIGHT(F7,1))=High,UnitCostHigh,UnitCostSpecified)),MATCH(UPPER(LEFT(F7,LEN(F7)-1)),CostCode,0))) -> 0 | H7: =G7*E7 -> 0
B8: STABILIZE SEDIMENT PONDS/WATER MANAGEMENT PONDS/SEWAGE DISCHARGE AREA
B9: Place soil cover | C9: Q2-003 | D9: m3 | E9: 552 | F9: TMAC | G9: 16.35 | H9: =G9*E9 -> 9025.2
B10: Place erosion control blanket | C10: Q2-002, Q2-003, PLA-001, WC-002 | D10: m2 | E10: =2635+380+460+500+100 -> 4075 | F10: TMAC | G10: 4.84 | H10: 19723
B11: place ROQ | C11: PLA-003 | D11: m3 | E11: 552 | F11: TMAC | G11: 12.69 | H11: =G11*E11 -> 7004.88
B12: Doze & spread excavated material | D12: m3 | F12: =NA() ->  | G12: =IF(ISNA(F12),0,INDEX(IF(UPPER(RIGHT(F12,1))=Low,UnitCostLow, IF(UPPER(RIGHT(F12,1))=High,UnitCostHigh,UnitCostSpecified)),MATCH(UPPER(LEFT(F12,LEN(F12)-1)),CostCode,0))) -> 0 | H12: 0
B13: Vegetate spread material | D13: ha | F13: =NA() ->  | G13: =IF(ISNA(F13),0,INDEX(IF(UPPER(RIGHT(F13,1))=Low,UnitCostLow, IF(UPPER(RIGHT(F13,1))=High,UnitCostHigh,UnitCostSpecified)),MATCH(UPPER(LEFT(F13,LEN(F13)-1)),CostCode,0))) -> 0 | H13: 0
B14: Rip rap in channel base | D14: each | F14: =NA() ->  | G14: =IF(ISNA(F14),0,INDEX(IF(UPPER(RIGHT(F14,1))=Low,UnitCostLow, IF(UPPER(RIGHT(F14,1))=High,UnitCostHigh,UnitCostSpecified)),MATCH(UPPER(LEFT(F14,LEN(F14)-1)),CostCode,0))) -> 0 | H14: 0
B15: Remove sediment from WRSF Pond | D15: allow | F15: AE | G15: 10000 | H15: 0
B16: REDIRECT RUNOFF/CONSTRUCT DIVERSION DITCHES
B17: Excavate ditches -soil | D17: m3 | F17: sc3l | G17: =IF(ISNA(F17),0,INDEX(IF(UPPER(RIGHT(F17,1))=Low,UnitCostLow, IF(UPPER(RIGHT(F17,1))=High,UnitCostHigh,UnitCostSpecified)),MATCH(UPPER(LEFT(F17,LEN(F17)-1)),CostCode,0))) -> 8.9 | H17: =G17*E17 -> 0
B18: Excavate ditches -rock | D18: m3 | F18: =NA() ->  | G18: =IF(ISNA(F18),0,INDEX(IF(UPPER(RIGHT(F18,1))=Low,UnitCostLow, IF(UPPER(RIGHT(F18,1))=High,UnitCostHigh,UnitCostSpecified)),MATCH(UPPER(LEFT(F18,LEN(F18)-1)),CostCode,0))) -> 0 | H18: =G18*E18 -> 0
B19: Stabilize side slopes | D19: m3 | F19: =NA() ->  | G19: =IF(ISNA(F19),0,INDEX(IF(UPPER(RIGHT(F19,1))=Low,UnitCostLow, IF(UPPER(RIGHT(F19,1))=High,UnitCostHigh,UnitCostSpecified)),MATCH(UPPER(LEFT(F19,LEN(F19)-1)),CostCode,0))) -> 0 | H19: =G19*E19 -> 0
B20: Rip rap in channel base | D20: m3 | F20: rr2l | G20: =IF(ISNA(F20),0,INDEX(IF(UPPER(RIGHT(F20,1))=Low,UnitCostLow, IF(UPPER(RIGHT(F20,1))=High,UnitCostHigh,UnitCostSpecified)),MATCH(UPPER(LEFT(F20,LEN(F20)-1)),CostCode,0))) -> 14.2 | H20: =G20*E20 -> 0
B21: BREACH DITCHES & TAILINGS IMPOUNDMENT AREA
B22: Excavate breaches | C22: TIA-003, RB-013, RB-002 | D22: m3 | E22: 31021.1 | F22: TMAC | G22: 8.82 | H22: =G22*E22 -> 273606.102
B23: Drill and Blast Ice Core | C23: TIA-003 | D23: m3 | E23: 7028 | F23: TMAC | G23: 24.76 | H23: =G23*E23 -> 174013.28
B24: Place borrow for core protection | C24: TIA-003 | D24: m3 | E24: 614.2 | F24: TMAC | G24: 16.35 | H24: =G24*E24 -> 10042.17
B25: Install flow dissipation | D25: m3 | F25: =NA() ->  | G25: =IF(ISNA(F25),0,INDEX(IF(UPPER(RIGHT(F25,1))=Low,UnitCostLow, IF(UPPER(RIGHT(F25,1))=High,UnitCostHigh,UnitCostSpecified)),MATCH(UPPER(LEFT(F25,LEN(F25)-1)),CostCode,0))) -> 0 | H25: =G25*E25 -> 0
B26: Vegetate remainder of ditch | D26: m2 | F26: =NA() ->  | G26: =IF(ISNA(F26),0,INDEX(IF(UPPER(RIGHT(F26,1))=Low,UnitCostLow, IF(UPPER(RIGHT(F26,1))=High,UnitCostHigh,UnitCostSpecified)),MATCH(UPPER(LEFT(F26,LEN(F26)-1)),CostCode,0))) -> 0 | H26: =G26*E26 -> 0
B27: DECOMISSION FRESH WATER SUPPLY
B28: Breach embankment | D28: m | F28: =NA() ->  | G28: =IF(ISNA(F28),0,INDEX(IF(UPPER(RIGHT(F28,1))=Low,UnitCostLow, IF(UPPER(RIGHT(F28,1))=High,UnitCostHigh,UnitCostSpecified)),MATCH(UPPER(LEFT(F28,LEN(F28)-1)),CostCode,0))) -> 0 | H28: =G28*E28 -> 0
B29: Remove pump | C29: Madrid North sump and Doris two sumps | D29: each | E29: 3 | F29: TMAC | G29: 2500 | H29: =G29*E29 -> 7500
B30: Remove pipeline | D30: LS | F30: AE | G30: 40000 | H30: =G30*E30 -> 0
B31: Backfill Sumps | C31: DM-018, MN-023 | D31: m3 | E31: =34+17 -> 51 | F31: TMAC | G31: 16.35 | H31: =G31*E31 -> 833.85
B32: WATER CONTROL IN RECLAMATION QUARRY
B33: Install pumping system | D33: LS | F33: =NA() ->  | G33: =IF(ISNA(F33),0,INDEX(IF(UPPER(RIGHT(F33,1))=Low,UnitCostLow, IF(UPPER(RIGHT(F33,1))=High,UnitCostHigh,UnitCostSpecified)),MATCH(UPPER(LEFT(F33,LEN(F33)-1)),CostCode,0))) -> 0 | H33: =G33*E33 -> 0
B34: Remove pumping system | D34: LS | F34: =NA() ->  | G34: =IF(ISNA(F34),0,INDEX(IF(UPPER(RIGHT(F34,1))=Low,UnitCostLow, IF(UPPER(RIGHT(F34,1))=High,UnitCostHigh,UnitCostSpecified)),MATCH(UPPER(LEFT(F34,LEN(F34)-1)),CostCode,0))) -> 0 | H34: =G34*E34 -> 0
B35: REMOVE PIPELINES
B36: Remove pipes | C36: Process water pipeline from Madrid North to Water Treatment Plant at TIA | D36: m | E36: 9000 | F36: TMAC | G36: =11.08+4.92 -> 16 | H36: =G36*E36 -> 144000 | I36: Not included in TMAC security but required to address movement of water from concentrator to WTP
B37: Concrete plug deep pipes | D37: m3 | F37: =NA() ->  | G37: =IF(ISNA(F37),0,INDEX(IF(UPPER(RIGHT(F37,1))=Low,UnitCostLow, IF(UPPER(RIGHT(F37,1))=High,UnitCostHigh,UnitCostSpecified)),MATCH(UPPER(LEFT(F37,LEN(F37)-1)),CostCode,0))) -> 0 | H37: =G37*E37 -> 0
B38: Other | C38: Remove pumps and cables | D38: LS | E38: 1 | F38: TMAC | G38: 2500 | H38: =G38*E38 -> 2500
B39: GROUNDWATER COLLECTION SYSTEM
B40: Excavate/install sumps | D40: m3 | F40: =NA() ->  | G40: =IF(ISNA(F40),0,INDEX(IF(UPPER(RIGHT(F40,1))=Low,UnitCostLow, IF(UPPER(RIGHT(F40,1))=High,UnitCostHigh,UnitCostSpecified)),MATCH(UPPER(LEFT(F40,LEN(F40)-1)),CostCode,0))) -> 0 | H40: =G40*E40 -> 0
B41: Install pumping wells | D41: m3 | F41: =NA() ->  | G41: =IF(ISNA(F41),0,INDEX(IF(UPPER(RIGHT(F41,1))=Low,UnitCostLow, IF(UPPER(RIGHT(F41,1))=High,UnitCostHigh,UnitCostSpecified)),MATCH(UPPER(LEFT(F41,LEN(F41)-1)),CostCode,0))) -> 0 | H41: =G41*E41 -> 0
B42: Install pumps/pipelines/power supply | D42: LS | F42: =NA() ->  | G42: =IF(ISNA(F42),0,INDEX(IF(UPPER(RIGHT(F42,1))=Low,UnitCostLow, IF(UPPER(RIGHT(F42,1))=High,UnitCostHigh,UnitCostSpecified)),MATCH(UPPER(LEFT(F42,LEN(F42)-1)),CostCode,0))) -> 0 | H42: =G42*E42 -> 0
B43: CONSTRUCT CONTAMINATED WATER STORAGE POND
B44: Excavate pond | D44: m3 | F44: =NA() ->  | G44: =IF(ISNA(F44),0,INDEX(IF(UPPER(RIGHT(F44,1))=Low,UnitCostLow, IF(UPPER(RIGHT(F44,1))=High,UnitCostHigh,UnitCostSpecified)),MATCH(UPPER(LEFT(F44,LEN(F44)-1)),CostCode,0))) -> 0 | H44: =G44*E44 -> 0
B45: Doze & spread excavated material | D45: m3 | F45: =NA() ->  | G45: 0 | H45: 0
B46: Vegetate spread material | D46: ha | F46: =NA() ->  | G46: 0 | H46: 0
B47: Bedding layer | D47: m3 | F47: =NA() ->  | G47: 0 | H47: 0
B48: Supply geomembrane | D48: m2 | F48: =NA() ->  | G48: 0 | H48: 0
B49: Install geomembrane | D49: m2 | F49: =NA() ->  | G49: 0 | H49: 0
B50: Erosion protection layer | D50: m3 | F50: =NA() ->  | G50: 0 | H50: 0
B51: CONSTRUCT PASSIVE TREATMENT SYSTEM (e.g. Constructed Wetland)
B52: Construct access roads | D52: km | F52: =NA() ->  | G52: 0 | H52: =G52*E52 -> 0
B53: Install HDPE piping system from collection pond | D53: m | F53: =NA() ->  | G53: 0 | H53: 0
B54: Inter-cell flow structures | D54: allow | F54: =NA() ->  | G54: 0 | H54: 0
B55: Install liners | D55: m2 | F55: =NA() ->  | G55: 0 | H55: 0
B56: Install growth media | D56: m3 | F56: =NA() ->  | G56: 0 | H56: 0
B57: Wetland vegetation | D57: ha | F57: =NA() ->  | G57: 0 | H57: 0
B58: CONSTRUCT WATER TREATMENT PLANT
B59: Build treatment plant | D59: LS | F59: =NA() ->  | G59: =IF(ISNA(F59),0,INDEX(IF(UPPER(RIGHT(F59,1))=Low,UnitCostLow, IF(UPPER(RIGHT(F59,1))=High,UnitCostHigh,UnitCostSpecified)),MATCH(UPPER(LEFT(F59,LEN(F59)-1)),CostCode,0))) -> 0 | H59: =G59*E59 -> 0
B60: Build sludge containment facility | D60: LS | F60: =NA() ->  | G60: =IF(ISNA(F60),0,INDEX(IF(UPPER(RIGHT(F60,1))=Low,UnitCostLow, IF(UPPER(RIGHT(F60,1))=High,UnitCostHigh,UnitCostSpecified)),MATCH(UPPER(LEFT(F60,LEN(F60)-1)),CostCode,0))) -> 0 | H60: =G60*E60 -> 0
G61: Total | H61: =SUM(H5:H60)+0.0001 -> 660058.5421
B62: For cost of long-term/post-closure water treatment see "WATER TREATMENT" Worksheet"

Sheet Water Treatment
A1: 1 | B1: Post Closure Water Treatment - Identified as long term/post-closure in 'Instructions' worksheet
B3: ACTIVITY/MATERIAL | C3: Notes | D3: Units | E3: Quantity | F3: Cost Code | G3: Unit Cost | H3: Cost
B4: ADDITION OF REAGENTS TO WTP
B5: H2O2 | D5: kg | F5: =NA() ->  | G5: =IF(ISNA(F5),0,INDEX(IF(UPPER(RIGHT(F5,1))=Low,UnitCostLow, IF(UPPER(RIGHT(F5,1))=High,UnitCostHigh,UnitCostSpecified)),MATCH(UPPER(LEFT(F5,LEN(F5)-1)),CostCode,0))) -> 0 | H5: =G5*E5 -> 0
B6: lime | D6: kg | F6: =NA() ->  | G6: 0 | H6: 0
B7: ferric sulphate | D7: kg | F7: =NA() ->  | G7: 0 | H7: 0
B8: ferrous sulphate | D8: kg | F8: =NA() ->  | G8: 0 | H8: 0
B9: flocculents | D9: kg | F9: =NA() ->  | G9: 0 | H9: 0
B10: Other | F10: =NA() ->  | G10: 0 | H10: 0
B11: LABOUR AND SUPPLIES
B12: Annual fuel | D12: litres | F12: =NA() ->  | G12: =IF(ISNA(F12),0,INDEX(IF(UPPER(RIGHT(F12,1))=Low,UnitCostLow, IF(UPPER(RIGHT(F12,1))=High,UnitCostHigh,UnitCostSpecified)),MATCH(UPPER(LEFT(F12,LEN(F12)-1)),CostCode,0))) -> 0 | H12: =G12*E12 -> 0
B13: Annual power | D13: kW-h | F13: =NA() ->  | G13: =IF(ISNA(F13),0,INDEX(IF(UPPER(RIGHT(F13,1))=Low,UnitCostLow, IF(UPPER(RIGHT(F13,1))=High,UnitCostHigh,UnitCostSpecified)),MATCH(UPPER(LEFT(F13,LEN(F13)-1)),CostCode,0))) -> 0 | H13: =G13*E13 -> 0
B14: Electrician/mechanic to maintain treatment plant | C14: Closure Dam Reclaim Pond | D14: days | E14: 170 | F14: TMAC | G14: 1190 | H14: 202300
B15: Equipment maintenance and parts | D15: allow | E15: 1 | F15: TMAC | G15: 50000 | H15: 50000
B16: Misc. supplies, hoses, tools | D16: allow | E16: 1 | F16: TMAC | G16: 20000 | H16: 20000
B17: Communications | D17: allow | F17: =NA() ->  | G17: 0 | H17: 0
B18: Other | F18: =NA() ->  | G18: 0 | H18: 0
B19: WATER MANAGEMENT FROM LANDFARM
B20: Water Treatment (reagents, equip Op. labour) | D20: m3 | F20: =NA() ->  | G20: =IF(ISNA(F20),0,INDEX(IF(UPPER(RIGHT(F20,1))=Low,UnitCostLow, IF(UPPER(RIGHT(F20,1))=High,UnitCostHigh,UnitCostSpecified)),MATCH(UPPER(LEFT(F20,LEN(F20)-1)),CostCode,0))) -> 0 | H20: =G20*E20 -> 0
B21: Water pumping from sumps and ponds to treatment plant | D21: allow | F21: =NA() ->  | G21: =IF(ISNA(F21),0,INDEX(IF(UPPER(RIGHT(F21,1))=Low,UnitCostLow, IF(UPPER(RIGHT(F21,1))=High,UnitCostHigh,UnitCostSpecified)),MATCH(UPPER(LEFT(F21,LEN(F21)-1)),CostCode,0))) -> 0 | H21: =G21*E21 -> 0
B22: Annual Treatment Plant Servicing | D22: manhours | F22: lab-ss | G22: =IF(ISNA(F22),0,INDEX(IF(UPPER(RIGHT(F22,1))=Low,UnitCostLow, IF(UPPER(RIGHT(F22,1))=High,UnitCostHigh,UnitCostSpecified)),MATCH(UPPER(LEFT(F22,LEN(F22)-1)),CostCode,0))) -> 120 | H22: =G22*E22 -> 0
B23: Treatment Plant Servicing Travel Allowance | D23: visit | F23: =NA() ->  | G23: =IF(ISNA(F23),0,INDEX(IF(UPPER(RIGHT(F23,1))=Low,UnitCostLow, IF(UPPER(RIGHT(F23,1))=High,UnitCostHigh,UnitCostSpecified)),MATCH(UPPER(LEFT(F23,LEN(F23)-1)),CostCode,0))) -> 0 | H23: =G23*E23 -> 0
B24: Other | D24: allow | E24: 1 | F24: TMAC | G24: 5000 | H24: =G24*E24 -> 5000
B25: WTP WATER SAMPLING AND ANALYSES
B26: Sampling equipment | D26: allow | F26: =NA() ->  | G26: =IF(ISNA(F26),0,INDEX(IF(UPPER(RIGHT(F26,1))=Low,UnitCostLow, IF(UPPER(RIGHT(F26,1))=High,UnitCostHigh,UnitCostSpecified)),MATCH(UPPER(LEFT(F26,LEN(F26)-1)),CostCode,0))) -> 0 | H26: =G26*E26 -> 0
B27: Analyses | D27: allow | F27: =NA() ->  | G27: =IF(ISNA(F27),0,INDEX(IF(UPPER(RIGHT(F27,1))=Low,UnitCostLow, IF(UPPER(RIGHT(F27,1))=High,UnitCostHigh,UnitCostSpecified)),MATCH(UPPER(LEFT(F27,LEN(F27)-1)),CostCode,0))) -> 0 | H27: =G27*E27 -> 0
B28: Shipping to laboratory | D28: allow | F28: =NA() ->  | G28: =IF(ISNA(F28),0,INDEX(IF(UPPER(RIGHT(F28,1))=Low,UnitCostLow, IF(UPPER(RIGHT(F28,1))=High,UnitCostHigh,UnitCostSpecified)),MATCH(UPPER(LEFT(F28,LEN(F28)-1)),CostCode,0))) -> 0 | H28: =G28*E28 -> 0
B29: Reporting | D29: allow | F29: =NA() ->  | G29: =IF(ISNA(F29),0,INDEX(IF(UPPER(RIGHT(F29,1))=Low,UnitCostLow, IF(UPPER(RIGHT(F29,1))=High,UnitCostHigh,UnitCostSpecified)),MATCH(UPPER(LEFT(F29,LEN(F29)-1)),CostCode,0))) -> 0 | H29: =G29*E29 -> 0
B30: Other | F30: =NA() ->  | G30: =IF(ISNA(F30),0,INDEX(IF(UPPER(RIGHT(F30,1))=Low,UnitCostLow, IF(UPPER(RIGHT(F30,1))=High,UnitCostHigh,UnitCostSpecified)),MATCH(UPPER(LEFT(F30,LEN(F30)-1)),CostCode,0))) -> 0 | H30: =G30*E30 -> 0
B31: SITE ACCESS
B32: Road maintenance (incl. snow removal) | D32: allow | F32: =NA() ->  | G32: =IF(ISNA(F32),0,INDEX(IF(UPPER(RIGHT(F32,1))=Low,UnitCostLow, IF(UPPER(RIGHT(F32,1))=High,UnitCostHigh,UnitCostSpecified)),MATCH(UPPER(LEFT(F32,LEN(F32)-1)),CostCode,0))) -> 0 | H32: =G32*E32 -> 0
B33: Winter road tariff | D33: allow | F33: =NA() ->  | G33: =IF(ISNA(F33),0,INDEX(IF(UPPER(RIGHT(F33,1))=Low,UnitCostLow, IF(UPPER(RIGHT(F33,1))=High,UnitCostHigh,UnitCostSpecified)),MATCH(UPPER(LEFT(F33,LEN(F33)-1)),CostCode,0))) -> 0 | H33: =G33*E33 -> 0
B34: Truck rental | D34: allow | F34: =NA() ->  | G34: =IF(ISNA(F34),0,INDEX(IF(UPPER(RIGHT(F34,1))=Low,UnitCostLow, IF(UPPER(RIGHT(F34,1))=High,UnitCostHigh,UnitCostSpecified)),MATCH(UPPER(LEFT(F34,LEN(F34)-1)),CostCode,0))) -> 0 | H34: =G34*E34 -> 0
B35: Air support | D35: allow | F35: =NA() ->  | G35: =IF(ISNA(F35),0,INDEX(IF(UPPER(RIGHT(F35,1))=Low,UnitCostLow, IF(UPPER(RIGHT(F35,1))=High,UnitCostHigh,UnitCostSpecified)),MATCH(UPPER(LEFT(F35,LEN(F35)-1)),CostCode,0))) -> 0 | H35: =G35*E35 -> 0
G37: Annual water treatment costs | H37: =SUM(H5:H36)+0.0001 -> 277300.0001
B38: Number of years of water treatment | D38: years | E38: 2
G39: Total | H39: =AnnualTreat1Cost*E38 -> 554600.0002

Sheet ICM
A1: 1 | B1: Interim Care and Maintenance
B3: ACTIVITY/MATERIAL | C3: Notes | D3: Units | E3: Quantity | F3: Cost Code | G3: Unit Cost | H3: Cost
B4: INTERIM CARE & MAINTENANCE
B5: on-site caretaker | C5: supervisor | D5: hrs | F5: superh | G5: =IF(ISNA(F5),0,INDEX(IF(UPPER(RIGHT(F5,1))=Low,UnitCostLow, IF(UPPER(RIGHT(F5,1))=High,UnitCostHigh,UnitCostSpecified)),MATCH(UPPER(LEFT(F5,LEN(F5)-1)),CostCode,0))) -> 91.84 | H5: =G5*E5 -> 0
B6: extra personnel | C6: one skilled labourer | D6: manmonths | F6: lab-sl | G6: 41 | H6: 0
B7: -electrician | C7: incrmental cost to the overall ICM for Hope Bay | D7: manmonths | F7: elech | G7: =IF(ISNA(F7),0,INDEX(IF(UPPER(RIGHT(F7,1))=Low,UnitCostLow, IF(UPPER(RIGHT(F7,1))=High,UnitCostHigh,UnitCostSpecified)),MATCH(UPPER(LEFT(F7,LEN(F7)-1)),CostCode,0))) -> 95 | H7: =G7*E7 -> 0
B8: -mechanic | C8: incrmental cost to the overall ICM for Hope Bay | D8: manmonths | F8: mechh | G8: =IF(ISNA(F8),0,INDEX(IF(UPPER(RIGHT(F8,1))=Low,UnitCostLow, IF(UPPER(RIGHT(F8,1))=High,UnitCostHigh,UnitCostSpecified)),MATCH(UPPER(LEFT(F8,LEN(F8)-1)),CostCode,0))) -> 72.85 | H8: =G8*E8 -> 0
B9: annual fuel | D9: litre | F9: fcdh | G9: 1.39 | H9: 0
B10: misc. supplies | D10: allow | F10: accmh | G10: =IF(ISNA(F10),0,INDEX(IF(UPPER(RIGHT(F10,1))=Low,UnitCostLow, IF(UPPER(RIGHT(F10,1))=High,UnitCostHigh,UnitCostSpecified)),MATCH(UPPER(LEFT(F10,LEN(F10)-1)),CostCode,0))) -> 175 | H10: =G10*E10 -> 0
B11: pick-up truck | D11: each | F11: ACI | G11: 20000 | H11: 0
B12: small dozer | D12: allow | F12: dozersl | G12: 205 | H12: 0
B13: small excavator | D13: allow | F13: exc-sl | G13: 190 | H13: 0
B14: Operation and Maintenance | C14: includes camp operations | D14: allow | E14: 1 | F14: TMAC | G14: 1570000 | H14: 1570000
B15: Mobilization of ICM Equipment Fleet | D15: allow | E15: 0.33 | F15: TMAC | G15: 260000 | H15: 85800
B16: SNP/AEMP water sampling & reporting | D16: each | E16: 3 | F16: TMAC | G16: 60000 | H16: 180000
B17: Compliance Monitoring | D17: each | E17: 1 | F17: TMAC | G17: 95000 | H17: =G17*E17 -> 95000
B18: Regulatory reporting | D18: each | E18: 3 | F18: TMAC | G18: 20000 | H18: =G18*E18 -> 60000
B19: geotechnical assessment | D19: each | E19: 3 | F19: TMAC | G19: 35000 | H19: 105000
B20: interim water treatment | F20: =NA() ->  | H20: =AnnualTreat1Cost -> 277300.0001
B21: other | D21: allow | H21: 0
G22: Annual Interim C&M Cost | H22: =SUM(H5:H21) -> 2373100
B23: Number of years of ICM | D23: years | E23: 3 | G23: Total | H23: =H22*E23 -> 7119300

Sheet Mobilization
A1: 1 | B1: Mobilization/Demobilization:
B3: ACTIVITY/MATERIAL | C3: Notes | D3: Units | E3: Quantity | F3: Cost Code | G3: Unit Cost | H3: Cost
B4: MOBILIZE HEAVY EQUIPMENT
B5: Excavators | C5: assume two excavators | D5: km | F5: mherh | G5: =IF(ISNA(F5),0,INDEX(IF(UPPER(RIGHT(F5,1))=Low,UnitCostLow, IF(UPPER(RIGHT(F5,1))=High,UnitCostHigh,UnitCostSpecified)),MATCH(UPPER(LEFT(F5,LEN(F5)-1)),CostCode,0))) -> 10.25 | H5: =G5*E5 -> 0
B6: Dump trucks | C6: assume four dump trucks | D6: km | F6: mherl | G6: 3.4 | H6: 0
B7: Dozers | C7: assume two dozers | D7: km | F7: mherh | G7: 10.25 | H7: 0
B8: Demolition shears | C8: assume one set of shears | D8: km | F8: mherh | G8: 10.25 | H8: 0
B9: Crane | C9: assume one crane | D9: km | F9: mherh | G9: 10.25 | H9: 0
B10: Loader | C10: assume one loader | D10: km | F10: mherh | G10: 10.25 | H10: =G10*E10 -> 0
B11: Compactor | D11: km | F11: =NA() ->  | G11: =IF(ISNA(F11),0,INDEX(IF(UPPER(RIGHT(F11,1))=Low,UnitCostLow, IF(UPPER(RIGHT(F11,1))=High,UnitCostHigh,UnitCostSpecified)),MATCH(UPPER(LEFT(F11,LEN(F11)-1)),CostCode,0))) -> 0 | H11: =G11*E11 -> 0
B12: Light duty vehicles | C12: assume three trucks | D12: km | F12: mherl | G12: =IF(ISNA(F12),0,INDEX(IF(UPPER(RIGHT(F12,1))=Low,UnitCostLow, IF(UPPER(RIGHT(F12,1))=High,UnitCostHigh,UnitCostSpecified)),MATCH(UPPER(LEFT(F12,LEN(F12)-1)),CostCode,0))) -> 3.4 | H12: 0
B13: MOBILIZE MISC. EQUIPMENT
B14: Other | C14: Mobilize eqipment and materials | D14: allow | E14: 1 | F14: =NA() ->  | G14: 1090000 | H14: 1090000
B15: MOBILIZE CAMP
B16: Maintain Camp Accomodations | C16: Food | D16: mandays | E16: 19021 | F16: TMAC | G16: 100 | H16: =G16*E16 -> 1902100 | J16: Change rate from $110 to $100
B17: Camp Mobilization/Demobilization | D17: LS | E17: 1 | F17: TMAC | G17: 208000 | H17: =G17*E17 -> 208000
B18: Field Support Staff | C18: mechanic | D18: day | E18: 109 | F18: TMAC | G18: 1160 | H18: =G18*E18 -> 126440
B19: Camp Rental | D19: year | E19: 3 | F19: TMAC | G19: 495000 | H19: =G19*E19 -> 1485000
B20: Camp Operations | D20: year | E20: 3 | F20: TMAC | G20: 816750 | H20: =G20*E20 -> 2450250
B21: MOBILIZE WORKERS
B22: Reclamation activities - transport | D22: flight | E22: 78 | F22: TMAC | G22: 10625 | H22: =G22*E22 -> 828750
B23: Reclamation activities - travel time | D23: manhours | E23: =E16*4/14 -> 5434.571429 | F23: ACI | G23: 80 | H23: =G23*E23 -> 434765.7143
B24: Long term reclamation activities (eg pump flooding) - transport | D24: each | F24: AE | G24: 3500 | H24: =G24*E24 -> 0
B25: Long term reclamation activities (eg pump flooding) - travel time | D25: manhours | F25: AE | G25: 80 | H25: =G25*E25 -> 0
B26: Monitoring Airfare | D26: each | F26: mwl | G26: =IF(ISNA(F26),0,INDEX(IF(UPPER(RIGHT(F26,1))=Low,UnitCostLow, IF(UPPER(RIGHT(F26,1))=High,UnitCostHigh,UnitCostSpecified)),MATCH(UPPER(LEFT(F26,LEN(F26)-1)),CostCode,0))) -> 4500 | H26: =G26*E26 -> 0
B27: WORKER ACCOMODATIONS
B28: Reclamation activities | D28: manmonths | F28: =NA() ->  | G28: 2225 | H28: =G28*E28 -> 0
B29: Long term reclamation activities (eg pump flooding) | D29: manmonths | F29: =NA() ->  | G29: =IF(ISNA(F29),0,INDEX(IF(UPPER(RIGHT(F29,1))=Low,UnitCostLow, IF(UPPER(RIGHT(F29,1))=High,UnitCostHigh,UnitCostSpecified)),MATCH(UPPER(LEFT(F29,LEN(F29)-1)),CostCode,0))) -> 0 | H29: =G29*E29 -> 0
B30: MOBILIZE FUEL
B31: Fuel freight - reclamation activities | C31: assumes sufficient fuel is on site to complete the work | D31: litre | F31: fcdh | G31: =IF(ISNA(F31),0,INDEX(IF(UPPER(RIGHT(F31,1))=Low,UnitCostLow, IF(UPPER(RIGHT(F31,1))=High,UnitCostHigh,UnitCostSpecified)),MATCH(UPPER(LEFT(F31,LEN(F31)-1)),CostCode,0))) -> 1.39 | H31: =G31*E31 -> 0
B32: Fuel freight - long term reclamation activities | C32: assumes sufficient fuel is on site to complete the work | D32: litre | F32: =NA() ->  | G32: =IF(ISNA(F32),0,INDEX(IF(UPPER(RIGHT(F32,1))=Low,UnitCostLow, IF(UPPER(RIGHT(F32,1))=High,UnitCostHigh,UnitCostSpecified)),MATCH(UPPER(LEFT(F32,LEN(F32)-1)),CostCode,0))) -> 0 | H32: =G32*E32 -> 0
B33: Fuel freight accomodations | D33: litre | F33: =NA() ->  | G33: =IF(ISNA(F33),0,INDEX(IF(UPPER(RIGHT(F33,1))=Low,UnitCostLow, IF(UPPER(RIGHT(F33,1))=High,UnitCostHigh,UnitCostSpecified)),MATCH(UPPER(LEFT(F33,LEN(F33)-1)),CostCode,0))) -> 0 | H33: =G33*E33 -> 0
B34: WINTER ROAD
B35: Construction and operation | D35: km | F35: =NA() ->  | G35: =IF(ISNA(F35),0,INDEX(IF(UPPER(RIGHT(F35,1))=Low,UnitCostLow, IF(UPPER(RIGHT(F35,1))=High,UnitCostHigh,UnitCostSpecified)),MATCH(UPPER(LEFT(F35,LEN(F35)-1)),CostCode,0))) -> 0 | H35: =G35*E35 -> 0
B36: Limited winter use | D36: km | F36: =NA() ->  | G36: =IF(ISNA(F36),0,INDEX(IF(UPPER(RIGHT(F36,1))=Low,UnitCostLow, IF(UPPER(RIGHT(F36,1))=High,UnitCostHigh,UnitCostSpecified)),MATCH(UPPER(LEFT(F36,LEN(F36)-1)),CostCode,0))) -> 0 | H36: =G36*E36 -> 0
B37: Winter road tarriff | D37: km | F37: =NA() ->  | G37: =IF(ISNA(F37),0,INDEX(IF(UPPER(RIGHT(F37,1))=Low,UnitCostLow, IF(UPPER(RIGHT(F37,1))=High,UnitCostHigh,UnitCostSpecified)),MATCH(UPPER(LEFT(F37,LEN(F37)-1)),CostCode,0))) -> 0 | H37: =G37*E37 -> 0
B38: DEMOBILIZE EQUIPMENT & MATERIALs
B39: Excavators | C39: assume two excavators | D39: km | F39: mherh | G39: =IF(ISNA(F39),0,INDEX(IF(UPPER(RIGHT(F39,1))=Low,UnitCostLow, IF(UPPER(RIGHT(F39,1))=High,UnitCostHigh,UnitCostSpecified)),MATCH(UPPER(LEFT(F39,LEN(F39)-1)),CostCode,0))) -> 10.25 | H39: =G39*E39 -> 0
B40: Dump trucks | C40: assume four dump trucks | D40: km | F40: mherl | G40: =IF(ISNA(F40),0,INDEX(IF(UPPER(RIGHT(F40,1))=Low,UnitCostLow, IF(UPPER(RIGHT(F40,1))=High,UnitCostHigh,UnitCostSpecified)),MATCH(UPPER(LEFT(F40,LEN(F40)-1)),CostCode,0))) -> 3.4 | H40: 0
B41: Dozers | C41: assume two dozers | D41: km | F41: mherh | G41: 10.25 | H41: 0
B42: Demolition shears | C42: assume one set of shears | D42: km | F42: mherh | G42: 10.25 | H42: 0
B43: Crane | C43: assume one crane | D43: km | F43: mherh | G43: 10.25 | H43: 0
B44: Loader | C44: assume one loader | D44: km | F44: mherh | G44: =IF(ISNA(F44),0,INDEX(IF(UPPER(RIGHT(F44,1))=Low,UnitCostLow, IF(UPPER(RIGHT(F44,1))=High,UnitCostHigh,UnitCostSpecified)),MATCH(UPPER(LEFT(F44,LEN(F44)-1)),CostCode,0))) -> 10.25 | H44: =G44*E44 -> 0
B45: Compactor | D45: each | F45: =NA() ->  | G45: =IF(ISNA(F45),0,INDEX(IF(UPPER(RIGHT(F45,1))=Low,UnitCostLow, IF(UPPER(RIGHT(F45,1))=High,UnitCostHigh,UnitCostSpecified)),MATCH(UPPER(LEFT(F45,LEN(F45)-1)),CostCode,0))) -> 0 | H45: =G45*E45 -> 0
B46: Light duty vehicles | C46: assume three trucks | D46: km | F46: mherl | G46: 3.4 | H46: 0
B47: Other | C47: Demobilize eqipment and materials | D47: allow | E47: 1 | F47: =NA() ->  | G47: 1090000 | H47: 1090000
B48: DEMOBILIZE CAMP
D49: allow | F49: =NA() ->  | G49: =IF(ISNA(F49),0,INDEX(IF(UPPER(RIGHT(F49,1))=Low,UnitCostLow, IF(UPPER(RIGHT(F49,1))=High,UnitCostHigh,UnitCostSpecified)),MATCH(UPPER(LEFT(F49,LEN(F49)-1)),CostCode,0))) -> 0 | H49: =G49*E49 -> 0
B50: DEMOBILIZE WORKERS
B51: crew travel time | C51: cost in mobilization of workers. | D51: mandays | F51: =NA() ->  | G51: =IF(ISNA(F51),0,INDEX(IF(UPPER(RIGHT(F51,1))=Low,UnitCostLow, IF(UPPER(RIGHT(F51,1))=High,UnitCostHigh,UnitCostSpecified)),MATCH(UPPER(LEFT(F51,LEN(F51)-1)),CostCode,0))) -> 0 | H51: =G51*E51 -> 0
B52: crew transportation | D52: each | F52: =NA() ->  | G52: =IF(ISNA(F52),0,INDEX(IF(UPPER(RIGHT(F52,1))=Low,UnitCostLow, IF(UPPER(RIGHT(F52,1))=High,UnitCostHigh,UnitCostSpecified)),MATCH(UPPER(LEFT(F52,LEN(F52)-1)),CostCode,0))) -> 0 | H52: =G52*E52 -> 0
B53: WINTER ROAD
B54: Construction and operation | D54: km | F54: wrcl | G54: =IF(ISNA(F54),0,INDEX(IF(UPPER(RIGHT(F54,1))=Low,UnitCostLow, IF(UPPER(RIGHT(F54,1))=High,UnitCostHigh,UnitCostSpecified)),MATCH(UPPER(LEFT(F54,LEN(F54)-1)),CostCode,0))) -> 2000 | H54: =G54*E54 -> 0
B55: Limited winter use | D55: km | F55: =NA() ->  | G55: =IF(ISNA(F55),0,INDEX(IF(UPPER(RIGHT(F55,1))=Low,UnitCostLow, IF(UPPER(RIGHT(F55,1))=High,UnitCostHigh,UnitCostSpecified)),MATCH(UPPER(LEFT(F55,LEN(F55)-1)),CostCode,0))) -> 0 | H55: =G55*E55 -> 0
B56: Winter road tarriff | D56: tonnekm | F56: wrul | G56: =IF(ISNA(F56),0,INDEX(IF(UPPER(RIGHT(F56,1))=Low,UnitCostLow, IF(UPPER(RIGHT(F56,1))=High,UnitCostHigh,UnitCostSpecified)),MATCH(UPPER(LEFT(F56,LEN(F56)-1)),CostCode,0))) -> 0.29 | H56: =G56*E56 -> 0
G57: Total | H57: =SUM(H5:H56) -> 9615305.714

Sheet PostClosure
A1: 1 | B1: Post-Closure Monitoring & Maintenance:
B3: ACTIVITY/MATERIAL | C3: Notes | D3: Units | E3: Quantity | F3: Cost Code | G3: Unit Cost | H3: Cost
B4: MONITORING & INSPECTIONS
B5: Annual geotechnical inspection | C5: Year 1, 2, 3, 6, 10, 15, 20, & 25 | D5: each | E5: 1 | F5: TMAC | G5: 28000 | H5: =G5*E5 -> 28000 | I5: 8 inspections @$35,000 each = $280,000
B6: Cover Monitoirng Inspections | C6: Year 2, 4, 6, 8, 10, 15, 20 &25 | D6: each | E6: 1 | F6: TMAC | G6: 28000 | H6: 28000 | I6: 8 inspections @$35,000 each = $280,000
B7: Surface water sampling | C7: Year 1 - 5, 7, 10, 15, 20 & 25 | D7: each | E7: 1 | F7: TMAC | G7: 60000 | H7: 60000 | I7: 10 insepctions @$60,000 = $600,000
B8: Groundwater sampling | D8: each | F8: wsh | G8: =IF(ISNA(F8),0,INDEX(IF(UPPER(RIGHT(F8,1))=Low,UnitCostLow, IF(UPPER(RIGHT(F8,1))=High,UnitCostHigh,UnitCostSpecified)),MATCH(UPPER(LEFT(F8,LEN(F8)-1)),CostCode,0))) -> 10000 | H8: 0
B9: Receiving.downstream water sampling | D9: each | F9: wsh | G9: 10000 | H9: 0
B10: Monitoring program | C10: initial confirmatory program | D10: each | E10: 1 | F10: TMAC | G10: 10000 | H10: 10000 | I10: 1 time event prorated for 10 years total = $100,000
B11: Survey inspection | D11: each | F11: =NA() ->  | G11: =IF(ISNA(F11),0,INDEX(IF(UPPER(RIGHT(F11,1))=Low,UnitCostLow, IF(UPPER(RIGHT(F11,1))=High,UnitCostHigh,UnitCostSpecified)),MATCH(UPPER(LEFT(F11,LEN(F11)-1)),CostCode,0))) -> 0 | H11: 0
B12: Regulatory Monitoring* | C12: Year 1 - 10, 15, 20 & 25 | D12: each | E12: 1 | F12: TMAC | G12: 26000 | H12: 26000 | I12: 13 insepctions @$20,000 = $260,000
B13: Site water monitoring (AEMP and SNP) | D13: each | F13: =NA() ->  | G13: 25000 | H13: 0
B14: - Active closure and flooding | D14: each | F14: =NA() ->  | G14: 0 | H14: 0
B15: - Post pit flooding | D15: each | F15: =NA() ->  | G15: 0 | H15: 0
B16: Air Quality Monitoring Program (AQMP) | D16: each | F16: =NA() ->  | G16: 0 | H16: 0
B17: Wildlife Effects Monitoring Program (WEMP) | D17: each | F17: =NA() ->  | G17: =IF(ISNA(F17),0,INDEX(IF(UPPER(RIGHT(F17,1))=Low,UnitCostLow, IF(UPPER(RIGHT(F17,1))=High,UnitCostHigh,UnitCostSpecified)),MATCH(UPPER(LEFT(F17,LEN(F17)-1)),CostCode,0))) -> 0 | H17: 0
B18: Vegetation Monitoring | D18: each | F18: =NA() ->  | G18: 0 | H18: 0
B19: Other | C19: Equipment mechanic for inspections | D19: days | E19: 5 | F19: TMAC | G19: 1157.53 | H19: =G19*E19 -> 5787.65 | I19: approximately 50 days of mechanic time over ten years
B20: COVER MAINTENANCE
B21: Repair erosion - infill gullies | D21: allow | F21: =NA() ->  | G21: =IF(ISNA(F21),0,INDEX(IF(UPPER(RIGHT(F21,1))=Low,UnitCostLow, IF(UPPER(RIGHT(F21,1))=High,UnitCostHigh,UnitCostSpecified)),MATCH(UPPER(LEFT(F21,LEN(F21)-1)),CostCode,0))) -> 0 | H21: 0
B22: Repair erosion - upgrade diversion ditches | D22: allow | F22: =NA() ->  | G22: 0 | H22: =G22*E22 -> 0
B23: Remove problem vegetation | D23: allow | F23: =NA() ->  | G23: 0 | H23: =G23*E23 -> 0
B24: Repair animal damage | D24: allow | F24: =NA() ->  | G24: 0 | H24: =G24*E24 -> 0
B25: Repair/upgrade access controls | D25: allow | F25: =NA() ->  | G25: 0 | H25: =G25*E25 -> 0
B26: Other | F26: =NA() ->  | G26: 0 | H26: =G26*E26 -> 0
B27: SPILLWAY MAINTENANCE
B28: Repair erosion | D28: m3 | F28: =NA() ->  | G28: 0 | H28: 0
B29: Clear spillway | D29: each | F29: =NA() ->  | G29: 0 | H29: =G29*E29 -> 0
B30: CWTS MAINTENANCE
B31: Maintain flow, restore vegetation | D31: allow | F31: =NA() ->  | G31: =IF(ISNA(F31),0,INDEX(IF(UPPER(RIGHT(F31,1))=Low,UnitCostLow, IF(UPPER(RIGHT(F31,1))=High,UnitCostHigh,UnitCostSpecified)),MATCH(UPPER(LEFT(F31,LEN(F31)-1)),CostCode,0))) -> 0 | H31: =G31*E31 -> 0
B32: POST-CLOSURE WATER TREATMENT
B33: water treatment - refer to water treatment tab | E33: 1 | F33: wt tab | G33: =AnnualTreat1Cost -> 277300.0001 | H33: =G33*E33 -> 277300.0001
B35: Subtotal, Annual post-closure costs | H35: =SUM(H5:H34)+0.0001 -> 435087.6502
B37: Discount rate for calculation of net present value of post-closure cost, % | F37: 0
B38: Number of years of post-closure activity | F38: 10 | G38: years
B39: Present Value of payment stream | H39: =PV(DiscountRate,PCYears, PCAnnualTotal)*-1 -> 4350876.502
B41: *Regulatory costs - annual reporting, management plans, progress reports etc.

Sheet Open Pit
A1: 1 | B1: Open Pit Name: | G1: Pit # | H1: 1
B3: ACTIVITY/MATERIAL | C3: Notes | D3: Units | E3: Quantity | F3: Cost Code | G3: Unit Cost | H3: Cost | I3: % Land | J3: Land Cost | K3: Water Cost
B4: CONTROL ACCESS
B5: Fence | D5: m | F5: =NA() ->  | G5: =IF(ISNA(F5),0,INDEX(IF(UPPER(RIGHT(F5,1))=Low,UnitCostLow, IF(UPPER(RIGHT(F5,1))=High,UnitCostHigh,UnitCostSpecified)),MATCH(UPPER(LEFT(F5,LEN(F5)-1)),CostCode,0))) -> 0 | H5: =G5*E5 -> 0 | J5: =H5*I5 -> 0 | K5: =H5*(1-I5) -> 0
B6: Signs | D6: each | F6: SH | G6: 37.08 | H6: =G6*E6 -> 0 | J6: =H6*I6 -> 0 | K6: =H6*(1-I6) -> 0
B7: Berm at crest | D7: m3 | F7: =NA() ->  | G7: =IF(ISNA(F7),0,INDEX(IF(UPPER(RIGHT(F7,1))=Low,UnitCostLow, IF(UPPER(RIGHT(F7,1))=High,UnitCostHigh,UnitCostSpecified)),MATCH(UPPER(LEFT(F7,LEN(F7)-1)),CostCode,0))) -> 0 | H7: =G7*E7 -> 0 | J7: 0 | K7: 0
B8: Block roads | D8: m3 | F8: RB1H | G8: =IF(ISNA(F8),0,INDEX(IF(UPPER(RIGHT(F8,1))=Low,UnitCostLow, IF(UPPER(RIGHT(F8,1))=High,UnitCostHigh,UnitCostSpecified)),MATCH(UPPER(LEFT(F8,LEN(F8)-1)),CostCode,0))) -> 17.05 | H8: =G8*E8 -> 0 | J8: 0 | K8: 0
B9: Other | F9: =NA() ->  | G9: =IF(ISNA(F9),0,INDEX(IF(UPPER(RIGHT(F9,1))=Low,UnitCostLow, IF(UPPER(RIGHT(F9,1))=High,UnitCostHigh,UnitCostSpecified)),MATCH(UPPER(LEFT(F9,LEN(F9)-1)),CostCode,0))) -> 0 | H9: =G9*E9 -> 0 | J9: =H9*I9 -> 0 | K9: =H9*(1-I9) -> 0
B10: STABILITY STUDY
B11: Conduct stability and setback study | D11: allow | F11: EA | G11: 20000 | H11: =G11*E11 -> 0 | J11: =H11*I11 -> 0 | K11: =H11*(1-I11) -> 0
B12: STABILIZE SLOPES
B13: Off-load crest, soil A | D13: m3 | F13: =NA() ->  | G13: =IF(ISNA(F13),0,INDEX(IF(UPPER(RIGHT(F13,1))=Low,UnitCostLow, IF(UPPER(RIGHT(F13,1))=High,UnitCostHigh,UnitCostSpecified)),MATCH(UPPER(LEFT(F13,LEN(F13)-1)),CostCode,0))) -> 0 | H13: =G13*E13 -> 0 | J13: 0 | K13: 0
B14: Off-load crest, soil B | D14: m3 | F14: =NA() ->  | G14: 0 | H14: 0 | J14: 0 | K14: 0
B15: Doze/trim overburden at crest | D15: m3 | F15: =NA() ->  | G15: 0 | H15: 0 | J15: 0 | K15: 0
B16: Drill & blast pit crest | D16: m3 | F16: =NA() ->  | G16: 0 | H16: 0 | J16: 0 | K16: 0
B17: Buttress slope | D17: m3 | F17: =NA() ->  | G17: 0 | H17: 0 | J17: 0 | K17: 0
B18: Other | F18: =NA() ->  | G18: 0 | H18: 0 | J18: 0 | K18: 0
B19: COVER/CONTOUR SLOPES
B20: Place fill, soil A | D20: m3 | F20: =NA() ->  | G20: =IF(ISNA(F20),0,INDEX(IF(UPPER(RIGHT(F20,1))=Low,UnitCostLow, IF(UPPER(RIGHT(F20,1))=High,UnitCostHigh,UnitCostSpecified)),MATCH(UPPER(LEFT(F20,LEN(F20)-1)),CostCode,0))) -> 0 | H20: =G20*E20 -> 0 | J20: 0 | K20: 0
B21: Place fill, soil B | D21: m3 | F21: =NA() ->  | G21: 0 | H21: 0 | J21: 0 | K21: 0
B22: Rip rap | D22: m3 | F22: =NA() ->  | G22: 0 | H22: 0 | J22: 0 | K22: 0
B23: Vegetate slopes | D23: ha | F23: =NA() ->  | G23: 0 | H23: 0 | J23: 0 | K23: 0
B24: Vegetate pit floor | D24: ha | F24: =NA() ->  | G24: 0 | H24: 0 | J24: 0 | K24: 0
B25: Other | F25: =NA() ->  | G25: 0 | H25: 0 | J25: 0 | K25: 0
B26: CONSTRUCT DIVERSION DITCHES
B27: Excavate ditches -soil | C27: covered under Surface Water Mgmt | D27: m3 | F27: =NA() ->  | G27: =IF(ISNA(F27),0,INDEX(IF(UPPER(RIGHT(F27,1))=Low,UnitCostLow, IF(UPPER(RIGHT(F27,1))=High,UnitCostHigh,UnitCostSpecified)),MATCH(UPPER(LEFT(F27,LEN(F27)-1)),CostCode,0))) -> 0 | H27: =G27*E27 -> 0 | J27: =H27*I27 -> 0 | K27: =H27*(1-I27) -> 0
B28: Excavate ditches -rock | D28: m3 | F28: =NA() ->  | G28: =IF(ISNA(F28),0,INDEX(IF(UPPER(RIGHT(F28,1))=Low,UnitCostLow, IF(UPPER(RIGHT(F28,1))=High,UnitCostHigh,UnitCostSpecified)),MATCH(UPPER(LEFT(F28,LEN(F28)-1)),CostCode,0))) -> 0 | H28: =G28*E28 -> 0 | J28: =H28*I28 -> 0 | K28: =H28*(1-I28) -> 0
B29: Rip rap in channel base | D29: m3 | F29: =NA() ->  | G29: =IF(ISNA(F29),0,INDEX(IF(UPPER(RIGHT(F29,1))=Low,UnitCostLow, IF(UPPER(RIGHT(F29,1))=High,UnitCostHigh,UnitCostSpecified)),MATCH(UPPER(LEFT(F29,LEN(F29)-1)),CostCode,0))) -> 0 | H29: =G29*E29 -> 0 | J29: =H29*I29 -> 0 | K29: =H29*(1-I29) -> 0
B30: CONSTRUCT SPILLWAY
B31: Excavate channel | D31: m3 | F31: =NA() ->  | G31: =IF(ISNA(F31),0,INDEX(IF(UPPER(RIGHT(F31,1))=Low,UnitCostLow, IF(UPPER(RIGHT(F31,1))=High,UnitCostHigh,UnitCostSpecified)),MATCH(UPPER(LEFT(F31,LEN(F31)-1)),CostCode,0))) -> 0 | H31: =G31*E31 -> 0 | J31: 0 | K31: 0
B32: Concrete | D32: m3 | F32: =NA() ->  | G32: =IF(ISNA(F32),0,INDEX(IF(UPPER(RIGHT(F32,1))=Low,UnitCostLow, IF(UPPER(RIGHT(F32,1))=High,UnitCostHigh,UnitCostSpecified)),MATCH(UPPER(LEFT(F32,LEN(F32)-1)),CostCode,0))) -> 0 | H32: =G32*E32 -> 0 | J32: 0 | K32: 0
B33: Rip rap | D33: m3 | F33: =NA() ->  | G33: =IF(ISNA(F33),0,INDEX(IF(UPPER(RIGHT(F33,1))=Low,UnitCostLow, IF(UPPER(RIGHT(F33,1))=High,UnitCostHigh,UnitCostSpecified)),MATCH(UPPER(LEFT(F33,LEN(F33)-1)),CostCode,0))) -> 0 | H33: =G33*E33 -> 0 | J33: 0 | K33: 0
B34: Other | F34: =NA() ->  | G34: =IF(ISNA(F34),0,INDEX(IF(UPPER(RIGHT(F34,1))=Low,UnitCostLow, IF(UPPER(RIGHT(F34,1))=High,UnitCostHigh,UnitCostSpecified)),MATCH(UPPER(LEFT(F34,LEN(F34)-1)),CostCode,0))) -> 0 | H34: =G34*E34 -> 0 | J34: 0 | K34: 0
B35: RECLAIM QUARRIES
B36: Contour slopes | D36: m3 | F36: =NA() ->  | G36: =IF(ISNA(F36),0,INDEX(IF(UPPER(RIGHT(F36,1))=Low,UnitCostLow, IF(UPPER(RIGHT(F36,1))=High,UnitCostHigh,UnitCostSpecified)),MATCH(UPPER(LEFT(F36,LEN(F36)-1)),CostCode,0))) -> 0 | H36: =G36*E36 -> 0 | J36: =H36*I36 -> 0 | K36: =H36*(1-I36) -> 0
B37: Place overburden | D37: m3 | F37: =NA() ->  | G37: =IF(ISNA(F37),0,INDEX(IF(UPPER(RIGHT(F37,1))=Low,UnitCostLow, IF(UPPER(RIGHT(F37,1))=High,UnitCostHigh,UnitCostSpecified)),MATCH(UPPER(LEFT(F37,LEN(F37)-1)),CostCode,0))) -> 0 | H37: =G37*E37 -> 0 | J37: =H37*I37 -> 0 | K37: =H37*(1-I37) -> 0
B38: Vegetate | D38: m3 | F38: =NA() ->  | G38: =IF(ISNA(F38),0,INDEX(IF(UPPER(RIGHT(F38,1))=Low,UnitCostLow, IF(UPPER(RIGHT(F38,1))=High,UnitCostHigh,UnitCostSpecified)),MATCH(UPPER(LEFT(F38,LEN(F38)-1)),CostCode,0))) -> 0 | H38: =G38*E38 -> 0 | J38: =H38*I38 -> 0 | K38: =H38*(1-I38) -> 0
B39: FLOOD PIT-Captital
B40: Remove stationary equipment (sump pumps) | D40: Allow | G40: 10000 | H40: =G40*E40 -> 0 | J40: 0 | K40: 0
B41: Remove dewatering pipeline | D41: m | F41: =NA() ->  | G41: =IF(ISNA(F41),0,INDEX(IF(UPPER(RIGHT(F41,1))=Low,UnitCostLow, IF(UPPER(RIGHT(F41,1))=High,UnitCostHigh,UnitCostSpecified)),MATCH(UPPER(LEFT(F41,LEN(F41)-1)),CostCode,0))) -> 0 | H41: 0 | J41: =H41*I41 -> 0 | K41: =H41*(1-I41) -> 0
B42: Remove power lines | D42: each | F42: =NA() ->  | G42: 0 | H42: 0 | J42: 0 | K42: 0
B43: Construct diversion ditches | D43: m3 | F43: =NA() ->  | G43: 0 | H43: 0 | J43: =H43*I43 -> 0 | K43: =H43*(1-I43) -> 0
B44: -Ditch, mat'l A | D44: m3 | F44: =NA() ->  | G44: 0 | H44: 0 | J44: =H44*I44 -> 0 | K44: =+H44*(1-I44) -> 0
B45: -Ditch, mat'l B | D45: m3 | F45: =NA() ->  | G45: 0 | H45: 0 | J45: =H45*I45 -> 0 | K45: =+H45*(1-I45) -> 0
B46: Construct embankment/dam | D46: m3 | F46: =NA() ->  | G46: 0 | H46: 0 | J46: 0 | K46: 0
B47: Supply/install pump station | D47: Allow | G47: 500000 | H47: 0 | J47: 0 | K47: 0
B48: Supply/install piping system | D48: m | F48: =NA() ->  | G48: =IF(ISNA(F48),0,INDEX(IF(UPPER(RIGHT(F48,1))=Low,UnitCostLow, IF(UPPER(RIGHT(F48,1))=High,UnitCostHigh,UnitCostSpecified)),MATCH(UPPER(LEFT(F48,LEN(F48)-1)),CostCode,0))) -> 0 | H48: 0 | J48: =H48*I48 -> 0 | K48: =H48*(1-I48) -> 0
B49: Remove pump post-closure | D49: each | F49: =NA() ->  | G49: =IF(ISNA(F49),0,INDEX(IF(UPPER(RIGHT(F49,1))=Low,UnitCostLow, IF(UPPER(RIGHT(F49,1))=High,UnitCostHigh,UnitCostSpecified)),MATCH(UPPER(LEFT(F49,LEN(F49)-1)),CostCode,0))) -> 0 | H49: 0 | J49: =H49*I49 -> 0 | K49: =H49*(1-I49) -> 0
B50: Remove pipeline post-closure | D50: m | F50: =NA() ->  | G50: =IF(ISNA(F50),0,INDEX(IF(UPPER(RIGHT(F50,1))=Low,UnitCostLow, IF(UPPER(RIGHT(F50,1))=High,UnitCostHigh,UnitCostSpecified)),MATCH(UPPER(LEFT(F50,LEN(F50)-1)),CostCode,0))) -> 0 | H50: 0 | J50: =H50*I50 -> 0 | K50: =H50*(1-I50) -> 0
B51: FLOOD PIT-Annual Cost
B52: Operate pumps (power) | D52: each | G52: 439359.8 | H52: =G52*E52 -> 0 | J52: 0 | K52: 0
B53: Maintain pump/pipeline | D53: allow | F53: =NA() ->  | G53: =IF(ISNA(F53),0,INDEX(IF(UPPER(RIGHT(F53,1))=Low,UnitCostLow, IF(UPPER(RIGHT(F53,1))=High,UnitCostHigh,UnitCostSpecified)),MATCH(UPPER(LEFT(F53,LEN(F53)-1)),CostCode,0))) -> 0 | H53: 0 | J53: =H53*I53 -> 0 | K53: =H53*(1-I53) -> 0
B54: Labour:fuel management, comissioning/decom | D54: $/h | F54: =NA() ->  | G54: 0 | H54: 0 | J54: =H54*I54 -> 0 | K54: =H54*(1-I54) -> 0
B55: Chemical addition, _____ kg/m3 of water | D55: tonne | F55: =NA() ->  | G55: 0 | H55: 0 | J55: 0 | K55: 0
B56: Chemicals, purchase and shipping | D56: tonne | F56: =NA() ->  | G56: 0 | H56: 0 | J56: 0 | K56: 0
B57: Passive/biological additives | D57: $/ha | F57: =NA() ->  | G57: 0 | H57: 0 | J57: =H57*I57 -> 0 | K57: =H57*(1-I57) -> 0
B58: Passive additives purchase and shipping | D58: tonne | F58: =NA() ->  | G58: 0 | H58: 0 | J58: =H58*I58 -> 0 | K58: =H58*(1-I58) -> 0
B59: Other | F59: =NA() ->  | G59: 0 | H59: 0 | J59: =H59*I59 -> 0 | K59: 0
G60: Annual pumping costs | H60: =SUM(H52:H59)+0.0001 -> 0.0001
B61: Number of years of pump flooding | D61: years | E61: 0
G62: Total pumping costs | H62: =H60*E61 -> 0 | J62: =H62*I62 -> 0 | K62: =H62*(1-I62) -> 0
G63: Total | H63: =SUM(H5:H50)+H62+0.0001 -> 0.0001 | J63: =SUM(J5:J50)+J62 -> 0 | K63: =SUM(K5:K50)+K62 -> 0
G64: % of Total | J64: =J63/H63 -> 0 | K64: =K63/H63 -> 0

Sheet Unit_Costs
A1: Unit Cost Table (for refining unit costs see "Estimator" worksheet)
D2: Filter by unit
A4: ITEM | B4: Detail | D4: COST CODE | E4: UNITS | F4: LOW $ | G4: HIGH $ | H4: SPECIFIED $ | J4: COMMENTS
A6: Accomodation
D7: ACCM | E7: manday | F7: 100 | G7: 175
A8: Buildings - Decontaminate
B9: Asbestos | D9: BDA | E9: m2 | F9: 25.6 | G9: 51.2 | J9: Low: removal of asbestos siding & flooring; High: removal of insulated pipes, friable asbestos
A10: Buildings - Remove | J10: Unit costs are based on 3m high, single storey building. Scale areas accordingly.
B11: Wood | D11: BRW | E11: m2 | F11: 27.5 | G11: 41
B12: Concrete | D12: BRC | E12: m2 | F12: 40 | G12: 65 | H12: 6 | J12: Specified: puncture concrete foundation slabs
B13: Steel - teardown | D13: BRS1 | E13: m2 | F13: 45 | G13: 65
B14: Steel - for salvage | D14: BRS2 | E14: m2 | F14: 67 | G14: 100
A15: Concrete work
B16: Small pour | D16: CSF | E16: m3 | F16: 426.5 | G16: 639.75 | J16: Low: YK; High=1.5xLow
B17: Large pour | D17: CLF | E17: m3 | F17: 353.5 | G17: 530.25 | H17: 2130 | J17: Specified: concrete crown pillar
A18: Contaminated Soils
B19: ESA Phase 1 | D19: CS1 | E19: each | F19: 7500 | J19: Low: small, "clean" site
B20: ESA Phase 1 | D20: CS2 | E20: each | F20: 50000 | J20: Low: small, "clean" site
B21: Remediate on site | D21: CSR | E21: m3 | F21: 47 | G21: 146
A22: Dozing
B23: doze rock piles | D23: DR | E23: m3 | F23: 1.05 | G23: 2.4 | J23: Low cost: doze crest off dump
B24: doze overburden/soil piles | D24: DS | E24: m3 | F24: 0.95 | G24: 3.8 | J24: High cost: push up to 300 m
A25: Excavate Rock; Low Spec's and QA/QC
B26: drill/blast/load/short haul | D26: RB1 | E26: m3 | F26: 11.4 | G26: 17.05 | J26: Low:quarry operations for bulk fill
B27: drill/blast/load/long haul | D27: RB2 | E27: m3 | F27: 12.05 | G27: 17.8
B28: RB1 + spread and compact | D28: RB3 | E28: m3 | F28: 12.05 | G28: 17.8
B29: RB2 + spread and compact | D29: RB4 | E29: m3 | F29: 12.5 | G29: 30.75
B30: Specified activity | D30: RBS | E30: m3
A31: Excavate Rock; High Spec's and QA/QC | J31: (e.g. ditch/spillway excavation)
B32: drill/blast/load/short haul | D32: RC1 | E32: m3 | F32: 12.05 | G32: 17.8 | J32: Low:foundation excavation;High:spillway excavation
B33: drill/blast/load/long haul | D33: RC2 | E33: m3 | F33: 12.7 | G33: 18.4
B34: RC1 + spread and compact | D34: RC3 | E34: m3 | F34: 12.7 | G34: 18.4 | J34: e,g, cover construction
B35: RC2 + spread and compact | D35: RC4 | E35: m3 | F35: 13.5 | G35: 19.2 | J35: e,g, cover construction
B36: Specified activity | D36: RCS | E36: m3 | H36: 175 | J36: Specified-drift excavation
A37: Excavate Rip Rap
B38: drill/blast/load/short haul/place | D38: RR1 | E38: m3 | F38: 13.5 | G38: 17.75 | J38: High: quarry & place rip rap in channel
B39: drill/blast/load/long haul/place | D39: RR2 | E39: m3 | F39: 14.2 | G39: 20.65
B40: source is waste dump/short haul | D40: RR3 | E40: m3 | F40: 7 | J40: cost includes sorting
B41: source is waste dump/long haul | D41: RR4 | E41: m3 | F41: 7.6
B42: Specified activity | D42: RRS | E42: m3
A43: Excavate Soil; Low Spec's and QA/QC
B44: clear & grub | D44: SBC | E44: m2 | F44: 3.4 | G44: 5
B45: excavate/load/short haul | D45: SB1 | E45: m3 | F45: 4.3 | G45: 5.9
B46: excavate/load/long haul | D46: SB2 | E46: m3 | F46: 4.6 | G46: 7.3
B47: SB1 + spread and compact | D47: SB3 | E47: m3 | F47: 5.1 | G47: 8.9 | J47: Low: non-engineered; High:engineered
B48: SB2 + spread and compact | D48: SB4 | E48: m3 | F48: 5.5 | G48: 11 | J48: Low: non-engineered; High:engineered
B49: Specified activity | D49: SBS | E49: m3 | F49: 3.2 | G49: 6.3 | J49: Low: rehandle waste rock dump by dozing; High:rehandle waste rock by hauling
B50: Tailings | D50: SBT | E50: m3 | F50: 1.35 | G50: 3.7 | H50: 15.5 | J50: High:contour surface - wet or frozen; Specified:haul/place wet infill
A51: Excavate Soil, High Spec's and QA/QC
B52: excavate/load/short haul | D52: SC1 | E52: m3 | F52: 6.8 | G52: 9.3
B53: excavate/load/long haul | D53: SC2 | E53: m3 | F53: 7.1 | G53: 11.75
B54: SC1 + spread and compact | D54: SC3 | E54: m3 | F54: 8.9 | G54: 14.2 | J54: Low: non-engineered; High:engineered
B55: SC2 + spread and compact | D55: SC4 | E55: m3 | F55: 9.3 | G55: 23.2 | J55: Low: non-engineered; High:engineered (e.g. complex covers, low volume dam construction)
B56: Specified activity | D56: SCS | E56: m3 | H56: 18.8 | J56: Backfill adit with waste rock
A57: Fence
D58: FNC | E58: m | F58: 13.55 | G58: 203
A59: Fuel and Electricity
B60: Fuel cost - gas | D60: FCG | E60: litre | F60: 1.05 | G60: 1.4
B61: Fuel cost - diesel | D61: FCD | E61: litre | F61: 0.99 | G61: 1.39
B62: Fuel mobilization | D62: FCM | E62: litre | F62: 0.22 | G62: 0.42 | J62: High: winter road usage
B63: Electricity | D63: FCE | E63: kW-h | F63: 0.17 | G63: 0.19 | H63: 0.49 | J63: Low and High:Yellowknife; Specified:diesel generator
A64: Geo-Synthetics
B65: geotextile | D65: GST | E65: m2 | F65: 3.44 | J65: Supply and install
B66: geogrid | D66: GSG | E66: m2 | F66: 5.75
B67: liner, HDPE | D67: GSHDPE | E67: m2 | F67: 7.95 | J67: Supply and install; large quantity
B68: liner, ES3 | D68: GSES3 | E68: m2 | F68: 20.2 | J68: FOB Yellowknife
B69: geosynthetic installation | D69: GSI | E69: m2 | F69: 3.16 | G69: 14 | J69: Low:geotextile; High:ES3 or HDPE
B70: bentonite soil ammendment | D70: GSBA | E70: tonne | F70: 308.3 | G70: 348.5 | J70: FOB Edmonton, add shipping & mixing
A71: Grouting (/m3 of rock grouted)
D72: grout | E72: m3 | F72: 236.55 | G72: 286.75 | J72: High: cement, FOB Yellowknife
A73: Labour & Equipment Rates
B74: Site manager | D74: sman | E74: $/hr | F74: 125 | G74: 152
B75: Supervisor | D75: super | E75: $/hr | F75: 52 | G75: 91.84
B76: Registered engineer | D76: eng | E76: $/hr | F76: 95 | G76: 220
B77: Environmental coordinator | D77: envco | E77: $/hr | F77: 74.16 | G77: 130
B78: Evironmental technologist | D78: envtech | E78: $/hr | F78: 36
B79: Electrician | D79: elec | E79: $/hr | F79: 74 | G79: 95
B80: Journeyman - various | D80: journey | E80: $/hr | F80: 44 | G80: 71.79
B81: Labour - skilled | D81: lab-s | E81: $/hr | F81: 41 | G81: 49.6 | H81: 120
B82: Labour - unskilled | D82: lab-us | E82: $/hr | F82: 31 | G82: 43.98
B83: Equipment operator | D83: oper | E83: $/hr | F83: 41 | G83: 65
B84: Heavy duty mechanic | D84: mech | E84: $/hr | F84: 49 | G84: 72.85
B85: Water treatment plant operator | D85: oper-wt | E85: $/hr | F85: 41 | G85: 59.86
B86: Security / first aid | D86: safety | E86: $/hr | F86: 36 | G86: 66.97
B87: Administative staff | D87: admin | E87: $/hr | F87: 38 | G87: 57.89
B89: Equipment rates include operator and fuel
B90: Loader - 4 cu.yd (3.06m3) | D90: load-s | E90: $/hr | F90: 175
B91: Loader - 7 cu.yd (5.35m3) | D91: load-l | E91: $/hr | F91: 315
B92: Excavator - 26.76-30.84 tonnes | D92: exc-s | E92: $/hr | F92: 190
B93: Excavator - 68.95+tonnes | D93: exc-l | E93: $/hr | F93: 420
B94: Grader | D94: grad | E94: $/hr | F94: 190
B95: Dump truck off hwy 30-50 tonnes | D95: truck-s | E95: $/hr | F95: 225
B96: Dump truck off hwy 55-75 tonnes | D96: truck-l | E96: $/hr | F96: 300
B97: dozer, small | D97: dozers | E97: $/hr | F97: 205 | G97: 260
B98: dozer, large | D98: dozerl | E98: $/hr | F98: 490 | G98: 565
B99: smooth drum compactor | D99: comp | E99: $/hr | F99: 155
B100: scooptram, 6 yd3 bucket | D100: scoop | E100: $/hr | F100: 170
B101: flat bed truck with hiab | D101: hiab | E101: $/hr | F101: 155
B102: fuel truck | D102: ftruck | E102: $/hr | F102: 150
B103: water truck | D103: wtruck | E103: $/hr | F103: 58 | G103: 150
A104: Mobilize Heavy Equipment
B105: Road access | D105: MHER | E105: kmtonne | F105: 3.4 | G105: 10.25
B106: Air access | D106: MHEA | E106: kmtonne | F106: 12 | J106: cargo rate>500lb
A107: Mobilize Camp
B108: Road access | D108: MCR | E108: each | F108: 50000 | J108: refurbish existing camp
A109: Mobilize Workers
B110: flight | D110: MW | E110: each | F110: 4500 | G110: 9100 | J110: Low:e.g. 8 passenger; High: Dash 7
A111: Oil Removal
B112: oil removal | D112: OR | E112: litre | F112: 0.43 | G112: 1.2 | J112: Low:waste oil heater; High: ship offsite
A113: PCB Removal
B114: Remove from site | D114: PCBR | E114: litre | F114: 40.2 | G114: 46.9 | J114: Low: shipping, handling & disposal from Yellowknife
A115: Pipes, small (<6in dia.)
B116: remove/dispose on site | D116: PSR | E116: m | F116: 1 | G116: 24 | J116: Low: remove/dispose on site; High: remove/re-use
B117: supply | D117: PSS | E117: m | F117: 6.1 | G117: 11.1 | J117: Low:supply; High:supply and ship
B118: install | D118: PSI | E118: m | F118: 25
A119: Pipes, large (>6in dia.)
B120: remove/dispose on site | D120: PLR | E120: m | F120: 22 | G120: 72 | J120: Low: remove/dispose on site; High: remove/re-use
B121: supply | D121: PLS | E121: m | F121: 129 | G121: 143 | J121: Low:supply; High:supply and ship
B122: install | D122: PLI | E122: m | F122: 50
A123: Power Lines
B124: remove/dispose on site | D124: POWR | E124: m | F124: 25.5
A125: Process Chemicals
B126: Remove from site | D126: PCR | E126: kg | F126: 0.45 | G126: 2.5 | J126: Low: shipping, handling & disposal from Yellowknife
A127: Pumps
B128: Pump capital cost | D128: PC | E128: each | F128: 195000
B129: Pump shipping | D129: PS | E129: each | F129: 2500
B130: Pump operating cost | D130: POC | E130: m3 | F130: 0.12 | J130: pump operating costs should be calculated based on pump capacity, fuel costs, etc.
B131: Pump maintenance | D131: PM | E131: allow | F131: 25000
A132: Pump sand BackFill
D133: PBF | E133: m3 | F133: 85 | G133: 300
A134: Scarify - road/mine site
D135: SCFY | E135: ha | F135: 4300 | G135: 6030 | H135: 2150
A136: Shaft, Raise & Portal Closures
B137: Shaft & Raises | D137: SR | E137: m2 | F137: 645 | G137: 2132 | J137: Low:pre-cast concrete slabs, little site prep. Area=shaft+>1m all around
B138: Portals | D138: POR | E138: m3 | F138: 18.8 | G138: 250 | H138: 1200 | J138: Low:unit cost code SCS;High:excavate & backfill collapsed portal;Spec: installed pressure plug
A139: Site Inspection Report
D140: RPT | E140: each | F140: 10000 | G140: 20000
A141: SpillWay - Clear
D142: SW | E142: each | F142: 3000 | G142: 7000
A143: Survey/Instrumentation
D144: SI | E144: each | F144: 1800 | G144: 3600 | J144: 2 person crew
A145: Treatment Plant - Construct
B146: Small (< 1000 m3/d) | D146: TPS | E146: lump sum | F146: 9000000 | G146: 15000000
B147: Large (> 1000 m3/d) | D147: TPL | E147: lump sum | F147: 15000000 | G147: 46000000
B148: Constructed Wetland | D148: CWTS | E148: ha | F148: 200000 | G148: 300000
A149: Treatment Plant - Operate
D150: TPO | E150: m3 | F150: 0.35 | G150: 2
A151: Treatment Chemicals
B152: ferric sulphate | D152: ferric | E152: kg | F152: 1.19
B153: ferrous sulphate | D153: ferrous | E153: kg | F153: 1.32
B154: lime | D154: lime | E154: kg | F154: 0.56
B155: hydrogen peroxide, 35% | D155: hperox | E155: kg | F155: 1.5
B156: Sodium Metabisulfate | D156: Nametab | E156: kg | F156: 1.18
B157: Caustic soda, 50% | D157: caustic | E157: kg | F157: 0.74
B158: Sulfuric acid, 93% | D158: sulfuric | E158: kg | F158: 0.31
B159: flocculant | D159: flocc | E159: kg | F159: 6
B160: copper sulphate | D160: copper | E160: kg
B161: shipping | D161: shipping | E161: kg | F161: 0.2
A162: Vegetation
B163: Hydroseed, Flat | D163: VHF | E163: ha | F163: 4000
B164: Hydroseed, Sloped | D164: VHS | E164: ha | F164: 4500
B165: Veg. blanket/erosion mat | D165: VB | E165: ha | F165: 13000
B166: Tree planting | D166: VT | E166: ha | F166: 2600 | G166: 6000
B167: Wetland species | D167: VW | E167: ha | H167: 47.72 | J167: Specified= /m3, Wetland Growth Media Substrate mixed and installed (sand, biochar and fertilizer, woodchips)
A168: Water Sampling/Analysis/Reporting
D169: WS | E169: each | F169: 7000 | G169: 10000
A170: Winter Road
B171: Construction | D171: WRC | E171: km | F171: 2000 | G171: 11500
B172: Usage | D172: WRU | E172: kmtonne | F172: 0.29

Sheet Estimator
B1: Unit Cost Estimator | D1: 1 | E1: Equipment Productivity Figures and Graphs have been reproduced from Caterpillar Performance Handbook - Edition 42
B2: EXCAVATION | G2: HAUL AND DUMPING | L2: SPREADING/DOZING
B3: Productivity | G3: Productivity | L3: Productivity
B4: Machine | C4: Cat 336EL | G4: Machine | H4: Cat 770 | L4: Machine | M4: Cat D8
B5: bucket capacity | D5: 3.16 | E5: m3 | G5: truck capacity | I5: 25.1 | J5: m3 | L5: Estimate production using example curves provided or | N5: 600 | O5: m3/hr
B6: fill factor | D6: 0.75 | E6: % | G6: fill factor | I6: 0.8 | J6: % | L6: equivalent from other supplier
B7: cycle time | D7: 45 | E7: seconds | L7: Correction factors (see table provided)
B8: operator skill | D8: 0.8 | E8: % | G8: load time | I8: 6 | J8: min. | L8: operator skill | N8: 0.75
B9: machine availability | D9: 0.83 | E9: % | G9: haul distance | I9: 1.5 | J9: km | L9: material type, see table | N9: 0.8
B10: altitude adjustment | D10: 1 | E10: % | G10: average velocity | I10: 20 | J10: km/hr | L10: slot dozing | N10: 1
B11: Hourly productivity | D11: =D5*D6*(60*60/D7)*D8*D9*D10 -> 125.8944 | E11: m3/hr | G11: haul time + return time | I11: =+I9/I10*60*2 -> 9 | J11: min. | L11: side by side dozing | N11: 1
G12: wait time | I12: 0.5 | J12: min. | L12: visibility | N12: 1
G13: dump time | I13: 1 | J13: min. | L13: job efficiency | N13: 0.83
G14: cycle time | I14: =I8+SUM(I11:I13) -> 16.5 | J14: min. | L14: altitude adjustment | N14: 1
G15: machine availability | I15: 0.83 | J15: % | L15: slope adjustment | N15: 1
G16: altitude adjustment | I16: 1 | J16: % | L16: Hourly productivity | N16: =+N5*N8*N9*N10*N11*N12*N13*N14*N15 -> 298.8 | O16: m3/hr
I17: =I14*I15*I16 -> 13.695 | J17: ave. min/cycle
G18: Hourly productivity | I18: =I5*I6*60/I17 -> 87.97371303 | J18: m3/hr
B19: Operating Costs | G19: Operating Costs | L19: Operating Costs
B20: - Contractor | G20: - Contractor | L20: - Contractor
B21: Contractor hourly rate | D21: 180 | E21: $/hr | G21: Contractor hourly rate | I21: 225 | J21: $/hr | L21: Hourly rate - contractor supplied | N21: 260 | O21: $/hr
B22: Excavation cost - contractor rate | D22: =D21/D11 -> 1.429769712 | E22: $/m3 | G22: Haul and Dump - contractor rate | I22: =I21/I18 -> 2.557582171 | J22: $/m3 | L22: Dozing - contractor rate | N22: =N21/N16 -> 0.8701472557 | O22: $/m3
B24: - Owner | G24: - Owner | L24: - Owner
B25: ownership, daily | E25: $/day | G25: ownership, daily | J25: $/day | L25: ownership, daily | O25: $/day
B26: maintenance | E26: $/hr | G26: maintenance | J26: $/hr | L26: maintenance | O26: $/hr
B27: fuel | E27: $/hr | G27: fuel | J27: $/hr | L27: fuel | O27: $/hr
B28: consumables (cutters, tires) | E28: $/hr | G28: consumables (cutters, tires) | J28: $/hr | L28: consumables (cutters, tires) | O28: $/hr
B29: operator | E29: $/hr | G29: operator | J29: $/hr | L29: operator | O29: $/hr
B30: Owner hourly rate | D30: =D25/10+SUM(D26:D29) -> 0 | E30: $/hr | G30: Owner hourly rate | I30: =I25/10+SUM(I26:I29) -> 0 | J30: $/hr | L30: Owner hourly rate | N30: =N25/10+SUM(N26:N29) -> 0
B31: Excavation cost - owner rate | D31: =D30/D11 -> 0 | E31: $/m3 | G31: Haul/Dumping Cost - owner rate | I31: =I30/I18 -> 0 | J31: $/m3 | L31: Spreading/Dozing Cost - owner rate | N31: =N30/N16 -> 0 | O31: $/hr
B32: Excavation cost - select contractor or owner rate (D22 or D31) | E32: $/m3 | G32: Haul/Dumping Cost - select contractor or owner rate (I22 or I31 | J32: $/m3 | L32: Spreading/Dozing Cost - select contractor or owner rate (N22 or N31) | O32: $/m3
B36: Excavator | G36: Trucking | L36: Dozing
C37: Cat 320 | D37: Cat 325B | E37: Cat 375 | H37: Cat 771 D | I37: Cat 777D | J37: Cat 789C
B38: heaped bucket capacity, m3 | C38: 1.5 | D38: 2.2 | E38: 5.4 | G38: Truck capacity - heaped, m3 | H38: 27.5 | I38: 60.5 | J38: 137
D39: Typical Cycle Times (seconds)
B40: easy digging, shallow digging, small swing angle | C40: 16 | D40: 18 | E40: 20
B41: med. to hard digging, rocky soil, swing angle to 90 deg. | C41: 23 | D41: 23 | E41: 25
B42: tough digging, sandstone, caliche, at max. machine depth, swing angle > 120 deg. | C42: 27 | D42: 29 | E42: 35
B44: Material | C44: Fill Factor (% of heaped bucket capacity
B45: Moist loam or sandy clay | D45: 100 - 110
B46: sand and gravel (not till) | D46: 95 - 110
B47: hard tough clay | D47: 80 - 90
B48: rock - will blasted | D48: 60 - 75
B49: rock - poorly blasted | D49: 40 -60
B51: Operator Skill | C51: poor | D51: average | E51: good
B52: Correction factor | C52: 0.6 | D52: 0.75 | E52: 1
B54: Machine availability | C54: poor | D54: average | E54: good
B55: Correction factor | C55: 0.9 | D55: 0.95 | E55: 1

Sheet Tools
A1: The functions in this worksheet serve as a back up in the event that the menu item "Add-Ins" is not shown in Excel menu bar
C4: Save file before clearing all data
L6: These functions duplicate components within worksheet
C9: Shows both active worksheet as well as table of Unit Costs in a separate window
C12: Prints all worksheets having non-zero sums
